"Body Name","Organisational Unit","Expenditure Category","Expenditure Code","Paid Date","Trans No","Amount","Type","Supplier ID","Supplier Name"
"Oxford City Council","Policy, Culture and Communication","Pitch & Site Rents","K9534","00:00:00","46281108_1","1500","Revenue","20000000_46281108","OXFORD ROUND TABLE CHARITABLE TRUST"
"Oxford City Council","Suspense","Creditors - BACS","J8810","00:00:00","46281142_1","2000","Revenue","20000000_46281142","ARTSWORK"
"Oxford City Council","Policy, Culture and Communication","Grants","D3701","00:00:00","46281256_1","653","Revenue","20000000_46281256","ELLEN HAVARD"
"Oxford City Council","Policy, Culture and Communication","Pitch & Site Rents","K9534","00:00:00","46281283_1","1137.16","Revenue","20000000_46281283","HEBBORN AMUSEMENTS"
"Oxford City Council","Suspense","Property Rents/Income","K9550","00:00:00","46281462_1","5750","Revenue","20000000_46281462","The Mission Mexican Grill Lltd. "
"Oxford City Council","Interest Payable & Investment Income","Other Interest","H7802","00:00:00","46281462_2","88.3","Revenue","20000000_46281462","The Mission Mexican Grill Lltd. "
"Oxford City Council","Suspense","Creditors - BACS","J8810","00:00:00","46281515_1","846.68","Revenue","20000000_46281515","Mr T Anders"
"Oxford City Council","Suspense","Property Rents/Income","K9550","00:00:00","46281540_1","5750","Revenue","20000000_46281540","The Mission Mexican Grill Ltd. "
"Oxford City Council","Interest Payable & Investment Income","Other Interest","H7802","00:00:00","46281540_2","88.3","Revenue","20000000_46281540","The Mission Mexican Grill Ltd. "
"Oxford City Council","Policy, Culture and Communication","Pitch & Site Rents","K9534","00:00:00","46281724_1","1362","Revenue","20000000_46281724","Extreme Events Europe Ltd. "
"Oxford City Council","Policy, Culture and Communication","Pitch & Site Rents","K9534","00:00:00","46281726_1","1500","Revenue","20000000_46281726","WOC Ltd t/z Zippos Circus"
"Oxford City Council","Suspense","Property Rents/Income","K9550","00:00:00","46281822_1","3375","Revenue","20000000_46281822","Redacted"
"Oxford City Council","Policy, Culture and Communication","Pitch & Site Rents","K9534","00:00:00","46281841_1","500","Revenue","20000000_46281841","Bo-Concepts Ltd. "
"Oxford City Council","Policy, Culture and Communication","Pitch & Site Rents","K9534","00:00:00","46281890_1","500","Revenue","20000000_46281890","BLACKBIRD LEYS ACADEMY TRUST"
"Oxford City Council","Suspense","Other Income","K9911","00:00:00","46282061_1","712.5","Revenue","20000000_46282061","Redacted"
"Oxford City Council","Direct Services","Reactive Maintenance & Minor Repairs","B1101","00:00:00","46282107_1","3241.19","Revenue","20000000_46282107","R J HEATHMAN CONTRACTORS LTD T/AS COUNTY CONTRACTORS"
"Oxford City Council","Suspense","Creditors - BACS","J8810","00:00:00","46282131_1","742.93","Revenue","20000000_46282131","OXFORD HOMELESS PATHWAYS"
"Oxford City Council","Customer Services","Grants","D3701","00:00:00","46282181_1","2500","Revenue","20000000_46282181","FOLLY BRIDGE BRASSERIE LTD"
"Oxford City Council","Housing and Property","Rent Allowance Cheques (Home Choice)","F5033","00:00:00","46281132_1","1250","Revenue","20000010_46281132","Redacted personal information"
"Oxford City Council","Housing and Property","Homeless Prevention","D3426","00:00:00","46281162_1","1225","Revenue","20000010_46281162","Redacted personal information"
"Oxford City Council","Housing and Property","Homeless Prevention","D3426","00:00:00","46281163_1","1265","Revenue","20000010_46281163","Redacted personal information"
"Oxford City Council","Housing and Property","Homeless Prevention","D3426","00:00:00","46281164_1","1225","Revenue","20000010_46281164","Redacted personal information"
"Oxford City Council","Housing and Property","Rent Allowance Cheques (Home Choice)","F5033","00:00:00","46281177_1","534.91","Revenue","20000010_46281177","Redacted personal information"
"Oxford City Council","Housing and Property","Rent Allowance Cheques (Home Choice)","F5033","00:00:00","46281179_1","1265","Revenue","20000010_46281179","Redacted personal information"
"Oxford City Council","HRA","Special Events","D3807","00:00:00","46281272_1","843.84","Revenue","20000010_46281272","Redacted personal information"
"Oxford City Council","Housing and Property","Homeless Prevention","D3426","00:00:00","46281343_1","1097.5","Revenue","20000010_46281343","HENLEY PROPERTY PARTNERSHIP LTD"
"Oxford City Council","Housing and Property","Rent Allowance Cheques (Home Choice)","F5033","00:00:00","46281356_1","2400","Revenue","20000010_46281356","Redacted personal information"
"Oxford City Council","HRA","Special Events","D3807","00:00:00","46281391_1","2000","Revenue","20000010_46281391","Redacted personal information"
"Oxford City Council","HRA","Special Events","D3807","00:00:00","46281436_1","921.75","Revenue","20000010_46281436","Redacted personal information"
"Oxford City Council","HRA","Special Events","D3807","00:00:00","46281438_1","1616","Revenue","20000010_46281438","Redacted personal information"
"Oxford City Council","HRA","Special Events","D3807","00:00:00","46281442_1","2516.74","Revenue","20000010_46281442","Redacted personal information"
"Oxford City Council","Housing and Property","Rent Allowance Cheques (Home Choice)","F5033","00:00:00","46281445_1","900","Revenue","20000010_46281445","Redacted personal information"
"Oxford City Council","HRA","Special Events","D3807","00:00:00","46281451_1","1500","Revenue","20000010_46281451","Redacted personal information"
"Oxford City Council","HRA","Special Events","D3807","00:00:00","46281455_1","1511.13","Revenue","20000010_46281455","Redacted personal information"
"Oxford City Council","Housing and Property","Rent Allowance Cheques (Home Choice)","F5033","00:00:00","46281474_1","1225","Revenue","20000010_46281474","Redacted personal information"
"Oxford City Council","HRA","Special Events","D3807","00:00:00","46281483_1","921.75","Revenue","20000010_46281483","Redacted personal information"
"Oxford City Council","HRA","Special Events","D3807","00:00:00","46281483_2","314.94","Revenue","20000010_46281483","Redacted personal information"
"Oxford City Council","Housing and Property","Rent Allowance Cheques (Home Choice)","F5033","00:00:00","46281506_1","600","Revenue","20000010_46281506","Redacted personal information"
"Oxford City Council","Housing and Property","Rent Allowance Cheques (Home Choice)","F5033","00:00:00","46281509_1","1650","Revenue","20000010_46281509","Redacted personal information"
"Oxford City Council","Housing and Property","Rent Allowance Cheques (Home Choice)","F5033","00:00:00","46281511_1","900","Revenue","20000010_46281511","Redacted personal information"
"Oxford City Council","Housing and Property","Rent Allowance Cheques (Home Choice)","F5033","00:00:00","46281512_1","1950","Revenue","20000010_46281512","Redacted personal information"
"Oxford City Council","Housing and Property","Rent Allowance Cheques (Home Choice)","F5033","00:00:00","46281535_1","1200","Revenue","20000010_46281535","Redacted personal information"
"Oxford City Council","Housing and Property","Rent Allowance Cheques (Home Choice)","F5033","00:00:00","46281535_2","800","Revenue","20000010_46281535","Redacted personal information"
"Oxford City Council","Housing and Property","Rent Allowance Cheques (Home Choice)","F5033","00:00:00","46281564_1","1225","Revenue","20000010_46281564","Redacted personal information"
"Oxford City Council","Housing and Property","Rent Allowance Cheques (Home Choice)","F5033","00:00:00","46281566_1","1087.5","Revenue","20000010_46281566","Redacted personal information"
"Oxford City Council","Housing and Property","Rent Allowance Cheques (Home Choice)","F5033","00:00:00","46281570_1","1750","Revenue","20000010_46281570","Redacted personal information"
"Oxford City Council","HRA","Special Events","D3807","00:00:00","46281635_1","760.48","Revenue","20000010_46281635","Redacted personal information"
"Oxford City Council","Housing and Property","Rent Allowance Cheques (Home Choice)","F5033","00:00:00","46281640_1","840","Revenue","20000010_46281640","Redacted personal information"
"Oxford City Council","Housing and Property","Rent Allowance Cheques (Home Choice)","F5033","00:00:00","46281642_1","600","Revenue","20000010_46281642","Redacted personal information"
"Oxford City Council","Housing and Property","Rent Allowance Cheques (Home Choice)","F5033","00:00:00","46281677_1","1650","Revenue","20000010_46281677","Redacted personal information"
"Oxford City Council","HRA","Special Events","D3807","00:00:00","46281680_1","2516.74","Revenue","20000010_46281680","Redacted personal information"
"Oxford City Council","Housing and Property","Rent Allowance Cheques (Home Choice)","F5033","00:00:00","46281692_1","1700","Revenue","20000010_46281692","Redacted personal information"
"Oxford City Council","Housing and Property","Rent Allowance Cheques (Home Choice)","F5033","00:00:00","46281705_1","1100","Revenue","20000010_46281705","MASQ ENTERPRISES"
"Oxford City Council","Housing and Property","Rent Allowance Cheques (Home Choice)","F5033","00:00:00","46281705_2","850","Revenue","20000010_46281705","MASQ ENTERPRISES"
"Oxford City Council","Housing and Property","Rent Allowance Cheques (Home Choice)","F5033","00:00:00","46281705_3","145","Revenue","20000010_46281705","MASQ ENTERPRISES"
"Oxford City Council","Housing and Property","Rent Allowance Cheques (Home Choice)","F5033","00:00:00","46281708_1","900","Revenue","20000010_46281708","Redacted personal information"
"Oxford City Council","Housing and Property","Rent Allowance Cheques (Home Choice)","F5033","00:00:00","46281710_1","950","Revenue","20000010_46281710","Redacted personal information"
"Oxford City Council","Housing and Property","Rent Allowance Cheques (Home Choice)","F5033","00:00:00","46281713_1","3100","Revenue","20000010_46281713","Redacted personal information"
"Oxford City Council","Housing and Property","Rent Allowance Cheques (Home Choice)","F5033","00:00:00","46281717_1","1900","Revenue","20000010_46281717","Redacted personal information"
"Oxford City Council","HRA","Special Events","D3807","00:00:00","46281771_1","3000","Revenue","20000010_46281771","Redacted personal information"
"Oxford City Council","Housing and Property","Rent Allowance Cheques (Home Choice)","F5033","00:00:00","46281825_1","1820","Revenue","20000010_46281825","Redacted personal information"
"Oxford City Council","HRA","Special Events","D3807","00:00:00","46281848_1","502.16","Revenue","20000010_46281848","Redacted personal information"
"Oxford City Council","Housing and Property","Rent Allowance Cheques (Home Choice)","F5033","00:00:00","46281863_1","1515","Revenue","20000010_46281863","Redacted personal information"
"Oxford City Council","Housing and Property","Rent Allowance Cheques (Home Choice)","F5033","00:00:00","46281864_1","1237.5","Revenue","20000010_46281864","Wheatley Estates (Organisation)"
"Oxford City Council","Housing and Property","Rent Allowance Cheques (Home Choice)","F5033","00:00:00","46281864_2","200","Revenue","20000010_46281864","Wheatley Estates (Organisation)"
"Oxford City Council","Housing and Property","Rent Allowance Cheques (Home Choice)","F5033","00:00:00","46281864_3","825","Revenue","20000010_46281864","Wheatley Estates (Organisation)"
"Oxford City Council","Housing and Property","Rent Allowance Cheques (Home Choice)","F5033","00:00:00","46281866_1","1475","Revenue","20000010_46281866","Redacted personal information"
"Oxford City Council","Housing and Property","Rent Allowance Cheques (Home Choice)","F5033","00:00:00","46281869_1","1225","Revenue","20000010_46281869","Redacted personal information"
"Oxford City Council","Housing and Property","Rent Allowance Cheques (Home Choice)","F5033","00:00:00","46281875_1","530.4","Revenue","20000010_46281875","Redacted personal information"
"Oxford City Council","Housing and Property","Rent Allowance Cheques (Home Choice)","F5033","00:00:00","46281878_1","1085","Revenue","20000010_46281878","Redacted personal information"
"Oxford City Council","Housing and Property","Rent Allowance Cheques (Home Choice)","F5033","00:00:00","46281879_1","1225","Revenue","20000010_46281879","Redacted personal information"
"Oxford City Council","HRA","Special Events","D3807","00:00:00","46281880_1","1883.7","Revenue","20000010_46281880","Redacted personal information"
"Oxford City Council","Housing and Property","Rent Allowance Cheques (Home Choice)","F5033","00:00:00","46281916_1","841.66","Revenue","20000010_46281916","Cherwell Property Services Ltd. "
"Oxford City Council","Housing and Property","Rent Allowance Cheques (Home Choice)","F5033","00:00:00","46281922_1","600.08","Revenue","20000010_46281922","Redacted personal information"
"Oxford City Council","Housing and Property","Rent Allowance Cheques (Home Choice)","F5033","00:00:00","46281928_1","744","Revenue","20000010_46281928","Redacted personal information"
"Oxford City Council","Housing and Property","Rent Allowance Cheques (Home Choice)","F5033","00:00:00","46281929_1","1263.97","Revenue","20000010_46281929","Redacted personal information"
"Oxford City Council","HRA","Special Events","D3807","00:00:00","46281952_1","1100","Revenue","20000010_46281952","Redacted personal information"
"Oxford City Council","HRA","Special Events","D3807","00:00:00","46281953_1","1000","Revenue","20000010_46281953","Redacted personal information"
"Oxford City Council","Housing and Property","Rent Allowance Cheques (Home Choice)","F5033","00:00:00","46281954_1","530.4","Revenue","20000010_46281954","Redacted personal information"
"Oxford City Council","Housing and Property","Rent Allowance Cheques (Home Choice)","F5033","00:00:00","46281957_1","550","Revenue","20000010_46281957","Redacted personal information"
"Oxford City Council","Housing and Property","Rent Allowance Cheques (Home Choice)","F5033","00:00:00","46281958_1","550","Revenue","20000010_46281958","Redacted personal information"
"Oxford City Council","Housing and Property","Rent Allowance Cheques (Home Choice)","F5033","00:00:00","46281959_1","850","Revenue","20000010_46281959","Redacted personal information"
"Oxford City Council","HRA","Special Events","D3807","00:00:00","46281962_1","994.95","Revenue","20000010_46281962","Redacted personal information"
"Oxford City Council","Housing and Property","Rent Allowance Cheques (Home Choice)","F5033","00:00:00","46281966_1","1500","Revenue","20000010_46281966","Redacted personal information"
"Oxford City Council","Housing and Property","Rent Allowance Cheques (Home Choice)","F5033","00:00:00","46281967_1","560","Revenue","20000010_46281967","SPICERHAART RESIDENTIAL LETTINGS LTD CLIENT ACCOUNT"
"Oxford City Council","Housing and Property","Rent Allowance Cheques (Home Choice)","F5033","00:00:00","46281967_2","460","Revenue","20000010_46281967","SPICERHAART RESIDENTIAL LETTINGS LTD CLIENT ACCOUNT"
"Oxford City Council","Housing and Property","Rent Allowance Cheques (Home Choice)","F5033","00:00:00","46282040_1","695","Revenue","20000010_46282040","Redacted personal information"
"Oxford City Council","Housing and Property","Rent Allowance Cheques (Home Choice)","F5033","00:00:00","46282041_1","695","Revenue","20000010_46282041","Redacted personal information"
"Oxford City Council","HRA","Special Events","D3807","00:00:00","46282095_1","1000","Revenue","20000010_46282095","Redacted personal information"
"Oxford City Council","HRA","Special Events","D3807","00:00:00","46282126_1","1500","Revenue","20000010_46282126","Redacted personal information"
"Oxford City Council","Housing and Property","Rent Allowance Cheques (Home Choice)","F5033","00:00:00","46282146_1","900","Revenue","20000010_46282146","Redacted personal information"
"Oxford City Council","Housing and Property","Rent Allowance Cheques (Home Choice)","F5033","00:00:00","46282148_1","1515","Revenue","20000010_46282148","Redacted personal information"
"Oxford City Council","Housing and Property","Rent Allowance Cheques (Home Choice)","F5033","00:00:00","46282226_1","1425","Revenue","20000010_46282226","LANSBOROUGH LETTINGS"
"Oxford City Council","Housing and Property","Rent Allowance Cheques (Home Choice)","F5033","00:00:00","46282227_1","950","Revenue","20000010_46282227","LANSBOROUGH LETTINGS"
"Oxford City Council","Housing and Property","Rent Allowance Cheques (Home Choice)","F5033","00:00:00","48020811_1","1700","Revenue","20000010_48020811","Redacted personal information"
"Oxford City Council","Housing and Property","Homeless Prevention","D3426","00:00:00","46281537_1","500","Revenue","20000018_46281537","Ace Property Services UK Ltd"
"Oxford City Council","Housing and Property","Homeless Prevention","D3426","00:00:00","46281537_2","100","Revenue","20000018_46281537","Ace Property Services UK Ltd"
"Oxford City Council","Housing and Property","Homeless Prevention","D3426","00:00:00","46281538_1","525","Revenue","20000018_46281538","Redacted personal information"
"Oxford City Council","Housing and Property","Homeless Prevention","D3426","00:00:00","46281538_2","71.9","Revenue","20000018_46281538","Redacted personal information"
"Oxford City Council","Housing and Property","Advertising & Publicity","D3802","00:00:00","46281565_1","645","Revenue","20000018_46281565","J E Property Management Ltd"
"Oxford City Council","Housing and Property","Homeless Prevention","D3426","00:00:00","46281568_1","500","Revenue","20000018_46281568","Ahmed Estates"
"Oxford City Council","Housing and Property","Homeless Prevention","D3426","00:00:00","46281568_2","70.5","Revenue","20000018_46281568","Ahmed Estates"
"Oxford City Council","Housing and Property","Homeless Prevention","D3426","00:00:00","46281569_1","500","Revenue","20000018_46281569","L V King Properties"
"Oxford City Council","Housing and Property","Homeless Prevention","D3426","00:00:00","46281569_2","112","Revenue","20000018_46281569","L V King Properties"
"Oxford City Council","Housing and Property","Rent Allowance Cheques (Home Choice)","F5033","00:00:00","46281636_1","600","Revenue","20000018_46281636","Hamlets West End Lettings"
"Oxford City Council","Housing and Property","Rent Allowance Cheques (Home Choice)","F5033","00:00:00","46281636_2","75","Revenue","20000018_46281636","Hamlets West End Lettings"
"Oxford City Council","Housing and Property","Rent Allowance Cheques (Home Choice)","F5033","00:00:00","46281637_1","600","Revenue","20000018_46281637","Hamlets West End Lettings"
"Oxford City Council","Housing and Property","Rent Allowance Cheques (Home Choice)","F5033","00:00:00","46281637_2","75","Revenue","20000018_46281637","Hamlets West End Lettings"
"Oxford City Council","Housing and Property","Rent Allowance Cheques (Home Choice)","F5033","00:00:00","46281638_1","480","Revenue","20000018_46281638","Naylor Powell Estate Agents"
"Oxford City Council","Housing and Property","Rent Allowance Cheques (Home Choice)","F5033","00:00:00","46281638_2","75","Revenue","20000018_46281638","Naylor Powell Estate Agents"
"Oxford City Council","Housing and Property","Rent Allowance Cheques (Home Choice)","F5033","00:00:00","46281703_1","500","Revenue","20000018_46281703","ACE PROPERTY SERVICES"
"Oxford City Council","Housing and Property","Rent Allowance Cheques (Home Choice)","F5033","00:00:00","46281703_2","100","Revenue","20000018_46281703","ACE PROPERTY SERVICES"
"Oxford City Council","Housing and Property","Homeless Prevention","D3426","00:00:00","46281714_1","525","Revenue","20000018_46281714","Redacted personal information"
"Oxford City Council","Housing and Property","Homeless Prevention","D3426","00:00:00","46281714_2","71.9","Revenue","20000018_46281714","Redacted personal information"
"Oxford City Council","Housing and Property","Rent Allowance Cheques (Home Choice)","F5033","00:00:00","46281784_1","675","Revenue","20000018_46281784","HAMLETS WEST END LETTINGS"
"Oxford City Council","Housing and Property","Rent Allowance Cheques (Home Choice)","F5033","00:00:00","46281785_1","675","Revenue","20000018_46281785","HAMLETS WEST END LETTINGS"
"Oxford City Council","Housing and Property","Rent Allowance Cheques (Home Choice)","F5033","00:00:00","46281845_1","2025","Revenue","20000018_46281845","Redacted personal information"
"Oxford City Council","Housing and Property","Homeless Prevention","D3426","00:00:00","46282035_1","1800","Revenue","20000018_46282035","HAMLETS WEST END LETTINGS"
"Oxford City Council","Housing and Property","Homeless Prevention","D3426","00:00:00","46282035_2","276.92","Revenue","20000018_46282035","HAMLETS WEST END LETTINGS"
"Oxford City Council","Housing and Property","Homeless Prevention","D3426","00:00:00","46282036_1","1981.52","Revenue","20000018_46282036","PETER BALL & CO LTD"
"Oxford City Council","Housing and Property","Homeless Prevention","D3426","00:00:00","46282037_1","1440","Revenue","20000018_46282037","NAYLOR POWELL"
"Oxford City Council","Housing and Property","Homeless Prevention","D3426","00:00:00","46282092_1","550","Revenue","20000018_46282092","JOHNSONS PROPERTY CONSULTANTS LLP"
"Oxford City Council","Housing and Property","Homeless Prevention","D3426","00:00:00","46282093_1","550","Revenue","20000018_46282093","JOHNSONS PROPERTY CONSULTANTS LLP"
"Oxford City Council","Housing and Property","Advertising & Publicity","D3802","00:00:00","46282138_1","588","Revenue","20000018_46282138","Redacted personal information"
"Oxford City Council","Housing and Property","Homeless Prevention","D3426","00:00:00","46282213_1","1790.7","Revenue","20000018_46282213","Redacted personal information"
"Oxford City Council","Leisure, Parks & Communities","General Contracted Services","D3401","00:00:00","46281587_1","3000","Revenue","20000019_46281587","Word Fountain Ministries"
"Oxford City Council","Leisure, Parks & Communities","Other Miscellaneous Expenses","D3811","00:00:00","46281646_1","500","Revenue","20000019_46281646","East Oxford Cricket Club"
"Oxford City Council","Leisure, Parks & Communities","Grants","D3701","00:00:00","46281821_1","800","Revenue","20000019_46281821","Oxford Hindu Temple & Community Centre Project"
"Oxford City Council","Leisure, Parks & Communities","Instructors & Coaching Fees","D3413","00:00:00","46281883_1","900","Revenue","20000019_46281883","FARINGDON COMMUNITY COLLEGE"
"Oxford City Council","Leisure, Parks & Communities","Other Miscellaneous Expenses","D3811","00:00:00","46281970_1","500","Revenue","20000019_46281970","THE OXFORD FOODBANK"
"Oxford City Council","Leisure, Parks & Communities","Other Miscellaneous Expenses","D3811","00:00:00","46281972_1","500","Revenue","20000019_46281972","DINNERTIME"
"Oxford City Council","Business Improvement & Technology","Commission/Discount","K9472","00:00:00","46281557_1","-1289.26","Revenue","20000200","CHAMPION EMPLOYMENT LTD"
"Oxford City Council","Finance","Temporary Bureau Staffing","A0108","00:00:00","46281557_10","2937.41","Revenue","20000200","CHAMPION EMPLOYMENT LTD"
"Oxford City Council","Finance","Temporary Bureau Staffing","A0108","00:00:00","46281557_11","7081.27","Revenue","20000200","CHAMPION EMPLOYMENT LTD"
"Oxford City Council","Customer Services","Temporary Bureau Staffing","A0108","00:00:00","46281557_12","1412.26","Revenue","20000200","CHAMPION EMPLOYMENT LTD"
"Oxford City Council","Customer Services","Temporary Bureau Staffing","A0108","00:00:00","46281557_13","24688.02","Revenue","20000200","CHAMPION EMPLOYMENT LTD"
"Oxford City Council","Customer Services","Temporary Bureau Staffing","A0108","00:00:00","46281557_14","31925.89","Revenue","20000200","CHAMPION EMPLOYMENT LTD"
"Oxford City Council","Customer Services","Temporary Bureau Staffing","A0108","00:00:00","46281557_15","3538","Revenue","20000200","CHAMPION EMPLOYMENT LTD"
"Oxford City Council","Transformation","Temporary Bureau Staffing","A0108","00:00:00","46281557_16","3326.4","Revenue","20000200","CHAMPION EMPLOYMENT LTD"
"Oxford City Council","Transformation","Temporary Bureau Staffing","A0108","00:00:00","46281557_17","1870.75","Revenue","20000200","CHAMPION EMPLOYMENT LTD"
"Oxford City Council","Environmental Development","Temporary Bureau Staffing","A0108","00:00:00","46281557_18","994.94","Revenue","20000200","CHAMPION EMPLOYMENT LTD"
"Oxford City Council","Environmental Development","Temporary Bureau Staffing","A0108","00:00:00","46281557_19","19311.4","Revenue","20000200","CHAMPION EMPLOYMENT LTD"
"Oxford City Council","Holding Accounts & Other Funds","Difference A/c","Z910198","00:00:00","46281557_2","0.02","Revenue","20000200","CHAMPION EMPLOYMENT LTD"
"Oxford City Council","Environmental Development","Temporary Bureau Staffing","A0108","00:00:00","46281557_20","12925.71","Revenue","20000200","CHAMPION EMPLOYMENT LTD"
"Oxford City Council","Environmental Development","Temporary Bureau Staffing","A0108","00:00:00","46281557_21","33236.79","Revenue","20000200","CHAMPION EMPLOYMENT LTD"
"Oxford City Council","Environmental Development","Temporary Bureau Staffing","A0108","00:00:00","46281557_22","4624.67","Revenue","20000200","CHAMPION EMPLOYMENT LTD"
"Oxford City Council","Environmental Development","Temporary Bureau Staffing","A0108","00:00:00","46281557_23","3711.95","Revenue","20000200","CHAMPION EMPLOYMENT LTD"
"Oxford City Council","Housing and Property","Temporary Bureau Staffing","A0108","00:00:00","46281557_24","12876.28","Revenue","20000200","CHAMPION EMPLOYMENT LTD"
"Oxford City Council","Policy, Culture and Communication","Main Contractor","Y021","00:00:00","46281557_25","4074.84","Capital","20000200","CHAMPION EMPLOYMENT LTD"
"Oxford City Council","City Development","Temporary Bureau Staffing","A0108","00:00:00","46281557_26","6321.73","Revenue","20000200","CHAMPION EMPLOYMENT LTD"
"Oxford City Council","City Development","Temporary Bureau Staffing","A0108","00:00:00","46281557_27","490.77","Revenue","20000200","CHAMPION EMPLOYMENT LTD"
"Oxford City Council","City Development","Temporary Bureau Staffing","A0108","00:00:00","46281557_28","9200","Revenue","20000200","CHAMPION EMPLOYMENT LTD"
"Oxford City Council","Leisure, Parks & Communities","Temporary Bureau Staffing","A0108","00:00:00","46281557_29","8554.98","Revenue","20000200","CHAMPION EMPLOYMENT LTD"
"Oxford City Council","Human Resources & Facilities","Temporary Bureau Staffing","A0108","00:00:00","46281557_3","2554.66","Revenue","20000200","CHAMPION EMPLOYMENT LTD"
"Oxford City Council","Law and Governance","Temporary Bureau Staffing","A0108","00:00:00","46281557_30","1333.78","Revenue","20000200","CHAMPION EMPLOYMENT LTD"
"Oxford City Council","Policy, Culture and Communication","Temporary Bureau Staffing","A0108","00:00:00","46281557_31","1289.88","Revenue","20000200","CHAMPION EMPLOYMENT LTD"
"Oxford City Council","HRA","Temporary Bureau Staffing","A0108","00:00:00","46281557_32","658.72","Revenue","20000200","CHAMPION EMPLOYMENT LTD"
"Oxford City Council","HRA","Temporary Bureau Staffing","A0108","00:00:00","46281557_33","12413.7","Revenue","20000200","CHAMPION EMPLOYMENT LTD"
"Oxford City Council","HRA","Temporary Bureau Staffing","A0108","00:00:00","46281557_34","8011.6","Revenue","20000200","CHAMPION EMPLOYMENT LTD"
"Oxford City Council","Direct Services","Temporary Bureau Staffing","A0108","00:00:00","46281557_35","1605.5","Revenue","20000200","CHAMPION EMPLOYMENT LTD"
"Oxford City Council","Direct Services","Temporary Bureau Staffing","A0108","00:00:00","46281557_36","1995.06","Revenue","20000200","CHAMPION EMPLOYMENT LTD"
"Oxford City Council","Direct Services","Temporary Bureau Staffing","A0108","00:00:00","46281557_37","1569.86","Revenue","20000200","CHAMPION EMPLOYMENT LTD"
"Oxford City Council","Direct Services","Temporary Bureau Staffing","A0108","00:00:00","46281557_38","1823.67","Revenue","20000200","CHAMPION EMPLOYMENT LTD"
"Oxford City Council","Direct Services","Temporary Bureau Staffing","A0108","00:00:00","46281557_39","2032.93","Revenue","20000200","CHAMPION EMPLOYMENT LTD"
"Oxford City Council","Regeneration and Major Projects Team","Temporary Bureau Staffing","A0108","00:00:00","46281557_4","4045.5","Revenue","20000200","CHAMPION EMPLOYMENT LTD"
"Oxford City Council","Direct Services","Temporary Bureau Staffing","A0108","00:00:00","46281557_40","15184.99","Revenue","20000200","CHAMPION EMPLOYMENT LTD"
"Oxford City Council","Direct Services","Temporary Bureau Staffing","A0108","00:00:00","46281557_41","10430.21","Revenue","20000200","CHAMPION EMPLOYMENT LTD"
"Oxford City Council","Direct Services","Temporary Bureau Staffing","A0108","00:00:00","46281557_42","2807.99","Revenue","20000200","CHAMPION EMPLOYMENT LTD"
"Oxford City Council","Direct Services","Temporary Bureau Staffing","A0108","00:00:00","46281557_43","1695.06","Revenue","20000200","CHAMPION EMPLOYMENT LTD"
"Oxford City Council","Direct Services","Temporary Bureau Staffing","A0108","00:00:00","46281557_44","1665.88","Revenue","20000200","CHAMPION EMPLOYMENT LTD"
"Oxford City Council","Direct Services","Temporary Bureau Staffing","A0108","00:00:00","46281557_45","2892.57","Revenue","20000200","CHAMPION EMPLOYMENT LTD"
"Oxford City Council","Housing and Property","Temporary Bureau Staffing","A0108","00:00:00","46281557_46","999.7","Revenue","20000200","CHAMPION EMPLOYMENT LTD"
"Oxford City Council","Regeneration and Major Projects Team","Temporary Bureau Staffing","A0108","00:00:00","46281557_5","4699","Revenue","20000200","CHAMPION EMPLOYMENT LTD"
"Oxford City Council","Housing and Property","Temporary Bureau Staffing","A0108","00:00:00","46281557_6","8601.9","Revenue","20000200","CHAMPION EMPLOYMENT LTD"
"Oxford City Council","City Development","Temporary Bureau Staffing","A0108","00:00:00","46281557_7","5125.05","Revenue","20000200","CHAMPION EMPLOYMENT LTD"
"Oxford City Council","Business Improvement & Technology","Temporary Bureau Staffing","A0108","00:00:00","46281557_8","4261.1","Revenue","20000200","CHAMPION EMPLOYMENT LTD"
"Oxford City Council","Business Improvement & Technology","Temporary Bureau Staffing","A0108","00:00:00","46281557_9","59781.84","Revenue","20000200","CHAMPION EMPLOYMENT LTD"
"Oxford City Council","Business Improvement & Technology","Commission/Discount","K9472","00:00:00","46281663_1","-858.22","Revenue","20000200","CHAMPION EMPLOYMENT LTD"
"Oxford City Council","Finance","Temporary Bureau Staffing","A0108","00:00:00","46281663_10","2904.71","Revenue","20000200","CHAMPION EMPLOYMENT LTD"
"Oxford City Council","Finance","Temporary Bureau Staffing","A0108","00:00:00","46281663_11","3066.26","Revenue","20000200","CHAMPION EMPLOYMENT LTD"
"Oxford City Council","Customer Services","Temporary Bureau Staffing","A0108","00:00:00","46281663_12","1402.93","Revenue","20000200","CHAMPION EMPLOYMENT LTD"
"Oxford City Council","Customer Services","Temporary Bureau Staffing","A0108","00:00:00","46281663_13","4958.88","Revenue","20000200","CHAMPION EMPLOYMENT LTD"
"Oxford City Council","Customer Services","Temporary Bureau Staffing","A0108","00:00:00","46281663_14","11282.01","Revenue","20000200","CHAMPION EMPLOYMENT LTD"
"Oxford City Council","Customer Services","Temporary Bureau Staffing","A0108","00:00:00","46281663_15","95","Revenue","20000200","CHAMPION EMPLOYMENT LTD"
"Oxford City Council","Customer Services","Temporary Bureau Staffing","A0108","00:00:00","46281663_16","2231","Revenue","20000200","CHAMPION EMPLOYMENT LTD"
"Oxford City Council","Transformation","Temporary Bureau Staffing","A0108","00:00:00","46281663_17","1280.7","Revenue","20000200","CHAMPION EMPLOYMENT LTD"
"Oxford City Council","Environmental Development","Temporary Bureau Staffing","A0108","00:00:00","46281663_18","1738.19","Revenue","20000200","CHAMPION EMPLOYMENT LTD"
"Oxford City Council","Environmental Development","Temporary Bureau Staffing","A0108","00:00:00","46281663_19","1485.67","Revenue","20000200","CHAMPION EMPLOYMENT LTD"
"Oxford City Council","Holding Accounts & Other Funds","Difference A/c","Z910198","00:00:00","46281663_2","0.02","Revenue","20000200","CHAMPION EMPLOYMENT LTD"
"Oxford City Council","Environmental Development","Temporary Bureau Staffing","A0108","00:00:00","46281663_20","10165.77","Revenue","20000200","CHAMPION EMPLOYMENT LTD"
"Oxford City Council","Environmental Development","Temporary Bureau Staffing","A0108","00:00:00","46281663_21","3536.6","Revenue","20000200","CHAMPION EMPLOYMENT LTD"
"Oxford City Council","Environmental Development","Temporary Bureau Staffing","A0108","00:00:00","46281663_22","3577","Revenue","20000200","CHAMPION EMPLOYMENT LTD"
"Oxford City Council","Environmental Development","Temporary Bureau Staffing","A0108","00:00:00","46281663_23","5732.44","Revenue","20000200","CHAMPION EMPLOYMENT LTD"
"Oxford City Council","Environmental Development","Temporary Bureau Staffing","A0108","00:00:00","46281663_24","15139.74","Revenue","20000200","CHAMPION EMPLOYMENT LTD"
"Oxford City Council","Environmental Development","Temporary Bureau Staffing","A0108","00:00:00","46281663_25","2318.25","Revenue","20000200","CHAMPION EMPLOYMENT LTD"
"Oxford City Council","Environmental Development","Temporary Bureau Staffing","A0108","00:00:00","46281663_26","2606.99","Revenue","20000200","CHAMPION EMPLOYMENT LTD"
"Oxford City Council","Housing and Property","Temporary Bureau Staffing","A0108","00:00:00","46281663_27","25.2","Revenue","20000200","CHAMPION EMPLOYMENT LTD"
"Oxford City Council","Housing and Property","Temporary Bureau Staffing","A0108","00:00:00","46281663_28","192.64","Revenue","20000200","CHAMPION EMPLOYMENT LTD"
"Oxford City Council","Housing and Property","Temporary Bureau Staffing","A0108","00:00:00","46281663_29","1575.1","Revenue","20000200","CHAMPION EMPLOYMENT LTD"
"Oxford City Council","Human Resources & Facilities","Temporary Bureau Staffing","A0108","00:00:00","46281663_3","1838.72","Revenue","20000200","CHAMPION EMPLOYMENT LTD"
"Oxford City Council","Policy, Culture and Communication","Main Contractor","Y021","00:00:00","46281663_30","2064.88","Capital","20000200","CHAMPION EMPLOYMENT LTD"
"Oxford City Council","City Development","Temporary Bureau Staffing","A0108","00:00:00","46281663_31","3105.49","Revenue","20000200","CHAMPION EMPLOYMENT LTD"
"Oxford City Council","City Development","Temporary Bureau Staffing","A0108","00:00:00","46281663_32","291.36","Revenue","20000200","CHAMPION EMPLOYMENT LTD"
"Oxford City Council","City Development","Temporary Bureau Staffing","A0108","00:00:00","46281663_33","5980","Revenue","20000200","CHAMPION EMPLOYMENT LTD"
"Oxford City Council","Leisure, Parks & Communities","Temporary Bureau Staffing","A0108","00:00:00","46281663_34","1835.72","Revenue","20000200","CHAMPION EMPLOYMENT LTD"
"Oxford City Council","Leisure, Parks & Communities","Temporary Bureau Staffing","A0108","00:00:00","46281663_35","2328.78","Revenue","20000200","CHAMPION EMPLOYMENT LTD"
"Oxford City Council","Law and Governance","Temporary Bureau Staffing","A0108","00:00:00","46281663_36","797.34","Revenue","20000200","CHAMPION EMPLOYMENT LTD"
"Oxford City Council","HRA","Temporary Bureau Staffing","A0108","00:00:00","46281663_37","3891.64","Revenue","20000200","CHAMPION EMPLOYMENT LTD"
"Oxford City Council","HRA","Temporary Bureau Staffing","A0108","00:00:00","46281663_38","7271.39","Revenue","20000200","CHAMPION EMPLOYMENT LTD"
"Oxford City Council","Direct Services","Temporary Bureau Staffing","A0108","00:00:00","46281663_39","798.66","Revenue","20000200","CHAMPION EMPLOYMENT LTD"
"Oxford City Council","Regeneration and Major Projects Team","Temporary Bureau Staffing","A0108","00:00:00","46281663_4","4099.75","Revenue","20000200","CHAMPION EMPLOYMENT LTD"
"Oxford City Council","Direct Services","Temporary Bureau Staffing","A0108","00:00:00","46281663_40","1801.11","Revenue","20000200","CHAMPION EMPLOYMENT LTD"
"Oxford City Council","Direct Services","Temporary Bureau Staffing","A0108","00:00:00","46281663_41","1792.28","Revenue","20000200","CHAMPION EMPLOYMENT LTD"
"Oxford City Council","Direct Services","Temporary Bureau Staffing","A0108","00:00:00","46281663_42","1452.47","Revenue","20000200","CHAMPION EMPLOYMENT LTD"
"Oxford City Council","Direct Services","Temporary Bureau Staffing","A0108","00:00:00","46281663_43","918.9","Revenue","20000200","CHAMPION EMPLOYMENT LTD"
"Oxford City Council","Direct Services","Temporary Bureau Staffing","A0108","00:00:00","46281663_44","2353.29","Revenue","20000200","CHAMPION EMPLOYMENT LTD"
"Oxford City Council","Direct Services","Temporary Bureau Staffing","A0108","00:00:00","46281663_45","20880.12","Revenue","20000200","CHAMPION EMPLOYMENT LTD"
"Oxford City Council","Direct Services","Temporary Bureau Staffing","A0108","00:00:00","46281663_46","249.66","Revenue","20000200","CHAMPION EMPLOYMENT LTD"
"Oxford City Council","Direct Services","Temporary Bureau Staffing","A0108","00:00:00","46281663_47","1720.81","Revenue","20000200","CHAMPION EMPLOYMENT LTD"
"Oxford City Council","Direct Services","Temporary Bureau Staffing","A0108","00:00:00","46281663_48","6576.46","Revenue","20000200","CHAMPION EMPLOYMENT LTD"
"Oxford City Council","Direct Services","Temporary Bureau Staffing","A0108","00:00:00","46281663_49","1979.31","Revenue","20000200","CHAMPION EMPLOYMENT LTD"
"Oxford City Council","Regeneration and Major Projects Team","Temporary Bureau Staffing","A0108","00:00:00","46281663_5","4437.06","Revenue","20000200","CHAMPION EMPLOYMENT LTD"
"Oxford City Council","Housing and Property","Temporary Bureau Staffing","A0108","00:00:00","46281663_6","1042.5","Revenue","20000200","CHAMPION EMPLOYMENT LTD"
"Oxford City Council","City Development","Temporary Bureau Staffing","A0108","00:00:00","46281663_7","5223.13","Revenue","20000200","CHAMPION EMPLOYMENT LTD"
"Oxford City Council","Business Improvement & Technology","Temporary Bureau Staffing","A0108","00:00:00","46281663_8","3055.85","Revenue","20000200","CHAMPION EMPLOYMENT LTD"
"Oxford City Council","Business Improvement & Technology","Temporary Bureau Staffing","A0108","00:00:00","46281663_9","6869.51","Revenue","20000200","CHAMPION EMPLOYMENT LTD"
"Oxford City Council","Business Improvement & Technology","Commission/Discount","K9472","00:00:00","46282151_1","-1244.1","Revenue","20000200","CHAMPION EMPLOYMENT LTD"
"Oxford City Council","Transformation","Temporary Bureau Staffing","A0108","00:00:00","46282151_10","1897.43","Revenue","20000200","CHAMPION EMPLOYMENT LTD"
"Oxford City Council","Finance","Temporary Bureau Staffing","A0108","00:00:00","46282151_11","4863.44","Revenue","20000200","CHAMPION EMPLOYMENT LTD"
"Oxford City Council","Finance","Temporary Bureau Staffing","A0108","00:00:00","46282151_12","3251.88","Revenue","20000200","CHAMPION EMPLOYMENT LTD"
"Oxford City Council","Customer Services","Temporary Bureau Staffing","A0108","00:00:00","46282151_13","1793.63","Revenue","20000200","CHAMPION EMPLOYMENT LTD"
"Oxford City Council","Customer Services","Temporary Bureau Staffing","A0108","00:00:00","46282151_14","16281.52","Revenue","20000200","CHAMPION EMPLOYMENT LTD"
"Oxford City Council","Customer Services","Temporary Bureau Staffing","A0108","00:00:00","46282151_15","11724.14","Revenue","20000200","CHAMPION EMPLOYMENT LTD"
"Oxford City Council","Customer Services","Temporary Bureau Staffing","A0108","00:00:00","46282151_16","4414.75","Revenue","20000200","CHAMPION EMPLOYMENT LTD"
"Oxford City Council","Transformation","Temporary Bureau Staffing","A0108","00:00:00","46282151_17","2219.14","Revenue","20000200","CHAMPION EMPLOYMENT LTD"
"Oxford City Council","Environmental Development","Temporary Bureau Staffing","A0108","00:00:00","46282151_18","2130.46","Revenue","20000200","CHAMPION EMPLOYMENT LTD"
"Oxford City Council","Environmental Development","Temporary Bureau Staffing","A0108","00:00:00","46282151_19","11815.9","Revenue","20000200","CHAMPION EMPLOYMENT LTD"
"Oxford City Council","Holding Accounts & Other Funds","Difference A/c","Z910198","00:00:00","46282151_2","-0.01","Revenue","20000200","CHAMPION EMPLOYMENT LTD"
"Oxford City Council","Environmental Development","Temporary Bureau Staffing","A0108","00:00:00","46282151_20","6879.4","Revenue","20000200","CHAMPION EMPLOYMENT LTD"
"Oxford City Council","Environmental Development","Temporary Bureau Staffing","A0108","00:00:00","46282151_21","27825.22","Revenue","20000200","CHAMPION EMPLOYMENT LTD"
"Oxford City Council","Environmental Development","Temporary Bureau Staffing","A0108","00:00:00","46282151_22","1406.79","Revenue","20000200","CHAMPION EMPLOYMENT LTD"
"Oxford City Council","Environmental Development","Temporary Bureau Staffing","A0108","00:00:00","46282151_23","3083.67","Revenue","20000200","CHAMPION EMPLOYMENT LTD"
"Oxford City Council","Housing and Property","Temporary Bureau Staffing","A0108","00:00:00","46282151_24","7078.95","Revenue","20000200","CHAMPION EMPLOYMENT LTD"
"Oxford City Council","Housing and Property","Temporary Bureau Staffing","A0108","00:00:00","46282151_25","10290","Revenue","20000200","CHAMPION EMPLOYMENT LTD"
"Oxford City Council","Housing and Property","Temporary Bureau Staffing","A0108","00:00:00","46282151_26","2011.13","Revenue","20000200","CHAMPION EMPLOYMENT LTD"
"Oxford City Council","Policy, Culture and Communication","Main Contractor","Y021","00:00:00","46282151_27","2698.16","Capital","20000200","CHAMPION EMPLOYMENT LTD"
"Oxford City Council","City Development","Temporary Bureau Staffing","A0108","00:00:00","46282151_28","2804.24","Revenue","20000200","CHAMPION EMPLOYMENT LTD"
"Oxford City Council","City Development","Temporary Bureau Staffing","A0108","00:00:00","46282151_29","8285.95","Revenue","20000200","CHAMPION EMPLOYMENT LTD"
"Oxford City Council","Human Resources & Facilities","Temporary Bureau Staffing","A0108","00:00:00","46282151_3","4035.61","Revenue","20000200","CHAMPION EMPLOYMENT LTD"
"Oxford City Council","City Development","Temporary Bureau Staffing","A0108","00:00:00","46282151_30","2299.66","Revenue","20000200","CHAMPION EMPLOYMENT LTD"
"Oxford City Council","City Development","Temporary Bureau Staffing","A0108","00:00:00","46282151_31","8740","Revenue","20000200","CHAMPION EMPLOYMENT LTD"
"Oxford City Council","Leisure, Parks & Communities","Temporary Bureau Staffing","A0108","00:00:00","46282151_32","9511.41","Revenue","20000200","CHAMPION EMPLOYMENT LTD"
"Oxford City Council","Law and Governance","Temporary Bureau Staffing","A0108","00:00:00","46282151_33","1395.8","Revenue","20000200","CHAMPION EMPLOYMENT LTD"
"Oxford City Council","Policy, Culture and Communication","Temporary Bureau Staffing","A0108","00:00:00","46282151_34","1485.38","Revenue","20000200","CHAMPION EMPLOYMENT LTD"
"Oxford City Council","HRA","Temporary Bureau Staffing","A0108","00:00:00","46282151_35","7928.37","Revenue","20000200","CHAMPION EMPLOYMENT LTD"
"Oxford City Council","HRA","Temporary Bureau Staffing","A0108","00:00:00","46282151_36","4169.95","Revenue","20000200","CHAMPION EMPLOYMENT LTD"
"Oxford City Council","HRA","Temporary Bureau Staffing","A0108","00:00:00","46282151_37","10360.7","Revenue","20000200","CHAMPION EMPLOYMENT LTD"
"Oxford City Council","Direct Services","Temporary Bureau Staffing","A0108","00:00:00","46282151_38","2377.26","Revenue","20000200","CHAMPION EMPLOYMENT LTD"
"Oxford City Council","Direct Services","Temporary Bureau Staffing","A0108","00:00:00","46282151_39","1718.94","Revenue","20000200","CHAMPION EMPLOYMENT LTD"
"Oxford City Council","Regeneration and Major Projects Team","Temporary Bureau Staffing","A0108","00:00:00","46282151_4","15574.5","Revenue","20000200","CHAMPION EMPLOYMENT LTD"
"Oxford City Council","Direct Services","Temporary Bureau Staffing","A0108","00:00:00","46282151_40","2140.59","Revenue","20000200","CHAMPION EMPLOYMENT LTD"
"Oxford City Council","Direct Services","Temporary Bureau Staffing","A0108","00:00:00","46282151_41","2695.98","Revenue","20000200","CHAMPION EMPLOYMENT LTD"
"Oxford City Council","Direct Services","Temporary Bureau Staffing","A0108","00:00:00","46282151_42","1452.4","Revenue","20000200","CHAMPION EMPLOYMENT LTD"
"Oxford City Council","Direct Services","Temporary Bureau Staffing","A0108","00:00:00","46282151_43","6900.43","Revenue","20000200","CHAMPION EMPLOYMENT LTD"
"Oxford City Council","Direct Services","Temporary Bureau Staffing","A0108","00:00:00","46282151_44","20194.78","Revenue","20000200","CHAMPION EMPLOYMENT LTD"
"Oxford City Council","Direct Services","Temporary Bureau Staffing","A0108","00:00:00","46282151_45","1667.89","Revenue","20000200","CHAMPION EMPLOYMENT LTD"
"Oxford City Council","Direct Services","Temporary Bureau Staffing","A0108","00:00:00","46282151_46","3983.09","Revenue","20000200","CHAMPION EMPLOYMENT LTD"
"Oxford City Council","Direct Services","Temporary Bureau Staffing","A0108","00:00:00","46282151_47","9332.08","Revenue","20000200","CHAMPION EMPLOYMENT LTD"
"Oxford City Council","Direct Services","Temporary Bureau Staffing","A0108","00:00:00","46282151_48","2166.24","Revenue","20000200","CHAMPION EMPLOYMENT LTD"
"Oxford City Council","Regeneration and Major Projects Team","Temporary Bureau Staffing","A0108","00:00:00","46282151_5","3254.38","Revenue","20000200","CHAMPION EMPLOYMENT LTD"
"Oxford City Council","Housing and Property","Temporary Bureau Staffing","A0108","00:00:00","46282151_6","4291.18","Revenue","20000200","CHAMPION EMPLOYMENT LTD"
"Oxford City Council","City Development","Temporary Bureau Staffing","A0108","00:00:00","46282151_7","5499.7","Revenue","20000200","CHAMPION EMPLOYMENT LTD"
"Oxford City Council","Business Improvement & Technology","Temporary Bureau Staffing","A0108","00:00:00","46282151_8","5242.72","Revenue","20000200","CHAMPION EMPLOYMENT LTD"
"Oxford City Council","Business Improvement & Technology","Temporary Bureau Staffing","A0108","00:00:00","46282151_9","12044.32","Revenue","20000200","CHAMPION EMPLOYMENT LTD"
"Oxford City Council","Direct Services","Reactive Maintenance & Minor Repairs","B1101   ","00:00:00","60020368_2","567.09","Revenue","20000203","KONE PLC"
"Oxford City Council","HRA","Asbestos Work","B1106   ","00:00:00","60019225_1","1650","Revenue","20000209","AMITY INSULATION SERVICES LTD"
"Oxford City Council","Housing and Property","Services Maintenance (Planned)","B1103","00:00:00","46281149_1","1602.18","Revenue","20000210","BARKER & EVANS LTD"
"Oxford City Council","Leisure, Parks & Communities","Services Maintenance (Planned)","B1103","00:00:00","46281149_2","1665.68","Revenue","20000210","BARKER & EVANS LTD"
"Oxford City Council","Regeneration and Major Projects Team","Services Maintenance (Planned)","B1103","00:00:00","46281149_3","1615.35","Revenue","20000210","BARKER & EVANS LTD"
"Oxford City Council","Regeneration and Major Projects Team","Services Maintenance (Planned)","B1103","00:00:00","46281149_4","541.56","Revenue","20000210","BARKER & EVANS LTD"
"Oxford City Council","Regeneration and Major Projects Team","Services Maintenance (Planned)","B1103","00:00:00","46281149_5","141.69","Revenue","20000210","BARKER & EVANS LTD"
"Oxford City Council","Housing and Property","Services Maintenance (Planned)","B1103","00:00:00","46281150_1","4291.46","Revenue","20000210","BARKER & EVANS LTD"
"Oxford City Council","Regeneration and Major Projects Team","Services Maintenance (Planned)","B1103","00:00:00","46281150_2","125","Revenue","20000210","BARKER & EVANS LTD"
"Oxford City Council","Leisure, Parks & Communities","Services Maintenance (Planned)","B1103","00:00:00","46281150_3","1290.98","Revenue","20000210","BARKER & EVANS LTD"
"Oxford City Council","Regeneration and Major Projects Team","Services Maintenance (Planned)","B1103","00:00:00","46281150_4","1999.29","Revenue","20000210","BARKER & EVANS LTD"
"Oxford City Council","Regeneration and Major Projects Team","Services Maintenance (Planned)","B1103","00:00:00","46281150_5","167.44","Revenue","20000210","BARKER & EVANS LTD"
"Oxford City Council","Housing and Property","Services Maintenance (Planned)","B1103","00:00:00","46282189_1","1722.1","Revenue","20000210","BARKER & EVANS LTD"
"Oxford City Council","Regeneration and Major Projects Team","Services Maintenance (Planned)","B1103","00:00:00","46282189_2","140","Revenue","20000210","BARKER & EVANS LTD"
"Oxford City Council","Leisure, Parks & Communities","Services Maintenance (Planned)","B1103","00:00:00","46282189_3","146","Revenue","20000210","BARKER & EVANS LTD"
"Oxford City Council","Regeneration and Major Projects Team","Services Maintenance (Planned)","B1103","00:00:00","46282189_4","1124.11","Revenue","20000210","BARKER & EVANS LTD"
"Oxford City Council","Direct Services","Services Maintenance (Planned)","B1103","00:00:00","46282189_5","1723.87","Revenue","20000210","BARKER & EVANS LTD"
"Oxford City Council","Housing and Property","Services Maintenance (Planned)","B1103","00:00:00","46282190_1","8298.17","Revenue","20000210","BARKER & EVANS LTD"
"Oxford City Council","Direct Services","Services Maintenance (Planned)","B1103","00:00:00","46282190_2","571.07","Revenue","20000210","BARKER & EVANS LTD"
"Oxford City Council","Leisure, Parks & Communities","Services Maintenance (Planned)","B1103","00:00:00","46282190_3","849.64","Revenue","20000210","BARKER & EVANS LTD"
"Oxford City Council","Regeneration and Major Projects Team","Services Maintenance (Planned)","B1103","00:00:00","46282190_4","1141.56","Revenue","20000210","BARKER & EVANS LTD"
"Oxford City Council","Direct Services","Direct Services Supplies & Services","D3311","00:00:00","60018289_0","4800","Revenue","20000210","BARKER & EVANS LTD"
"Oxford City Council","Direct Services","Direct Services Supplies & Services","D3311","00:00:00","60018573_2","2002.53","Revenue","20000210","BARKER & EVANS LTD"
"Oxford City Council","Direct Services","Direct Services Supplies & Services","D3311","00:00:00","60018830_0","927.94","Revenue","20000210","BARKER & EVANS LTD"
"Oxford City Council","HRA","Gas Responsive Repairs","B1207   ","00:00:00","60019340_2","1658.78","Revenue","20000210","BARKER & EVANS LTD"
"Oxford City Council","HRA","Gas Responsive Repairs","B1207   ","00:00:00","60019654_2","560.27","Revenue","20000210","BARKER & EVANS LTD"
"Oxford City Council","HRA","Gas Responsive Repairs","B1207   ","00:00:00","60020182_1","553.93","Revenue","20000210","BARKER & EVANS LTD"
"Oxford City Council","Direct Services","Direct Services Supplies & Services","D3311   ","00:00:00","60020543_1","2010","Revenue","20000210","BARKER & EVANS LTD"
"Oxford City Council","Direct Services","Services - General Fees","K9401   ","00:00:00","60020556_1","1689.57","Revenue","20000210","BARKER & EVANS LTD"
"Oxford City Council","HRA","Direct Services","Y237    ","00:00:00","60020557_1","5646","Capital","20000210","BARKER & EVANS LTD"
"Oxford City Council","HRA","Direct Services","Y237    ","00:00:00","60020566_1","11593","Capital","20000210","BARKER & EVANS LTD"
"Oxford City Council","HRA","Gas Responsive Repairs","B1207   ","00:00:00","60020933_0","965.26","Revenue","20000210","BARKER & EVANS LTD"
"Oxford City Council","HRA","Gas Responsive Repairs","B1207   ","00:00:00","60020934_2","541.55","Revenue","20000210","BARKER & EVANS LTD"
"Oxford City Council","HRA","Direct Services","Y237    ","00:00:00","60021003_2","1451.85","Capital","20000210","BARKER & EVANS LTD"
"Oxford City Council","Leisure, Parks & Communities","Services Maintenance (Planned)","B1103","00:00:00","46281151_1","2001.16","Revenue","20000216","CHRISTY LIGHTING LTD"
"Oxford City Council","Environmental Development","Grants-Private Persons","Y005","00:00:00","1004858_1","9192.81","Capital","20000222","ELLIOTT & JORDAN LTD"
"Oxford City Council","Environmental Development","Grants-Private Persons","Y005","00:00:00","1004859_1","7173.55","Capital","20000222","ELLIOTT & JORDAN LTD"
"Oxford City Council","Environmental Development","Grants-Private Persons","Y005","00:00:00","1004864_1","4247.55","Capital","20000222","ELLIOTT & JORDAN LTD"
"Oxford City Council","Environmental Development","Grants-Private Persons","Y005","00:00:00","1004865_1","5247.91","Capital","20000222","ELLIOTT & JORDAN LTD"
"Oxford City Council","Environmental Development","Grants-Private Persons","Y005","00:00:00","1004869_1","4175","Capital","20000222","ELLIOTT & JORDAN LTD"
"Oxford City Council","Environmental Development","Grants-Private Persons","Y005","00:00:00","1005654_1","2190","Capital","20000222","ELLIOTT & JORDAN LTD"
"Oxford City Council","Environmental Development","Grants-Private Persons","Y005","00:00:00","1005656_1","3433.25","Capital","20000222","ELLIOTT & JORDAN LTD"
"Oxford City Council","Environmental Development","Grants-Private Persons","Y005","00:00:00","1005657_1","1283.44","Capital","20000222","ELLIOTT & JORDAN LTD"
"Oxford City Council","Environmental Development","Grants-Private Persons","Y005","00:00:00","1006063_1","4529","Capital","20000222","ELLIOTT & JORDAN LTD"
"Oxford City Council","Direct Services","Direct Services Supplies & Services","D3311   ","00:00:00","60021001_1","15336.88","Revenue","20000225","FERGAL CONTRACTING CO LTD"
"Oxford City Council","Environmental Development","Grants-Private Persons","Y005","00:00:00","1004947_1","1434.7","Capital","20000227","GEORGE HENRY & CO RELAY LTD"
"Oxford City Council","Direct Services","Direct Services Supplies & Services","D3311","00:00:00","60018360_0","600","Revenue","20000233","JONES & REEVES"
"Oxford City Council","Direct Services","Direct Services Supplies & Services","D3311","00:00:00","60018363_2","500","Revenue","20000233","JONES & REEVES"
"Oxford City Council","Direct Services","Direct Services Supplies & Services","D3311","00:00:00","60018376_0","500","Revenue","20000233","JONES & REEVES"
"Oxford City Council","Direct Services","Direct Services Supplies & Services","D3311","00:00:00","60018377_2","500","Revenue","20000233","JONES & REEVES"
"Oxford City Council","Direct Services","Direct Services Supplies & Services","D3311   ","00:00:00","60020938_2","500","Revenue","20000233","JONES & REEVES"
"Oxford City Council","Direct Services","Direct Services Supplies & Services","D3311   ","00:00:00","60020939_0","2560","Revenue","20000233","JONES & REEVES"
"Oxford City Council","Direct Services","Direct Services Supplies & Services","D3311   ","00:00:00","60020964_2","500","Revenue","20000233","JONES & REEVES"
"Oxford City Council","Direct Services","Direct Services Supplies & Services","D3311   ","00:00:00","60020965_0","500","Revenue","20000233","JONES & REEVES"
"Oxford City Council","Direct Services","Direct Services Supplies & Services","D3311   ","00:00:00","60020966_2","500","Revenue","20000233","JONES & REEVES"
"Oxford City Council","Direct Services","Direct Services Supplies & Services","D3311   ","00:00:00","60020967_0","500","Revenue","20000233","JONES & REEVES"
"Oxford City Council","Direct Services","Direct Services Supplies & Services","D3311   ","00:00:00","60020969_0","500","Revenue","20000233","JONES & REEVES"
"Oxford City Council","Direct Services","Direct Services Supplies & Services","D3311   ","00:00:00","60020970_2","500","Revenue","20000233","JONES & REEVES"
"Oxford City Council","Direct Services","Direct Services Supplies & Services","D3311   ","00:00:00","60020971_0","500","Revenue","20000233","JONES & REEVES"
"Oxford City Council","Direct Services","Direct Services Supplies & Services","D3311   ","00:00:00","60020972_2","500","Revenue","20000233","JONES & REEVES"
"Oxford City Council","Direct Services","Direct Services Supplies & Services","D3311   ","00:00:00","60020973_0","500","Revenue","20000233","JONES & REEVES"
"Oxford City Council","Direct Services","Direct Services Supplies & Services","D3311   ","00:00:00","60020974_2","500","Revenue","20000233","JONES & REEVES"
"Oxford City Council","Direct Services","Direct Services Supplies & Services","D3311   ","00:00:00","60021091_2","5000","Revenue","20000233","JONES & REEVES"
"Oxford City Council","Direct Services","Direct Services Supplies & Services","D3311","00:00:00","60021462_1","500","Revenue","20000233","JONES & REEVES"
"Oxford City Council","HRA","Main Contractor","Y021","00:00:00","48020781_1","436035.66","Capital","20000236","J B LEADBITTER & CO LTD"
"Oxford City Council","HRA","Main Contractor","Y021","00:00:00","48020814_1","465898.91","Capital","20000236","J B LEADBITTER & CO LTD"
"Oxford City Council","HRA","Main Contractor","Y021","00:00:00","48020864_1","740231.2","Capital","20000236","J B LEADBITTER & CO LTD"
"Oxford City Council","Environmental Development","Furniture & Equipment Maintenance & Repairs","D3002","00:00:00","1004892_1","1490","Revenue","20000244","OXFORD REFRIGERATION LTD"
"Oxford City Council","Regeneration and Major Projects Team","Main Contractor","Y021","00:00:00","48020859_1","1231.42","Capital","20000244","OXFORD REFRIGERATION LTD"
"Oxford City Council","Direct Services","Building Alterations & Modifications","B1108   ","00:00:00","60020158_1","2111","Revenue","20000244","OXFORD REFRIGERATION LTD"
"Oxford City Council","Direct Services","Building Alterations & Modifications","B1108   ","00:00:00","60020159_1","3750","Revenue","20000244","OXFORD REFRIGERATION LTD"
"Oxford City Council","Direct Services","Building Alterations & Modifications","B1108","00:00:00","60021392_0","4748","Revenue","20000244","OXFORD REFRIGERATION LTD"
"Oxford City Council","Direct Services","Building Alterations & Modifications","B1108","00:00:00","60021393_2","1335","Revenue","20000244","OXFORD REFRIGERATION LTD"
"Oxford City Council","Direct Services","Reactive Maintenance & Minor Repairs","B1101","00:00:00","60021445_1","1611","Revenue","20000244","OXFORD REFRIGERATION LTD"
"Oxford City Council","Direct Services","Reactive Maintenance & Minor Repairs","B1101","00:00:00","46281656_1","211.8","Revenue","20000249","SSE CONTRACTING LTD"
"Oxford City Council","Housing and Property","Services Maintenance (Planned)","B1103","00:00:00","46281656_2","690.94","Revenue","20000249","SSE CONTRACTING LTD"
"Oxford City Council","Leisure, Parks & Communities","Services Maintenance (Planned)","B1103","00:00:00","46281656_3","73.03","Revenue","20000249","SSE CONTRACTING LTD"
"Oxford City Council","Housing and Property","Reactive Maintenance & Minor Repairs","B1101","00:00:00","46281656_4","135.62","Revenue","20000249","SSE CONTRACTING LTD"
"Oxford City Council","Leisure, Parks & Communities","Services Maintenance (Planned)","B1103","00:00:00","48020791_1","175.5","Revenue","20000249","SSE CONTRACTING LTD"
"Oxford City Council","Direct Services","Health & Safety","B1309","00:00:00","48020791_2","135","Revenue","20000249","SSE CONTRACTING LTD"
"Oxford City Council","Housing and Property","Services Maintenance (Planned)","B1103","00:00:00","48020791_3","248.4","Revenue","20000249","SSE CONTRACTING LTD"
"Oxford City Council","Regeneration and Major Projects Team","Services Maintenance (Planned)","B1103","00:00:00","48020791_4","145","Revenue","20000249","SSE CONTRACTING LTD"
"Oxford City Council","Housing and Property","Services Maintenance (Planned)","B1103","00:00:00","48020791_5","337.5","Revenue","20000249","SSE CONTRACTING LTD"
"Oxford City Council","Housing and Property","Services Maintenance (Planned)","B1103","00:00:00","48020791_6","145","Revenue","20000249","SSE CONTRACTING LTD"
"Oxford City Council","Housing and Property","Services Maintenance (Planned)","B1103","00:00:00","48020791_7","561.6","Revenue","20000249","SSE CONTRACTING LTD"
"Oxford City Council","Housing and Property","Services Maintenance (Planned)","B1103","00:00:00","48020791_8","145","Revenue","20000249","SSE CONTRACTING LTD"
"Oxford City Council","Leisure, Parks & Communities","Materials","D3021","00:00:00","1004894_1","2635","Revenue","20000253","S. J.  MCBRIDE  LTD.  T/A  WAREFENCE"
"Oxford City Council","Leisure, Parks & Communities","Materials","D3021","00:00:00","1004895_1","3656","Revenue","20000253","S. J.  MCBRIDE  LTD.  T/A  WAREFENCE"
"Oxford City Council","Leisure, Parks & Communities","Materials","D3021","00:00:00","1004896_1","2635","Revenue","20000253","S. J.  MCBRIDE  LTD.  T/A  WAREFENCE"
"Oxford City Council","Leisure, Parks & Communities","Materials","D3021","00:00:00","1004897_1","4156","Revenue","20000253","S. J.  MCBRIDE  LTD.  T/A  WAREFENCE"
"Oxford City Council","Leisure, Parks & Communities","Materials","D3021","00:00:00","1004898_1","14685","Revenue","20000253","S. J.  MCBRIDE  LTD.  T/A  WAREFENCE"
"Oxford City Council","Leisure, Parks & Communities","Main Contractor","Y021","00:00:00","1005351_1","30485","Capital","20000253","S. J.  MCBRIDE  LTD.  T/A  WAREFENCE"
"Oxford City Council","Leisure, Parks & Communities","Main Contractor","Y021","00:00:00","1005770_1","5306","Capital","20000253","S. J.  MCBRIDE  LTD.  T/A  WAREFENCE"
"Oxford City Council","Leisure, Parks & Communities","Materials","D3021","00:00:00","1005847_1","1997","Revenue","20000253","S. J.  MCBRIDE  LTD.  T/A  WAREFENCE"
"Oxford City Council","Leisure, Parks & Communities","Materials","D3021","00:00:00","1005848_1","14465","Revenue","20000253","S. J.  MCBRIDE  LTD.  T/A  WAREFENCE"
"Oxford City Council","Leisure, Parks & Communities","Materials","D3021","00:00:00","1005849_1","9226","Revenue","20000253","S. J.  MCBRIDE  LTD.  T/A  WAREFENCE"
"Oxford City Council","Leisure, Parks & Communities","Materials","D3021","00:00:00","1005850_1","11528","Revenue","20000253","S. J.  MCBRIDE  LTD.  T/A  WAREFENCE"
"Oxford City Council","Leisure, Parks & Communities","Materials","D3021","00:00:00","1005876_1","6546","Revenue","20000253","S. J.  MCBRIDE  LTD.  T/A  WAREFENCE"
"Oxford City Council","Leisure, Parks & Communities","Main Contractor","Y021","00:00:00","1006369_1","9446","Capital","20000253","S. J.  MCBRIDE  LTD.  T/A  WAREFENCE"
"Oxford City Council","Leisure, Parks & Communities","Materials","D3021","00:00:00","1006871_1","3722","Revenue","20000253","S. J.  MCBRIDE  LTD.  T/A  WAREFENCE"
"Oxford City Council","Direct Services","Reactive Maintenance & Minor Repairs","B1101","00:00:00","60018956_1","2271","Revenue","20000256","WESTLAKE ASPHALT CO LTD"
"Oxford City Council","Direct Services","Direct Services Supplies & Services","D3311","00:00:00","60018521_2","2059.52","Revenue","20000258","L A WOOD (OXON) LTD"
"Oxford City Council","Direct Services","Direct Services Supplies & Services","D3311   ","00:00:00","60019671_0","647.92","Revenue","20000258","L A WOOD (OXON) LTD"
"Oxford City Council","Direct Services","Direct Services Supplies & Services","D3311   ","00:00:00","60019673_0","804.94","Revenue","20000258","L A WOOD (OXON) LTD"
"Oxford City Council","Direct Services","Direct Services Sub Contractors","B1111","00:00:00","60021400_2","1816.25","Revenue","20000258","L A WOOD (OXON) LTD"
"Oxford City Council","Direct Services","Direct Services Supplies & Services","D3311","00:00:00","60021805_0","2330","Revenue","20000258","L A WOOD (OXON) LTD"
"Oxford City Council","Direct Services","Direct Services Supplies & Services","D3311","00:00:00","60021806_2","2080","Revenue","20000258","L A WOOD (OXON) LTD"
"Oxford City Council","Direct Services","Direct Services Sub Contractors","B1111","00:00:00","60021814_2","6700","Revenue","20000258","L A WOOD (OXON) LTD"
"Oxford City Council","Leisure, Parks & Communities","Waste Disposal & Skip Hire","D3420","00:00:00","1005933_1","905.4","Revenue","20000263","SHEEHAN HAULAGE & PLANT HIRE LTD"
"Oxford City Council","Direct Services","General Contracted Services","D3401   ","00:00:00","60019297_1","820","Revenue","20000263","SHEEHAN HAULAGE & PLANT HIRE LTD"
"Oxford City Council","Direct Services","General Contracted Services","D3401   ","00:00:00","60019581_0","820","Revenue","20000263","SHEEHAN HAULAGE & PLANT HIRE LTD"
"Oxford City Council","Direct Services","General Contracted Services","D3401   ","00:00:00","60019879_0","612.48","Revenue","20000263","SHEEHAN HAULAGE & PLANT HIRE LTD"
"Oxford City Council","Direct Services","General Contracted Services","D3401   ","00:00:00","60019890_1","2525.42","Revenue","20000263","SHEEHAN HAULAGE & PLANT HIRE LTD"
"Oxford City Council","Direct Services","General Contracted Services","D3401   ","00:00:00","60019891_1","2414.2","Revenue","20000263","SHEEHAN HAULAGE & PLANT HIRE LTD"
"Oxford City Council","Direct Services","General Contracted Services","D3401   ","00:00:00","60020657_0","1230","Revenue","20000263","SHEEHAN HAULAGE & PLANT HIRE LTD"
"Oxford City Council","Direct Services","General Contracted Services","D3401   ","00:00:00","60020659_0","820","Revenue","20000263","SHEEHAN HAULAGE & PLANT HIRE LTD"
"Oxford City Council","Direct Services","General Contracted Services","D3401   ","00:00:00","60020879_0","760.73","Revenue","20000263","SHEEHAN HAULAGE & PLANT HIRE LTD"
"Oxford City Council","Direct Services","General Contracted Services","D3401   ","00:00:00","60020880_2","2375.27","Revenue","20000263","SHEEHAN HAULAGE & PLANT HIRE LTD"
"Oxford City Council","Direct Services","General Contracted Services","D3401   ","00:00:00","60020884_2","4454.96","Revenue","20000263","SHEEHAN HAULAGE & PLANT HIRE LTD"
"Oxford City Council","Direct Services","Materials","D3021","00:00:00","60021380_0","719.72","Revenue","20000263","SHEEHAN HAULAGE & PLANT HIRE LTD"
"Oxford City Council","Direct Services","General Contracted Services","D3401","00:00:00","60021397_2","6158.08","Revenue","20000263","SHEEHAN HAULAGE & PLANT HIRE LTD"
"Oxford City Council","Direct Services","Tipping Charges","D3421","00:00:00","60021900_1","510.41","Revenue","20000263","SHEEHAN HAULAGE & PLANT HIRE LTD"
"Oxford City Council","Regeneration and Major Projects Team","Direct Services","Y237    ","00:00:00","60020591_2","7242","Capital","20000267","JOHN SHEEHAN (OXFORD) LTD"
"Oxford City Council","Direct Services","General Contracted Services","D3401","00:00:00","60021992_1","21168.79","Revenue","20000267","JOHN SHEEHAN (OXFORD) LTD"
"Oxford City Council","Human Resources & Facilities","Cleaning Materials","B1601","00:00:00","1005414_1","991.86","Revenue","20000270","THE SHIELD GROUP"
"Oxford City Council","Human Resources & Facilities","Reactive Maintenance & Minor Repairs","B1101","00:00:00","1006136_1","632.3","Revenue","20000270","THE SHIELD GROUP"
"Oxford City Council","Direct Services","Sign Shop Materials","D3018","00:00:00","60018887_0","1437.54","Revenue","20000278","B & M ENGINEERS LIMITED"
"Oxford City Council","Direct Services","Sign Shop Materials","D3018   ","00:00:00","60019272_1","3492","Revenue","20000278","B & M ENGINEERS LIMITED"
"Oxford City Council","Environmental Development","Grants-Private Persons","Y005","00:00:00","1004915_1","2212","Capital","20000281","STANNAH LIFT SERVICES LTD"
"Oxford City Council","Environmental Development","Grants-Private Persons","Y005","00:00:00","1005406_1","4304","Capital","20000281","STANNAH LIFT SERVICES LTD"
"Oxford City Council","Housing and Property","Reactive Maintenance & Minor Repairs","B1101","00:00:00","46281143_1","900","Revenue","20000286","D E & H V HUSSEY"
"Oxford City Council","Regeneration and Major Projects Team","Reactive Maintenance & Minor Repairs","B1101","00:00:00","46281701_1","995","Revenue","20000286","D E & H V HUSSEY"
"Oxford City Council","Regeneration and Major Projects Team","Reactive Maintenance & Minor Repairs","B1101","00:00:00","46281766_1","895","Revenue","20000286","D E & H V HUSSEY"
"Oxford City Council","Regeneration and Major Projects Team","Reactive Maintenance & Minor Repairs","B1101","00:00:00","46282155_1","724.33","Revenue","20000286","D E & H V HUSSEY"
"Oxford City Council","Regeneration and Major Projects Team","Main Contractor","Y021","00:00:00","48020783_1","900","Capital","20000286","D E & H V HUSSEY"
"Oxford City Council","Regeneration and Major Projects Team","Main Contractor","Y021","00:00:00","48020843_1","950","Capital","20000286","D E & H V HUSSEY"
"Oxford City Council","Regeneration and Major Projects Team","Main Contractor","Y021","00:00:00","48020848_1","945","Capital","20000286","D E & H V HUSSEY"
"Oxford City Council","Regeneration and Major Projects Team","Main Contractor","Y021","00:00:00","48020885_1","750","Capital","20000286","D E & H V HUSSEY"
"Oxford City Council","Regeneration and Major Projects Team","Reactive Maintenance & Minor Repairs","B1101   ","00:00:00","60019651_2","561","Revenue","20000286","D E & H V HUSSEY"
"Oxford City Council","Regeneration and Major Projects Team","Reactive Maintenance & Minor Repairs","B1101   ","00:00:00","60020711_0","1800.75","Revenue","20000286","D E & H V HUSSEY"
"Oxford City Council","Regeneration and Major Projects Team","Reactive Maintenance & Minor Repairs","B1101   ","00:00:00","60020712_2","1188","Revenue","20000286","D E & H V HUSSEY"
"Oxford City Council","Direct Services","Materials","D3021","00:00:00","47974700_0","695","Revenue","20000289","THOMAS RAFFERTY & CO"
"Oxford City Council","Direct Services","Main Contractor","Y021    ","00:00:00","47975263_2","750","Capital","20000289","THOMAS RAFFERTY & CO"
"Oxford City Council","Direct Services","Materials","D3021   ","00:00:00","60019249_0","627","Revenue","20000289","THOMAS RAFFERTY & CO"
"Oxford City Council","Direct Services","Materials","D3021   ","00:00:00","60019253_0","1904","Revenue","20000289","THOMAS RAFFERTY & CO"
"Oxford City Council","HRA","Warden Control Centre","B1244","00:00:00","46280966_1","1444.6","Revenue","20000293","TUNSTALL TELECOM LIMITED"
"Oxford City Council","HRA","Warden Control Centre","B1244","00:00:00","46280966_2","92.64","Revenue","20000293","TUNSTALL TELECOM LIMITED"
"Oxford City Council","HRA","Warden Control Centre","B1244","00:00:00","46281669_1","1412.28","Revenue","20000293","TUNSTALL TELECOM LIMITED"
"Oxford City Council","HRA","Warden Control Centre","B1244","00:00:00","46281669_2","92.64","Revenue","20000293","TUNSTALL TELECOM LIMITED"
"Oxford City Council","HRA","Warden Control Centre","B1244","00:00:00","46281937_1","1412.28","Revenue","20000293","TUNSTALL TELECOM LIMITED"
"Oxford City Council","HRA","Warden Control Centre","B1244","00:00:00","46281937_2","92.64","Revenue","20000293","TUNSTALL TELECOM LIMITED"
"Oxford City Council","Environmental Development","Grants-Private Persons","Y005","00:00:00","1006427_1","3200","Capital","20000334","ANGLIAN WINDOWS LTD"
"Oxford City Council","Direct Services","Direct Services Supplies & Services","D3311","00:00:00","60018350_0","708.68","Revenue","20000368","ENVIROVENT LTD"
"Oxford City Council","Regeneration and Major Projects Team","Services Maintenance (Planned)","B1103","00:00:00","46281266_1","1445","Revenue","20000397","WINDRUSH DOOR & WINDOW SERVICES LTD"
"Oxford City Council","Direct Services","Building Alterations & Modifications","B1108   ","00:00:00","60019343_0","561.6","Revenue","20000441","1ST CHOICE SCAFFOLDING (OXFORD) LTD"
"Oxford City Council","Direct Services","Direct Services Supplies & Services","D3311   ","00:00:00","60020538_1","608.4","Revenue","20000441","1ST CHOICE SCAFFOLDING (OXFORD) LTD"
"Oxford City Council","HRA","Day to Day Repairs - Occupied","B1180   ","00:00:00","60020540_1","1614.6","Revenue","20000441","1ST CHOICE SCAFFOLDING (OXFORD) LTD"
"Oxford City Council","Direct Services","Services - General Fees","K9401","00:00:00","60021594_0","748.8","Revenue","20000441","1ST CHOICE SCAFFOLDING (OXFORD) LTD"
"Oxford City Council","HRA","Laundry Appliances","B1222","00:00:00","46281731_1","845.7","Revenue","20002002","AJB ENGINEERING SERVICES LTD"
"Oxford City Council","HRA","Laundry Appliances","B1222","00:00:00","46281731_2","169.17","Revenue","20002002","AJB ENGINEERING SERVICES LTD"
"Oxford City Council","HRA","Laundry Appliances","B1222","00:00:00","46281938_1","845.7","Revenue","20002002","AJB ENGINEERING SERVICES LTD"
"Oxford City Council","HRA","Laundry Appliances","B1222","00:00:00","46281938_2","169.17","Revenue","20002002","AJB ENGINEERING SERVICES LTD"
"Oxford City Council","HRA","Laundry Appliances","B1222","00:00:00","46282183_1","943.7","Revenue","20002002","AJB ENGINEERING SERVICES LTD"
"Oxford City Council","HRA","Laundry Appliances","B1222","00:00:00","46282183_2","169.17","Revenue","20002002","AJB ENGINEERING SERVICES LTD"
"Oxford City Council","Direct Services","Materials","D3021","00:00:00","60018077_0","1635.78","Revenue","20002005","HANSON AGGREGATES"
"Oxford City Council","Suspense","Materials","D3021","00:00:00","60018506_0","599.58","Revenue","20002005","HANSON AGGREGATES"
"Oxford City Council","Direct Services","Materials","D3021","00:00:00","60018912_2","1436","Revenue","20002005","HANSON AGGREGATES"
"Oxford City Council","Direct Services","Materials","D3021","00:00:00","60018913_0","1043.5","Revenue","20002005","HANSON AGGREGATES"
"Oxford City Council","Direct Services","Materials","D3021","00:00:00","60018918_1","1436","Revenue","20002005","HANSON AGGREGATES"
"Oxford City Council","Direct Services","Materials","D3021   ","00:00:00","60019260_2","1022.63","Revenue","20002005","HANSON AGGREGATES"
"Oxford City Council","Direct Services","Materials","D3021   ","00:00:00","60019261_0","1310.27","Revenue","20002005","HANSON AGGREGATES"
"Oxford City Council","Direct Services","Materials","D3021   ","00:00:00","60019263_0","1315.2","Revenue","20002005","HANSON AGGREGATES"
"Oxford City Council","Direct Services","Materials","D3021   ","00:00:00","60019619_0","1306.98","Revenue","20002005","HANSON AGGREGATES"
"Oxford City Council","Direct Services","Materials","D3021   ","00:00:00","60019624_0","1026.8","Revenue","20002005","HANSON AGGREGATES"
"Oxford City Council","Direct Services","Materials","D3021   ","00:00:00","60019631_2","912","Revenue","20002005","HANSON AGGREGATES"
"Oxford City Council","Direct Services","Materials","D3021   ","00:00:00","60019633_0","1039.33","Revenue","20002005","HANSON AGGREGATES"
"Oxford City Council","Direct Services","Materials","D3021   ","00:00:00","60019634_2","1444.98","Revenue","20002005","HANSON AGGREGATES"
"Oxford City Council","Direct Services","Materials","D3021   ","00:00:00","60019636_0","1039.33","Revenue","20002005","HANSON AGGREGATES"
"Oxford City Council","Direct Services","Materials","D3021   ","00:00:00","60020337_1","1319.31","Revenue","20002005","HANSON AGGREGATES"
"Oxford City Council","Direct Services","Materials","D3021   ","00:00:00","60020506_1","1434.21","Revenue","20002005","HANSON AGGREGATES"
"Oxford City Council","Direct Services","Materials","D3021   ","00:00:00","60020509_1","987.25","Revenue","20002005","HANSON AGGREGATES"
"Oxford City Council","Direct Services","Materials","D3021   ","00:00:00","60020512_1","818.1","Revenue","20002005","HANSON AGGREGATES"
"Oxford City Council","Direct Services","Materials","D3021   ","00:00:00","60020513_1","1207.41","Revenue","20002005","HANSON AGGREGATES"
"Oxford City Council","Direct Services","Materials","D3021   ","00:00:00","60020514_1","711.67","Revenue","20002005","HANSON AGGREGATES"
"Oxford City Council","Direct Services","Materials","D3021   ","00:00:00","60020515_1","1012.2","Revenue","20002005","HANSON AGGREGATES"
"Oxford City Council","Direct Services","Materials","D3021   ","00:00:00","60020516_1","521.75","Revenue","20002005","HANSON AGGREGATES"
"Oxford City Council","Direct Services","Materials","D3021   ","00:00:00","60020517_1","1872.13","Revenue","20002005","HANSON AGGREGATES"
"Oxford City Council","Direct Services","Materials","D3021   ","00:00:00","60020518_1","1018.46","Revenue","20002005","HANSON AGGREGATES"
"Oxford City Council","Direct Services","Materials","D3021   ","00:00:00","60020520_1","897.5","Revenue","20002005","HANSON AGGREGATES"
"Oxford City Council","Direct Services","Materials","D3021   ","00:00:00","60020713_0","1436","Revenue","20002005","HANSON AGGREGATES"
"Oxford City Council","Direct Services","Materials","D3021   ","00:00:00","60020714_2","1344","Revenue","20002005","HANSON AGGREGATES"
"Oxford City Council","Direct Services","Materials","D3021   ","00:00:00","60020716_2","1048.32","Revenue","20002005","HANSON AGGREGATES"
"Oxford City Council","Direct Services","Materials","D3021   ","00:00:00","60021139_1","1053","Revenue","20002005","HANSON AGGREGATES"
"Oxford City Council","Direct Services","Materials","D3021   ","00:00:00","60021140_1","1315.2","Revenue","20002005","HANSON AGGREGATES"
"Oxford City Council","Direct Services","Materials","D3021   ","00:00:00","60021141_1","521.75","Revenue","20002005","HANSON AGGREGATES"
"Oxford City Council","Direct Services","Materials","D3021   ","00:00:00","60021142_1","834.8","Revenue","20002005","HANSON AGGREGATES"
"Oxford City Council","Direct Services","Materials","D3021   ","00:00:00","60021183_2","2444.15","Revenue","20002005","HANSON AGGREGATES"
"Oxford City Council","Direct Services","Materials","D3021","00:00:00","60021370_0","1179.36","Revenue","20002005","HANSON AGGREGATES"
"Oxford City Council","Direct Services","Materials","D3021","00:00:00","60021371_2","825.7","Revenue","20002005","HANSON AGGREGATES"
"Oxford City Council","Direct Services","Materials","D3021","00:00:00","60021374_0","1315.2","Revenue","20002005","HANSON AGGREGATES"
"Oxford City Council","Direct Services","Materials","D3021","00:00:00","60021375_2","1186.38","Revenue","20002005","HANSON AGGREGATES"
"Oxford City Council","Direct Services","Materials","D3021","00:00:00","60021376_0","569.43","Revenue","20002005","HANSON AGGREGATES"
"Oxford City Council","Direct Services","Materials","D3021","00:00:00","60021381_2","575.64","Revenue","20002005","HANSON AGGREGATES"
"Oxford City Council","Direct Services","Materials","D3021","00:00:00","60021383_2","1227.48","Revenue","20002005","HANSON AGGREGATES"
"Oxford City Council","Suspense","Materials","D3021","00:00:00","60021831_1","1238.87","Revenue","20002005","HANSON AGGREGATES"
"Oxford City Council","Suspense","Materials","D3021","00:00:00","60021836_1","593.55","Revenue","20002005","HANSON AGGREGATES"
"Oxford City Council","Direct Services","Materials","D3021","00:00:00","60021994_1","1256.5","Revenue","20002005","HANSON AGGREGATES"
"Oxford City Council","Direct Services","Materials","D3021","00:00:00","60021995_1","1509.38","Revenue","20002005","HANSON AGGREGATES"
"Oxford City Council","Direct Services","Materials","D3021","00:00:00","60021999_0","1235.2","Revenue","20002005","HANSON AGGREGATES"
"Oxford City Council","Suspense","Materials","D3021","00:00:00","60022045_1","590.89","Revenue","20002005","HANSON AGGREGATES"
"Oxford City Council","Direct Services","Veh.maint direct purchase","D3031   ","00:00:00","47974882_0","1639.41","Revenue","20002033","TENNANT UK CLEANING SOLUTIONS LTD (FORMERLY APPLIED SWEEPERS LTD)"
"Oxford City Council","Suspense","Materials","D3021   ","00:00:00","47975487_1","957.07","Revenue","20002033","TENNANT UK CLEANING SOLUTIONS LTD (FORMERLY APPLIED SWEEPERS LTD)"
"Oxford City Council","Finance","General Contracted Services","D3401","00:00:00","1005145_1","617.61","Revenue","20002034","ARCO LTD"
"Oxford City Council","Leisure, Parks & Communities","Protective Clothing","D3201","00:00:00","1005620_1","500.35","Revenue","20002034","ARCO LTD"
"Oxford City Council","Leisure, Parks & Communities","Protective Clothing","D3201","00:00:00","1005746_1","287.1","Revenue","20002034","ARCO LTD"
"Oxford City Council","Leisure, Parks & Communities","Protective Clothing","D3201","00:00:00","1005746_2","287.1","Revenue","20002034","ARCO LTD"
"Oxford City Council","Direct Services","Materials","D3021   ","00:00:00","60019785_1","620.61","Revenue","20002034","ARCO LTD"
"Oxford City Council","Leisure, Parks & Communities","General Contracted Services","D3401","00:00:00","1005768_1","555","Revenue","20002063","BARTON COMMUNITY ASSOCIATION"
"Oxford City Council","Leisure, Parks & Communities","Grants","D3701","00:00:00","46281586_1","14128","Revenue","20002085","FUSION"
"Oxford City Council","Housing and Property","Gas","B1502","00:00:00","46280788_1","295.51","Revenue","20002096","BRITISH GAS TRADING LTD"
"Oxford City Council","Housing and Property","Gas","B1502","00:00:00","46280788_2","197.94","Revenue","20002096","BRITISH GAS TRADING LTD"
"Oxford City Council","Housing and Property","Gas","B1502","00:00:00","46280788_3","158.19","Revenue","20002096","BRITISH GAS TRADING LTD"
"Oxford City Council","Housing and Property","Gas","B1502","00:00:00","46280788_4","5","Revenue","20002096","BRITISH GAS TRADING LTD"
"Oxford City Council","Housing and Property","Gas","B1502","00:00:00","46280788_5","106.59","Revenue","20002096","BRITISH GAS TRADING LTD"
"Oxford City Council","HRA","Rent","B1701","00:00:00","1004788_1","1000","Revenue","20002099","CANAL & RIVER TRUST"
"Oxford City Council","HRA","Rent","B1701","00:00:00","1006509_1","1000","Revenue","20002099","CANAL & RIVER TRUST"
"Oxford City Council","Direct Services","Materials","D3021","00:00:00","60018281_2","4331","Revenue","20002110","BROXAP LIMITED"
"Oxford City Council","Direct Services","Materials","D3021   ","00:00:00","60019244_1","5410","Revenue","20002110","BROXAP LIMITED"
"Oxford City Council","Direct Services","Materials","D3021   ","00:00:00","60019293_1","650","Revenue","20002110","BROXAP LIMITED"
"Oxford City Council","Direct Services","Materials","D3021   ","00:00:00","60019618_2","919","Revenue","20002110","BROXAP LIMITED"
"Oxford City Council","Direct Services","Materials","D3021   ","00:00:00","60020897_0","4024","Revenue","20002110","BROXAP LIMITED"
"Oxford City Council","Direct Services","Materials","D3021   ","00:00:00","60020898_2","1424","Revenue","20002110","BROXAP LIMITED"
"Oxford City Council","Direct Services","Security Services","D3418","00:00:00","1004833_1","4449.11","Revenue","20002120","OCS GROUP UK LTD T/A CANNON"
"Oxford City Council","Direct Services","Security Services","D3418","00:00:00","1004834_1","543.13","Revenue","20002120","OCS GROUP UK LTD T/A CANNON"
"Oxford City Council","Direct Services","Security Services","D3418","00:00:00","1006604_1","4449.11","Revenue","20002120","OCS GROUP UK LTD T/A CANNON"
"Oxford City Council","Direct Services","Security Services","D3418","00:00:00","1006605_1","543.13","Revenue","20002120","OCS GROUP UK LTD T/A CANNON"
"Oxford City Council","Direct Services","Security Services","D3418","00:00:00","1006606_1","4992.24","Revenue","20002120","OCS GROUP UK LTD T/A CANNON"
"Oxford City Council","Direct Services","Security Services","D3418","00:00:00","1006607_1","4992.24","Revenue","20002120","OCS GROUP UK LTD T/A CANNON"
"Oxford City Council","Regeneration and Major Projects Team","General Contracted Services","D3401","00:00:00","46281541_1","21.33","Revenue","20002120","OCS GROUP UK LTD T/A CANNON"
"Oxford City Council","Direct Services","Toilet Requisites","B1604","00:00:00","46281541_10","22.11","Revenue","20002120","OCS GROUP UK LTD T/A CANNON"
"Oxford City Council","Policy, Culture and Communication","Toilet Requisites","B1604","00:00:00","46281541_11","4.8","Revenue","20002120","OCS GROUP UK LTD T/A CANNON"
"Oxford City Council","Leisure, Parks & Communities","Toilet Requisites","B1604","00:00:00","46281541_12","9.63","Revenue","20002120","OCS GROUP UK LTD T/A CANNON"
"Oxford City Council","Regeneration and Major Projects Team","Toilet Requisites","B1604","00:00:00","46281541_13","4.8","Revenue","20002120","OCS GROUP UK LTD T/A CANNON"
"Oxford City Council","Leisure, Parks & Communities","Toilet Requisites","B1604","00:00:00","46281541_14","65.4","Revenue","20002120","OCS GROUP UK LTD T/A CANNON"
"Oxford City Council","Regeneration and Major Projects Team","Toilet Requisites","B1604","00:00:00","46281541_2","62.52","Revenue","20002120","OCS GROUP UK LTD T/A CANNON"
"Oxford City Council","Regeneration and Major Projects Team","Toilet Requisites","B1604","00:00:00","46281541_3","14.43","Revenue","20002120","OCS GROUP UK LTD T/A CANNON"
"Oxford City Council","Regeneration and Major Projects Team","Toilet Requisites","B1604","00:00:00","46281541_4","86.97","Revenue","20002120","OCS GROUP UK LTD T/A CANNON"
"Oxford City Council","Regeneration and Major Projects Team","Toilet Requisites","B1604","00:00:00","46281541_5","17.43","Revenue","20002120","OCS GROUP UK LTD T/A CANNON"
"Oxford City Council","Housing and Property","Toilet Requisites","B1604","00:00:00","46281541_6","9.63","Revenue","20002120","OCS GROUP UK LTD T/A CANNON"
"Oxford City Council","Regeneration and Major Projects Team","General Contracted Services","D3401","00:00:00","46281541_7","76.71","Revenue","20002120","OCS GROUP UK LTD T/A CANNON"
"Oxford City Council","Regeneration and Major Projects Team","Toilet Requisites","B1604","00:00:00","46281541_8","81.9","Revenue","20002120","OCS GROUP UK LTD T/A CANNON"
"Oxford City Council","Regeneration and Major Projects Team","Toilet Requisites","B1604","00:00:00","46281541_9","258.69","Revenue","20002120","OCS GROUP UK LTD T/A CANNON"
"Oxford City Council","Human Resources & Facilities","Photocopying/Paper Supplies","D3306","00:00:00","1005077_1","587.47","Revenue","20002121","CANON (UK) LTD"
"Oxford City Council","Human Resources & Facilities","Photocopying/Paper Supplies","D3306","00:00:00","1005078_1","1303.6","Revenue","20002121","CANON (UK) LTD"
"Oxford City Council","Human Resources & Facilities","Photocopying/Paper Supplies","D3306","00:00:00","1005476_1","3135.15","Revenue","20002121","CANON (UK) LTD"
"Oxford City Council","Human Resources & Facilities","Photocopying/Paper Supplies","D3306","00:00:00","1006500_1","586.55","Revenue","20002121","CANON (UK) LTD"
"Oxford City Council","Human Resources & Facilities","Hardware Rental","D3521","00:00:00","1006535_1","920.97","Revenue","20002121","CANON (UK) LTD"
"Oxford City Council","Direct Services","Photocopying/Paper Supplies","D3306","00:00:00","1006538_1","1071.5","Revenue","20002121","CANON (UK) LTD"
"Oxford City Council","Human Resources & Facilities","Hardware Rental","D3521","00:00:00","1006545_1","1288.8","Revenue","20002121","CANON (UK) LTD"
"Oxford City Council","Human Resources & Facilities","Hardware Rental","D3521","00:00:00","1006546_1","2486.66","Revenue","20002121","CANON (UK) LTD"
"Oxford City Council","Direct Services","Photocopying/Paper Supplies","D3306","00:00:00","1006547_1","864.11","Revenue","20002121","CANON (UK) LTD"
"Oxford City Council","Direct Services","Main Contractor","Y021    ","00:00:00","47975247_10","180","Capital","20002134","HARTWELL FORD KIDLINGTON"
"Oxford City Council","Direct Services","Main Contractor","Y021    ","00:00:00","47975247_2","8672.25","Capital","20002134","HARTWELL FORD KIDLINGTON"
"Oxford City Council","Direct Services","Main Contractor","Y021    ","00:00:00","47975247_3","704.17","Capital","20002134","HARTWELL FORD KIDLINGTON"
"Oxford City Council","Direct Services","Main Contractor","Y021    ","00:00:00","47975247_4","175","Capital","20002134","HARTWELL FORD KIDLINGTON"
"Oxford City Council","Direct Services","Main Contractor","Y021    ","00:00:00","47975247_5","425","Capital","20002134","HARTWELL FORD KIDLINGTON"
"Oxford City Council","Direct Services","Main Contractor","Y021    ","00:00:00","47975247_6","56","Capital","20002134","HARTWELL FORD KIDLINGTON"
"Oxford City Council","Direct Services","Main Contractor","Y021    ","00:00:00","47975247_7","75","Capital","20002134","HARTWELL FORD KIDLINGTON"
"Oxford City Council","Direct Services","Main Contractor","Y021    ","00:00:00","47975247_8","275","Capital","20002134","HARTWELL FORD KIDLINGTON"
"Oxford City Council","Direct Services","Main Contractor","Y021    ","00:00:00","47975247_9","562.5","Capital","20002134","HARTWELL FORD KIDLINGTON"
"Oxford City Council","Direct Services","Short Courses","A0622","00:00:00","46281608_1","550","Revenue","20002168","DENNIS EAGLE LTD"
"Oxford City Council","Direct Services","Short Courses","A0622","00:00:00","46281609_1","550","Revenue","20002168","DENNIS EAGLE LTD"
"Oxford City Council","Direct Services","Main Contractor","Y021","00:00:00","47974682_0","82131","Capital","20002168","DENNIS EAGLE LTD"
"Oxford City Council","Direct Services","Main Contractor","Y021","00:00:00","47974682_1","49680","Capital","20002168","DENNIS EAGLE LTD"
"Oxford City Council","Direct Services","Main Contractor","Y021","00:00:00","47974682_10","500","Capital","20002168","DENNIS EAGLE LTD"
"Oxford City Council","Direct Services","Main Contractor","Y021","00:00:00","47974682_11","1281","Capital","20002168","DENNIS EAGLE LTD"
"Oxford City Council","Direct Services","Main Contractor","Y021","00:00:00","47974682_12","3300","Capital","20002168","DENNIS EAGLE LTD"
"Oxford City Council","Direct Services","Main Contractor","Y021","00:00:00","47974682_13","950","Capital","20002168","DENNIS EAGLE LTD"
"Oxford City Council","Direct Services","Main Contractor","Y021","00:00:00","47974682_14","750","Capital","20002168","DENNIS EAGLE LTD"
"Oxford City Council","Direct Services","Main Contractor","Y021","00:00:00","47974682_15","4724","Capital","20002168","DENNIS EAGLE LTD"
"Oxford City Council","Direct Services","Main Contractor","Y021","00:00:00","47974682_16","485","Capital","20002168","DENNIS EAGLE LTD"
"Oxford City Council","Direct Services","Main Contractor","Y021","00:00:00","47974682_17","895","Capital","20002168","DENNIS EAGLE LTD"
"Oxford City Council","Direct Services","Main Contractor","Y021","00:00:00","47974682_18","300","Capital","20002168","DENNIS EAGLE LTD"
"Oxford City Council","Direct Services","Main Contractor","Y021","00:00:00","47974682_2","15276","Capital","20002168","DENNIS EAGLE LTD"
"Oxford City Council","Direct Services","Main Contractor","Y021","00:00:00","47974682_3","580","Capital","20002168","DENNIS EAGLE LTD"
"Oxford City Council","Direct Services","Main Contractor","Y021","00:00:00","47974682_4","100","Capital","20002168","DENNIS EAGLE LTD"
"Oxford City Council","Direct Services","Main Contractor","Y021","00:00:00","47974682_5","630","Capital","20002168","DENNIS EAGLE LTD"
"Oxford City Council","Direct Services","Main Contractor","Y021","00:00:00","47974682_8","310","Capital","20002168","DENNIS EAGLE LTD"
"Oxford City Council","Direct Services","Main Contractor","Y021","00:00:00","47974682_9","260","Capital","20002168","DENNIS EAGLE LTD"
"Oxford City Council","Direct Services","Main Contractor","Y021","00:00:00","47975053_1","705","Capital","20002168","DENNIS EAGLE LTD"
"Oxford City Council","Direct Services","Veh.maint direct purchase","D3031   ","00:00:00","47975432_0","1189.46","Revenue","20002168","DENNIS EAGLE LTD"
"Oxford City Council","Suspense","Materials","D3021   ","00:00:00","47975514_0","185.62","Revenue","20002168","DENNIS EAGLE LTD"
"Oxford City Council","Suspense","Materials","D3021   ","00:00:00","47975514_1","130.11","Revenue","20002168","DENNIS EAGLE LTD"
"Oxford City Council","Suspense","Materials","D3021   ","00:00:00","47975514_2","207.03","Revenue","20002168","DENNIS EAGLE LTD"
"Oxford City Council","Direct Services","Veh.maint direct purchase","D3031   ","00:00:00","47975544_2","887.08","Revenue","20002168","DENNIS EAGLE LTD"
"Oxford City Council","Direct Services","Direct Services Supplies & Services","D3311","00:00:00","60018607_1","516.9","Revenue","20002171","EDMUNDSON ELECTRICAL LTD"
"Oxford City Council","Direct Services","Direct Services Supplies & Services","D3311   ","00:00:00","60019216_1","5681.57","Revenue","20002171","EDMUNDSON ELECTRICAL LTD"
"Oxford City Council","Direct Services","Direct Services Supplies & Services","D3311   ","00:00:00","60019498_2","633.77","Revenue","20002171","EDMUNDSON ELECTRICAL LTD"
"Oxford City Council","Direct Services","Materials","D3021   ","00:00:00","60019522_2","9090.9","Revenue","20002171","EDMUNDSON ELECTRICAL LTD"
"Oxford City Council","Direct Services","Direct Services Supplies & Services","D3311   ","00:00:00","60019523_0","532.31","Revenue","20002171","EDMUNDSON ELECTRICAL LTD"
"Oxford City Council","Direct Services","Direct Services Supplies & Services","D3311   ","00:00:00","60019973_1","2267.06","Revenue","20002171","EDMUNDSON ELECTRICAL LTD"
"Oxford City Council","Direct Services","Reactive Maintenance & Minor Repairs","B1101   ","00:00:00","60020724_2","646.7","Revenue","20002171","EDMUNDSON ELECTRICAL LTD"
"Oxford City Council","Direct Services","Direct Services Supplies & Services","D3311   ","00:00:00","60021192_0","654.49","Revenue","20002171","EDMUNDSON ELECTRICAL LTD"
"Oxford City Council","Direct Services","Materials","D3021","00:00:00","60021529_1","3861.43","Revenue","20002171","EDMUNDSON ELECTRICAL LTD"
"Oxford City Council","Direct Services","Direct Services Supplies & Services","D3311   ","00:00:00","60022109_1","659.13","Revenue","20002171","EDMUNDSON ELECTRICAL LTD"
"Oxford City Council","Direct Services","Materials","D3021","00:00:00","60018087_1","4862.48","Revenue","20002183","EYRE & ELLISTON LTD"
"Oxford City Council","Direct Services","Materials","D3021","00:00:00","60018206_2","2284.03","Revenue","20002183","EYRE & ELLISTON LTD"
"Oxford City Council","Direct Services","Materials","D3021","00:00:00","60018701_1","3510.81","Revenue","20002183","EYRE & ELLISTON LTD"
"Oxford City Council","Direct Services","Materials","D3021","00:00:00","60018710_1","2714.19","Revenue","20002183","EYRE & ELLISTON LTD"
"Oxford City Council","Direct Services","Materials","D3021","00:00:00","60018711_1","1115.1","Revenue","20002183","EYRE & ELLISTON LTD"
"Oxford City Council","Direct Services","Direct Services Supplies & Services","D3311","00:00:00","60019006_1","3037.44","Revenue","20002183","EYRE & ELLISTON LTD"
"Oxford City Council","Direct Services","Materials","D3021   ","00:00:00","60019104_2","541.02","Revenue","20002183","EYRE & ELLISTON LTD"
"Oxford City Council","Direct Services","Materials","D3021   ","00:00:00","60019106_2","4235.56","Revenue","20002183","EYRE & ELLISTON LTD"
"Oxford City Council","Direct Services","Materials","D3021   ","00:00:00","60019115_0","881.47","Revenue","20002183","EYRE & ELLISTON LTD"
"Oxford City Council","Direct Services","Materials","D3021   ","00:00:00","60019119_0","1295.36","Revenue","20002183","EYRE & ELLISTON LTD"
"Oxford City Council","Direct Services","Materials","D3021   ","00:00:00","60019148_1","521.7","Revenue","20002183","EYRE & ELLISTON LTD"
"Oxford City Council","Direct Services","Materials","D3021   ","00:00:00","60019160_1","1758.92","Revenue","20002183","EYRE & ELLISTON LTD"
"Oxford City Council","Direct Services","Materials","D3021   ","00:00:00","60019372_1","1807.67","Revenue","20002183","EYRE & ELLISTON LTD"
"Oxford City Council","Direct Services","Materials","D3021   ","00:00:00","60019403_0","6492.96","Revenue","20002183","EYRE & ELLISTON LTD"
"Oxford City Council","Direct Services","Materials","D3021   ","00:00:00","60019513_0","2452.9","Revenue","20002183","EYRE & ELLISTON LTD"
"Oxford City Council","Direct Services","Materials","D3021   ","00:00:00","60019760_1","1219.51","Revenue","20002183","EYRE & ELLISTON LTD"
"Oxford City Council","Direct Services","Materials","D3021   ","00:00:00","60019784_1","4177.42","Revenue","20002183","EYRE & ELLISTON LTD"
"Oxford City Council","Direct Services","Materials","D3021   ","00:00:00","60019984_1","1311.38","Revenue","20002183","EYRE & ELLISTON LTD"
"Oxford City Council","Direct Services","Materials","D3021   ","00:00:00","60020044_1","2017.42","Revenue","20002183","EYRE & ELLISTON LTD"
"Oxford City Council","Direct Services","Direct Services Supplies & Services","D3311   ","00:00:00","60020232_1","24661.62","Revenue","20002183","EYRE & ELLISTON LTD"
"Oxford City Council","Direct Services","Materials","D3021   ","00:00:00","60020363_1","1376.84","Revenue","20002183","EYRE & ELLISTON LTD"
"Oxford City Council","Direct Services","Materials","D3021   ","00:00:00","60020365_1","1162.26","Revenue","20002183","EYRE & ELLISTON LTD"
"Oxford City Council","Direct Services","Materials","D3021   ","00:00:00","60020374_2","5041.56","Revenue","20002183","EYRE & ELLISTON LTD"
"Oxford City Council","Direct Services","Materials","D3021   ","00:00:00","60020751_1","6928.96","Revenue","20002183","EYRE & ELLISTON LTD"
"Oxford City Council","Direct Services","Direct Services Supplies & Services","D3311   ","00:00:00","60020834_1","15471.83","Revenue","20002183","EYRE & ELLISTON LTD"
"Oxford City Council","Direct Services","Materials","D3021   ","00:00:00","60020851_1","1298.17","Revenue","20002183","EYRE & ELLISTON LTD"
"Oxford City Council","Direct Services","Materials","D3021   ","00:00:00","60020991_1","883.17","Revenue","20002183","EYRE & ELLISTON LTD"
"Oxford City Council","Direct Services","Direct Services Supplies & Services","D3311   ","00:00:00","60020992_1","11690.92","Revenue","20002183","EYRE & ELLISTON LTD"
"Oxford City Council","Direct Services","Materials","D3021","00:00:00","60021241_2","816.35","Revenue","20002183","EYRE & ELLISTON LTD"
"Oxford City Council","Direct Services","Materials","D3021","00:00:00","60021242_0","1738.53","Revenue","20002183","EYRE & ELLISTON LTD"
"Oxford City Council","Direct Services","Materials","D3021","00:00:00","60021243_2","1878.65","Revenue","20002183","EYRE & ELLISTON LTD"
"Oxford City Council","Direct Services","Materials","D3021","00:00:00","60021247_2","715.1","Revenue","20002183","EYRE & ELLISTON LTD"
"Oxford City Council","Direct Services","Direct Services Supplies & Services","D3311","00:00:00","60021252_0","564","Revenue","20002183","EYRE & ELLISTON LTD"
"Oxford City Council","Direct Services","Materials","D3021","00:00:00","60021437_1","853.58","Revenue","20002183","EYRE & ELLISTON LTD"
"Oxford City Council","Direct Services","Materials","D3021","00:00:00","60021463_1","839.7","Revenue","20002183","EYRE & ELLISTON LTD"
"Oxford City Council","Direct Services","Tools","D3023","00:00:00","60021618_0","885.57","Revenue","20002183","EYRE & ELLISTON LTD"
"Oxford City Council","Direct Services","Materials","D3021","00:00:00","60021639_2","4649.64","Revenue","20002183","EYRE & ELLISTON LTD"
"Oxford City Council","Direct Services","Materials","D3021","00:00:00","60021842_0","977.4","Revenue","20002183","EYRE & ELLISTON LTD"
"Oxford City Council","Direct Services","Direct Services Supplies & Services","D3311","00:00:00","60021908_1","1190","Revenue","20002183","EYRE & ELLISTON LTD"
"Oxford City Council","Direct Services","Direct Services Supplies & Services","D3311","00:00:00","60021918_1","841.94","Revenue","20002183","EYRE & ELLISTON LTD"
"Oxford City Council","Direct Services","Materials","D3021   ","00:00:00","60022077_2","1298.12","Revenue","20002183","EYRE & ELLISTON LTD"
"Oxford City Council","Direct Services","Materials","D3021   ","00:00:00","60022121_2","1803.2","Revenue","20002183","EYRE & ELLISTON LTD"
"Oxford City Council","Direct Services","Materials","D3021   ","00:00:00","60022182_1","1080.1","Revenue","20002183","EYRE & ELLISTON LTD"
"Oxford City Council","Direct Services","Materials","D3021   ","00:00:00","60022200_2","2444.72","Revenue","20002183","EYRE & ELLISTON LTD"
"Oxford City Council","Direct Services","Materials","D3021   ","00:00:00","60022256_1","5092.11","Revenue","20002183","EYRE & ELLISTON LTD"
"Oxford City Council","Suspense","Materials","D3021   ","00:00:00","47974799_0","3195","Revenue","20002198","FRENCO SERVICE REPLACMNTS LTD"
"Oxford City Council","Suspense","Materials","D3021   ","00:00:00","47974860_2","320.39","Revenue","20002198","FRENCO SERVICE REPLACMNTS LTD"
"Oxford City Council","Suspense","Materials","D3021   ","00:00:00","47974860_3","451","Revenue","20002198","FRENCO SERVICE REPLACMNTS LTD"
"Oxford City Council","Suspense","Materials","D3021   ","00:00:00","47974860_4","457.7","Revenue","20002198","FRENCO SERVICE REPLACMNTS LTD"
"Oxford City Council","Suspense","Materials","D3021   ","00:00:00","47974860_5","348.25","Revenue","20002198","FRENCO SERVICE REPLACMNTS LTD"
"Oxford City Council","Direct Services","Veh.maint direct purchase","D3031   ","00:00:00","47974885_1","855","Revenue","20002198","FRENCO SERVICE REPLACMNTS LTD"
"Oxford City Council","Direct Services","Veh.maint direct purchase","D3031   ","00:00:00","47974885_2","225","Revenue","20002198","FRENCO SERVICE REPLACMNTS LTD"
"Oxford City Council","Direct Services","Veh.maint direct purchase","D3031","00:00:00","47975012_1","500","Revenue","20002198","FRENCO SERVICE REPLACMNTS LTD"
"Oxford City Council","Suspense","Materials","D3021","00:00:00","47975112_0","3675","Revenue","20002198","FRENCO SERVICE REPLACMNTS LTD"
"Oxford City Council","Suspense","Materials","D3021   ","00:00:00","47975228_0","650.9","Revenue","20002198","FRENCO SERVICE REPLACMNTS LTD"
"Oxford City Council","Suspense","Materials","D3021   ","00:00:00","47975228_1","457.7","Revenue","20002198","FRENCO SERVICE REPLACMNTS LTD"
"Oxford City Council","Suspense","Materials","D3021   ","00:00:00","47975228_2","348.25","Revenue","20002198","FRENCO SERVICE REPLACMNTS LTD"
"Oxford City Council","Direct Services","Veh.maint direct purchase","D3031   ","00:00:00","47975228_3","447.41","Revenue","20002198","FRENCO SERVICE REPLACMNTS LTD"
"Oxford City Council","Direct Services","Veh.maint direct purchase","D3031   ","00:00:00","47975454_0","131.44","Revenue","20002198","FRENCO SERVICE REPLACMNTS LTD"
"Oxford City Council","Direct Services","Veh.maint direct purchase","D3031   ","00:00:00","47975454_1","520.3","Revenue","20002198","FRENCO SERVICE REPLACMNTS LTD"
"Oxford City Council","Leisure, Parks & Communities","Waste Disposal & Skip Hire","D3420","00:00:00","1005193_1","833.84","Revenue","20002222","GRUNDON WASTE MANAGEMENT LTD"
"Oxford City Council","Leisure, Parks & Communities","Waste Disposal & Skip Hire","D3420","00:00:00","1006142_1","913.44","Revenue","20002222","GRUNDON WASTE MANAGEMENT LTD"
"Oxford City Council","Direct Services","Contract Plant Hire","C2402   ","00:00:00","60019600_2","1324.32","Revenue","20002222","GRUNDON WASTE MANAGEMENT LTD"
"Oxford City Council","Direct Services","Furniture & Equipment Maintenance & Repairs","D3002   ","00:00:00","47975431_1","421.97","Revenue","20002241","HURLEY INDUSTRIAL CLEANING EQU"
"Oxford City Council","Direct Services","Materials","D3021   ","00:00:00","47975431_2","590","Revenue","20002241","HURLEY INDUSTRIAL CLEANING EQU"
"Oxford City Council","Suspense","Materials","D3021","00:00:00","60019010_1","565.6","Revenue","20002249","INSTARMAC LTD"
"Oxford City Council","Suspense","Materials","D3021","00:00:00","60021828_1","1460.12","Revenue","20002249","INSTARMAC LTD"
"Oxford City Council","Suspense","Materials","D3021","00:00:00","60021834_1","543.4","Revenue","20002249","INSTARMAC LTD"
"Oxford City Council","Suspense","Materials","D3021","00:00:00","60021835_1","565.6","Revenue","20002249","INSTARMAC LTD"
"Oxford City Council","Suspense","Materials","D3021","00:00:00","60021837_1","2495.84","Revenue","20002249","INSTARMAC LTD"
"Oxford City Council","Suspense","Materials","D3021","00:00:00","60022039_1","1482.32","Revenue","20002249","INSTARMAC LTD"
"Oxford City Council","Suspense","Materials","D3021","00:00:00","60022043_1","1131.2","Revenue","20002249","INSTARMAC LTD"
"Oxford City Council","Suspense","Materials","D3021","00:00:00","60022046_1","1086.8","Revenue","20002249","INSTARMAC LTD"
"Oxford City Council","Leisure, Parks & Communities","Materials","D3021","00:00:00","1005858_1","602","Revenue","20002254","GRAFTON MERCHANTING GB LTD"
"Oxford City Council","Direct Services","Direct Services Supplies & Services","D3311","00:00:00","46281981_1","701.54","Revenue","20002254","GRAFTON MERCHANTING GB LTD"
"Oxford City Council","Direct Services","Direct Services Supplies & Services","D3311","00:00:00","46281987_1","630","Revenue","20002254","GRAFTON MERCHANTING GB LTD"
"Oxford City Council","Direct Services","Direct Services Supplies & Services","D3311","00:00:00","60018098_1","660.43","Revenue","20002254","GRAFTON MERCHANTING GB LTD"
"Oxford City Council","Direct Services","Direct Services Supplies & Services","D3311","00:00:00","60018099_1","660.43","Revenue","20002254","GRAFTON MERCHANTING GB LTD"
"Oxford City Council","Direct Services","Direct Services Supplies & Services","D3311","00:00:00","60018100_1","660.43","Revenue","20002254","GRAFTON MERCHANTING GB LTD"
"Oxford City Council","Direct Services","Direct Services Supplies & Services","D3311","00:00:00","60018103_1","760.56","Revenue","20002254","GRAFTON MERCHANTING GB LTD"
"Oxford City Council","Direct Services","Direct Services Supplies & Services","D3311","00:00:00","60018104_1","660.43","Revenue","20002254","GRAFTON MERCHANTING GB LTD"
"Oxford City Council","Direct Services","Materials","D3021","00:00:00","60018105_1","507.85","Revenue","20002254","GRAFTON MERCHANTING GB LTD"
"Oxford City Council","Direct Services","Direct Services Supplies & Services","D3311","00:00:00","60018107_1","518.23","Revenue","20002254","GRAFTON MERCHANTING GB LTD"
"Oxford City Council","Direct Services","Direct Services Supplies & Services","D3311","00:00:00","60018108_1","564.35","Revenue","20002254","GRAFTON MERCHANTING GB LTD"
"Oxford City Council","Direct Services","Direct Services Supplies & Services","D3311","00:00:00","60018110_1","601.83","Revenue","20002254","GRAFTON MERCHANTING GB LTD"
"Oxford City Council","Direct Services","Materials","D3021","00:00:00","60018143_1","511.95","Revenue","20002254","GRAFTON MERCHANTING GB LTD"
"Oxford City Council","Direct Services","Direct Services Supplies & Services","D3311","00:00:00","60018144_1","750.41","Revenue","20002254","GRAFTON MERCHANTING GB LTD"
"Oxford City Council","Direct Services","Direct Services Supplies & Services","D3311","00:00:00","60018145_1","660.43","Revenue","20002254","GRAFTON MERCHANTING GB LTD"
"Oxford City Council","Direct Services","Direct Services Supplies & Services","D3311","00:00:00","60018146_1","660.43","Revenue","20002254","GRAFTON MERCHANTING GB LTD"
"Oxford City Council","Direct Services","Direct Services Supplies & Services","D3311","00:00:00","60018147_1","660.43","Revenue","20002254","GRAFTON MERCHANTING GB LTD"
"Oxford City Council","Direct Services","Direct Services Supplies & Services","D3311","00:00:00","60018148_1","705.42","Revenue","20002254","GRAFTON MERCHANTING GB LTD"
"Oxford City Council","Direct Services","Direct Services Supplies & Services","D3311","00:00:00","60018149_1","1531.32","Revenue","20002254","GRAFTON MERCHANTING GB LTD"
"Oxford City Council","Direct Services","Direct Services Supplies & Services","D3311","00:00:00","60018150_1","1501.34","Revenue","20002254","GRAFTON MERCHANTING GB LTD"
"Oxford City Council","Direct Services","Materials","D3021","00:00:00","60018191_0","1010.55","Revenue","20002254","GRAFTON MERCHANTING GB LTD"
"Oxford City Council","Direct Services","Direct Services Supplies & Services","D3311","00:00:00","60018198_2","632.29","Revenue","20002254","GRAFTON MERCHANTING GB LTD"
"Oxford City Council","Direct Services","Direct Services Supplies & Services","D3311","00:00:00","60018199_0","640.21","Revenue","20002254","GRAFTON MERCHANTING GB LTD"
"Oxford City Council","Direct Services","Direct Services Supplies & Services","D3311","00:00:00","60018201_0","660.43","Revenue","20002254","GRAFTON MERCHANTING GB LTD"
"Oxford City Council","Direct Services","Direct Services Supplies & Services","D3311","00:00:00","60018202_2","660.43","Revenue","20002254","GRAFTON MERCHANTING GB LTD"
"Oxford City Council","Direct Services","Direct Services Supplies & Services","D3311","00:00:00","60018203_0","660.43","Revenue","20002254","GRAFTON MERCHANTING GB LTD"
"Oxford City Council","Direct Services","Direct Services Supplies & Services","D3311","00:00:00","60018204_2","767.74","Revenue","20002254","GRAFTON MERCHANTING GB LTD"
"Oxford City Council","Direct Services","Direct Services Supplies & Services","D3311","00:00:00","60018238_2","660.43","Revenue","20002254","GRAFTON MERCHANTING GB LTD"
"Oxford City Council","Direct Services","Materials","D3021","00:00:00","60018241_0","1119.3","Revenue","20002254","GRAFTON MERCHANTING GB LTD"
"Oxford City Council","Direct Services","Direct Services Supplies & Services","D3311","00:00:00","60018249_0","519.35","Revenue","20002254","GRAFTON MERCHANTING GB LTD"
"Oxford City Council","Direct Services","Direct Services Supplies & Services","D3311","00:00:00","60018250_2","591.87","Revenue","20002254","GRAFTON MERCHANTING GB LTD"
"Oxford City Council","Direct Services","Direct Services Supplies & Services","D3311","00:00:00","60018253_0","644.83","Revenue","20002254","GRAFTON MERCHANTING GB LTD"
"Oxford City Council","Direct Services","Direct Services Supplies & Services","D3311","00:00:00","60018254_2","635.08","Revenue","20002254","GRAFTON MERCHANTING GB LTD"
"Oxford City Council","Direct Services","Direct Services Supplies & Services","D3311","00:00:00","60018309_0","863.97","Revenue","20002254","GRAFTON MERCHANTING GB LTD"
"Oxford City Council","Direct Services","Materials","D3021","00:00:00","60018312_1","4001.65","Revenue","20002254","GRAFTON MERCHANTING GB LTD"
"Oxford City Council","Direct Services","Direct Services Supplies & Services","D3311","00:00:00","60018438_1","524.29","Revenue","20002254","GRAFTON MERCHANTING GB LTD"
"Oxford City Council","Direct Services","Direct Services Supplies & Services","D3311","00:00:00","60018617_1","862","Revenue","20002254","GRAFTON MERCHANTING GB LTD"
"Oxford City Council","Direct Services","Direct Services Supplies & Services","D3311","00:00:00","60018619_1","760.56","Revenue","20002254","GRAFTON MERCHANTING GB LTD"
"Oxford City Council","Direct Services","Direct Services Supplies & Services","D3311","00:00:00","60018620_1","660.43","Revenue","20002254","GRAFTON MERCHANTING GB LTD"
"Oxford City Council","Direct Services","Direct Services Supplies & Services","D3311","00:00:00","60018621_1","660.43","Revenue","20002254","GRAFTON MERCHANTING GB LTD"
"Oxford City Council","Direct Services","Direct Services Supplies & Services","D3311","00:00:00","60018622_1","660.43","Revenue","20002254","GRAFTON MERCHANTING GB LTD"
"Oxford City Council","Direct Services","Direct Services Supplies & Services","D3311","00:00:00","60018623_1","1272.27","Revenue","20002254","GRAFTON MERCHANTING GB LTD"
"Oxford City Council","Direct Services","Direct Services Supplies & Services","D3311","00:00:00","60018624_1","725.32","Revenue","20002254","GRAFTON MERCHANTING GB LTD"
"Oxford City Council","Direct Services","Direct Services Supplies & Services","D3311","00:00:00","60018625_1","1228.43","Revenue","20002254","GRAFTON MERCHANTING GB LTD"
"Oxford City Council","Direct Services","Direct Services Supplies & Services","D3311","00:00:00","60018626_1","672.93","Revenue","20002254","GRAFTON MERCHANTING GB LTD"
"Oxford City Council","Direct Services","Direct Services Supplies & Services","D3311","00:00:00","60018627_1","660.43","Revenue","20002254","GRAFTON MERCHANTING GB LTD"
"Oxford City Council","Direct Services","Materials","D3021","00:00:00","60018673_1","1625.44","Revenue","20002254","GRAFTON MERCHANTING GB LTD"
"Oxford City Council","Direct Services","Materials","D3021","00:00:00","60018677_1","1748.16","Revenue","20002254","GRAFTON MERCHANTING GB LTD"
"Oxford City Council","Direct Services","Materials","D3021","00:00:00","60018688_1","4324.03","Revenue","20002254","GRAFTON MERCHANTING GB LTD"
"Oxford City Council","Direct Services","Materials","D3021","00:00:00","60018689_1","1481.13","Revenue","20002254","GRAFTON MERCHANTING GB LTD"
"Oxford City Council","Direct Services","Direct Services Supplies & Services","D3311","00:00:00","60018693_1","660.43","Revenue","20002254","GRAFTON MERCHANTING GB LTD"
"Oxford City Council","Direct Services","Direct Services Supplies & Services","D3311","00:00:00","60018694_1","660.43","Revenue","20002254","GRAFTON MERCHANTING GB LTD"
"Oxford City Council","Direct Services","Direct Services Supplies & Services","D3311","00:00:00","60018695_1","660.43","Revenue","20002254","GRAFTON MERCHANTING GB LTD"
"Oxford City Council","Direct Services","Direct Services Supplies & Services","D3311","00:00:00","60018696_1","660.43","Revenue","20002254","GRAFTON MERCHANTING GB LTD"
"Oxford City Council","Direct Services","Direct Services Supplies & Services","D3311","00:00:00","60018697_1","737.29","Revenue","20002254","GRAFTON MERCHANTING GB LTD"
"Oxford City Council","Direct Services","Direct Services Supplies & Services","D3311","00:00:00","60018719_1","660.43","Revenue","20002254","GRAFTON MERCHANTING GB LTD"
"Oxford City Council","Direct Services","Direct Services Supplies & Services","D3311","00:00:00","60018721_1","660.43","Revenue","20002254","GRAFTON MERCHANTING GB LTD"
"Oxford City Council","Direct Services","Materials","D3021","00:00:00","60018724_1","1645.78","Revenue","20002254","GRAFTON MERCHANTING GB LTD"
"Oxford City Council","Direct Services","Direct Services Supplies & Services","D3311","00:00:00","60018753_1","641.36","Revenue","20002254","GRAFTON MERCHANTING GB LTD"
"Oxford City Council","Direct Services","Direct Services Supplies & Services","D3311","00:00:00","60018754_1","660.43","Revenue","20002254","GRAFTON MERCHANTING GB LTD"
"Oxford City Council","Direct Services","Direct Services Supplies & Services","D3311","00:00:00","60018755_1","660.43","Revenue","20002254","GRAFTON MERCHANTING GB LTD"
"Oxford City Council","Direct Services","Direct Services Supplies & Services","D3311","00:00:00","60018756_1","820.99","Revenue","20002254","GRAFTON MERCHANTING GB LTD"
"Oxford City Council","Direct Services","Direct Services Supplies & Services","D3311","00:00:00","60018757_1","829.24","Revenue","20002254","GRAFTON MERCHANTING GB LTD"
"Oxford City Council","Direct Services","Materials","D3021","00:00:00","60018758_1","2635.25","Revenue","20002254","GRAFTON MERCHANTING GB LTD"
"Oxford City Council","Direct Services","Direct Services Supplies & Services","D3311","00:00:00","60018969_1","1391.68","Revenue","20002254","GRAFTON MERCHANTING GB LTD"
"Oxford City Council","Direct Services","Direct Services Supplies & Services","D3311","00:00:00","60018970_1","1303.08","Revenue","20002254","GRAFTON MERCHANTING GB LTD"
"Oxford City Council","Direct Services","Category 'B' Stores","D3022   ","00:00:00","60019026_2","956.54","Revenue","20002254","GRAFTON MERCHANTING GB LTD"
"Oxford City Council","Direct Services","Direct Services Supplies & Services","D3311   ","00:00:00","60019032_2","1372.94","Revenue","20002254","GRAFTON MERCHANTING GB LTD"
"Oxford City Council","Direct Services","Direct Services Supplies & Services","D3311   ","00:00:00","60019034_2","701.54","Revenue","20002254","GRAFTON MERCHANTING GB LTD"
"Oxford City Council","Direct Services","Materials","D3021   ","00:00:00","60019035_0","1709.11","Revenue","20002254","GRAFTON MERCHANTING GB LTD"
"Oxford City Council","Direct Services","Materials","D3021   ","00:00:00","60019036_2","3949.34","Revenue","20002254","GRAFTON MERCHANTING GB LTD"
"Oxford City Council","Direct Services","Direct Services Supplies & Services","D3311   ","00:00:00","60019045_0","828.25","Revenue","20002254","GRAFTON MERCHANTING GB LTD"
"Oxford City Council","Direct Services","Direct Services Supplies & Services","D3311   ","00:00:00","60019047_0","716.94","Revenue","20002254","GRAFTON MERCHANTING GB LTD"
"Oxford City Council","Direct Services","Direct Services Supplies & Services","D3311   ","00:00:00","60019049_0","1471.07","Revenue","20002254","GRAFTON MERCHANTING GB LTD"
"Oxford City Council","Direct Services","Direct Services Supplies & Services","D3311   ","00:00:00","60019051_0","716.94","Revenue","20002254","GRAFTON MERCHANTING GB LTD"
"Oxford City Council","Direct Services","Direct Services Supplies & Services","D3311   ","00:00:00","60019053_0","716.94","Revenue","20002254","GRAFTON MERCHANTING GB LTD"
"Oxford City Council","Direct Services","Materials","D3021   ","00:00:00","60019057_0","4006.61","Revenue","20002254","GRAFTON MERCHANTING GB LTD"
"Oxford City Council","Direct Services","Direct Services Supplies & Services","D3311   ","00:00:00","60019059_0","1183.55","Revenue","20002254","GRAFTON MERCHANTING GB LTD"
"Oxford City Council","Direct Services","Direct Services Supplies & Services","D3311   ","00:00:00","60019063_0","819.47","Revenue","20002254","GRAFTON MERCHANTING GB LTD"
"Oxford City Council","Direct Services","Materials","D3021   ","00:00:00","60019074_2","3805.33","Revenue","20002254","GRAFTON MERCHANTING GB LTD"
"Oxford City Council","Direct Services","Materials","D3021   ","00:00:00","60019078_2","9533.33","Revenue","20002254","GRAFTON MERCHANTING GB LTD"
"Oxford City Council","Direct Services","Materials","D3021   ","00:00:00","60019124_2","2789.3","Revenue","20002254","GRAFTON MERCHANTING GB LTD"
"Oxford City Council","Direct Services","Materials","D3021   ","00:00:00","60019128_2","1204.7","Revenue","20002254","GRAFTON MERCHANTING GB LTD"
"Oxford City Council","Direct Services","Direct Services Supplies & Services","D3311   ","00:00:00","60019131_0","660.43","Revenue","20002254","GRAFTON MERCHANTING GB LTD"
"Oxford City Council","Direct Services","Direct Services Supplies & Services","D3311   ","00:00:00","60019132_1","578.81","Revenue","20002254","GRAFTON MERCHANTING GB LTD"
"Oxford City Council","Direct Services","Direct Services Supplies & Services","D3311   ","00:00:00","60019133_1","513.09","Revenue","20002254","GRAFTON MERCHANTING GB LTD"
"Oxford City Council","Direct Services","Materials","D3021   ","00:00:00","60019135_1","660.72","Revenue","20002254","GRAFTON MERCHANTING GB LTD"
"Oxford City Council","Direct Services","Direct Services Supplies & Services","D3311   ","00:00:00","60019136_1","1166.92","Revenue","20002254","GRAFTON MERCHANTING GB LTD"
"Oxford City Council","Direct Services","Direct Services Supplies & Services","D3311   ","00:00:00","60019137_1","660.43","Revenue","20002254","GRAFTON MERCHANTING GB LTD"
"Oxford City Council","Direct Services","Direct Services Supplies & Services","D3311   ","00:00:00","60019138_1","747.04","Revenue","20002254","GRAFTON MERCHANTING GB LTD"
"Oxford City Council","Direct Services","Direct Services Supplies & Services","D3311   ","00:00:00","60019139_1","660.43","Revenue","20002254","GRAFTON MERCHANTING GB LTD"
"Oxford City Council","Direct Services","Direct Services Supplies & Services","D3311   ","00:00:00","60019140_1","767.74","Revenue","20002254","GRAFTON MERCHANTING GB LTD"
"Oxford City Council","Direct Services","Direct Services Supplies & Services","D3311   ","00:00:00","60019164_1","831.92","Revenue","20002254","GRAFTON MERCHANTING GB LTD"
"Oxford City Council","Direct Services","Materials","D3021   ","00:00:00","60019169_1","3288.55","Revenue","20002254","GRAFTON MERCHANTING GB LTD"
"Oxford City Council","Direct Services","Direct Services Supplies & Services","D3311   ","00:00:00","60019170_1","660.43","Revenue","20002254","GRAFTON MERCHANTING GB LTD"
"Oxford City Council","Direct Services","Direct Services Supplies & Services","D3311   ","00:00:00","60019171_1","725.32","Revenue","20002254","GRAFTON MERCHANTING GB LTD"
"Oxford City Council","Direct Services","Direct Services Supplies & Services","D3311   ","00:00:00","60019172_1","660.43","Revenue","20002254","GRAFTON MERCHANTING GB LTD"
"Oxford City Council","Direct Services","Direct Services Supplies & Services","D3311   ","00:00:00","60019173_1","701.54","Revenue","20002254","GRAFTON MERCHANTING GB LTD"
"Oxford City Council","Direct Services","Direct Services Supplies & Services","D3311   ","00:00:00","60019176_1","692.67","Revenue","20002254","GRAFTON MERCHANTING GB LTD"
"Oxford City Council","Direct Services","Materials","D3021   ","00:00:00","60019194_1","3008.45","Revenue","20002254","GRAFTON MERCHANTING GB LTD"
"Oxford City Council","Direct Services","Direct Services Supplies & Services","D3311   ","00:00:00","60019198_1","660.43","Revenue","20002254","GRAFTON MERCHANTING GB LTD"
"Oxford City Council","Direct Services","Direct Services Supplies & Services","D3311   ","00:00:00","60019199_1","660.43","Revenue","20002254","GRAFTON MERCHANTING GB LTD"
"Oxford City Council","Direct Services","Direct Services Supplies & Services","D3311   ","00:00:00","60019201_1","750.53","Revenue","20002254","GRAFTON MERCHANTING GB LTD"
"Oxford City Council","Direct Services","Direct Services Supplies & Services","D3311   ","00:00:00","60019202_1","839.63","Revenue","20002254","GRAFTON MERCHANTING GB LTD"
"Oxford City Council","Direct Services","Direct Services Supplies & Services","D3311   ","00:00:00","60019203_1","660.43","Revenue","20002254","GRAFTON MERCHANTING GB LTD"
"Oxford City Council","Direct Services","Direct Services Supplies & Services","D3311   ","00:00:00","60019204_1","660.43","Revenue","20002254","GRAFTON MERCHANTING GB LTD"
"Oxford City Council","Direct Services","Direct Services Supplies & Services","D3311   ","00:00:00","60019205_1","847.77","Revenue","20002254","GRAFTON MERCHANTING GB LTD"
"Oxford City Council","Direct Services","Direct Services Supplies & Services","D3311   ","00:00:00","60019206_1","660.43","Revenue","20002254","GRAFTON MERCHANTING GB LTD"
"Oxford City Council","Direct Services","Direct Services Supplies & Services","D3311   ","00:00:00","60019207_1","660.43","Revenue","20002254","GRAFTON MERCHANTING GB LTD"
"Oxford City Council","Direct Services","Materials","D3021   ","00:00:00","60019210_1","777.65","Revenue","20002254","GRAFTON MERCHANTING GB LTD"
"Oxford City Council","Direct Services","Direct Services Supplies & Services","D3311   ","00:00:00","60019389_0","558.91","Revenue","20002254","GRAFTON MERCHANTING GB LTD"
"Oxford City Council","Direct Services","Materials","D3021   ","00:00:00","60019472_2","528.48","Revenue","20002254","GRAFTON MERCHANTING GB LTD"
"Oxford City Council","Direct Services","Materials","D3021   ","00:00:00","60019473_0","2886.37","Revenue","20002254","GRAFTON MERCHANTING GB LTD"
"Oxford City Council","Direct Services","Direct Services Supplies & Services","D3311   ","00:00:00","60019481_0","660.43","Revenue","20002254","GRAFTON MERCHANTING GB LTD"
"Oxford City Council","Direct Services","Direct Services Supplies & Services","D3311   ","00:00:00","60019482_2","688.71","Revenue","20002254","GRAFTON MERCHANTING GB LTD"
"Oxford City Council","Direct Services","Direct Services Supplies & Services","D3311   ","00:00:00","60019483_0","660.43","Revenue","20002254","GRAFTON MERCHANTING GB LTD"
"Oxford City Council","Direct Services","Direct Services Supplies & Services","D3311   ","00:00:00","60019484_2","911.36","Revenue","20002254","GRAFTON MERCHANTING GB LTD"
"Oxford City Council","Direct Services","Direct Services Supplies & Services","D3311   ","00:00:00","60019485_0","660.43","Revenue","20002254","GRAFTON MERCHANTING GB LTD"
"Oxford City Council","Direct Services","Direct Services Supplies & Services","D3311   ","00:00:00","60019486_2","681.64","Revenue","20002254","GRAFTON MERCHANTING GB LTD"
"Oxford City Council","Direct Services","Materials","D3021   ","00:00:00","60019489_0","1223.56","Revenue","20002254","GRAFTON MERCHANTING GB LTD"
"Oxford City Council","Direct Services","Materials","D3021   ","00:00:00","60019505_0","889.6","Revenue","20002254","GRAFTON MERCHANTING GB LTD"
"Oxford City Council","Direct Services","Materials","D3021   ","00:00:00","60019508_2","1442.08","Revenue","20002254","GRAFTON MERCHANTING GB LTD"
"Oxford City Council","Direct Services","Materials","D3021   ","00:00:00","60019536_2","858.34","Revenue","20002254","GRAFTON MERCHANTING GB LTD"
"Oxford City Council","Direct Services","Materials","D3021   ","00:00:00","60019538_2","506.72","Revenue","20002254","GRAFTON MERCHANTING GB LTD"
"Oxford City Council","Direct Services","Direct Services Supplies & Services","D3311   ","00:00:00","60019539_0","1413.38","Revenue","20002254","GRAFTON MERCHANTING GB LTD"
"Oxford City Council","Direct Services","Direct Services Supplies & Services","D3311   ","00:00:00","60019540_2","660.43","Revenue","20002254","GRAFTON MERCHANTING GB LTD"
"Oxford City Council","Direct Services","Direct Services Supplies & Services","D3311   ","00:00:00","60019541_0","979.3","Revenue","20002254","GRAFTON MERCHANTING GB LTD"
"Oxford City Council","Direct Services","Direct Services Supplies & Services","D3311   ","00:00:00","60019542_2","763.91","Revenue","20002254","GRAFTON MERCHANTING GB LTD"
"Oxford City Council","Direct Services","Materials","D3021   ","00:00:00","60019750_1","2544.7","Revenue","20002254","GRAFTON MERCHANTING GB LTD"
"Oxford City Council","Direct Services","Materials","D3021   ","00:00:00","60019751_1","2164.72","Revenue","20002254","GRAFTON MERCHANTING GB LTD"
"Oxford City Council","Direct Services","Direct Services Supplies & Services","D3311   ","00:00:00","60019780_1","542.62","Revenue","20002254","GRAFTON MERCHANTING GB LTD"
"Oxford City Council","Direct Services","Materials","D3021   ","00:00:00","60019781_1","1735.69","Revenue","20002254","GRAFTON MERCHANTING GB LTD"
"Oxford City Council","Direct Services","Direct Services Supplies & Services","D3311   ","00:00:00","60019782_1","1299.19","Revenue","20002254","GRAFTON MERCHANTING GB LTD"
"Oxford City Council","Direct Services","Materials","D3021   ","00:00:00","60019783_1","4626.02","Revenue","20002254","GRAFTON MERCHANTING GB LTD"
"Oxford City Council","Direct Services","Direct Services Supplies & Services","D3311   ","00:00:00","60019791_1","759.97","Revenue","20002254","GRAFTON MERCHANTING GB LTD"
"Oxford City Council","Direct Services","Direct Services Supplies & Services","D3311   ","00:00:00","60019792_1","697.49","Revenue","20002254","GRAFTON MERCHANTING GB LTD"
"Oxford City Council","Direct Services","Direct Services Supplies & Services","D3311   ","00:00:00","60019793_1","897.28","Revenue","20002254","GRAFTON MERCHANTING GB LTD"
"Oxford City Council","Direct Services","Direct Services Supplies & Services","D3311   ","00:00:00","60019794_1","697.49","Revenue","20002254","GRAFTON MERCHANTING GB LTD"
"Oxford City Council","Direct Services","Direct Services Supplies & Services","D3311   ","00:00:00","60019795_1","1230.46","Revenue","20002254","GRAFTON MERCHANTING GB LTD"
"Oxford City Council","Direct Services","Materials","D3021   ","00:00:00","60019796_1","1753.76","Revenue","20002254","GRAFTON MERCHANTING GB LTD"
"Oxford City Council","Direct Services","Materials","D3021   ","00:00:00","60019797_1","1049","Revenue","20002254","GRAFTON MERCHANTING GB LTD"
"Oxford City Council","Direct Services","Direct Services Supplies & Services","D3311   ","00:00:00","60019813_1","656.38","Revenue","20002254","GRAFTON MERCHANTING GB LTD"
"Oxford City Council","Direct Services","Direct Services Supplies & Services","D3311   ","00:00:00","60019814_1","656.38","Revenue","20002254","GRAFTON MERCHANTING GB LTD"
"Oxford City Council","Direct Services","Materials","D3021   ","00:00:00","60019843_1","4413.49","Revenue","20002254","GRAFTON MERCHANTING GB LTD"
"Oxford City Council","Direct Services","Direct Services Supplies & Services","D3311   ","00:00:00","60019942_1","660.43","Revenue","20002254","GRAFTON MERCHANTING GB LTD"
"Oxford City Council","Direct Services","Direct Services Supplies & Services","D3311   ","00:00:00","60019943_1","692.06","Revenue","20002254","GRAFTON MERCHANTING GB LTD"
"Oxford City Council","Direct Services","Direct Services Supplies & Services","D3311   ","00:00:00","60019945_1","716.94","Revenue","20002254","GRAFTON MERCHANTING GB LTD"
"Oxford City Council","Direct Services","Direct Services Supplies & Services","D3311   ","00:00:00","60019947_1","860.01","Revenue","20002254","GRAFTON MERCHANTING GB LTD"
"Oxford City Council","Direct Services","Direct Services Supplies & Services","D3311   ","00:00:00","60019949_1","716.94","Revenue","20002254","GRAFTON MERCHANTING GB LTD"
"Oxford City Council","Direct Services","Direct Services Supplies & Services","D3311   ","00:00:00","60019965_1","660.43","Revenue","20002254","GRAFTON MERCHANTING GB LTD"
"Oxford City Council","Direct Services","Direct Services Supplies & Services","D3311   ","00:00:00","60020026_1","656.38","Revenue","20002254","GRAFTON MERCHANTING GB LTD"
"Oxford City Council","Direct Services","Direct Services Supplies & Services","D3311   ","00:00:00","60020029_1","656.38","Revenue","20002254","GRAFTON MERCHANTING GB LTD"
"Oxford City Council","Direct Services","Direct Services Supplies & Services","D3311   ","00:00:00","60020030_1","656.38","Revenue","20002254","GRAFTON MERCHANTING GB LTD"
"Oxford City Council","Direct Services","Direct Services Supplies & Services","D3311   ","00:00:00","60020031_1","816.94","Revenue","20002254","GRAFTON MERCHANTING GB LTD"
"Oxford City Council","Direct Services","Direct Services Supplies & Services","D3311   ","00:00:00","60020032_1","746.48","Revenue","20002254","GRAFTON MERCHANTING GB LTD"
"Oxford City Council","Direct Services","Direct Services Supplies & Services","D3311   ","00:00:00","60020033_1","701.37","Revenue","20002254","GRAFTON MERCHANTING GB LTD"
"Oxford City Council","Direct Services","Direct Services Supplies & Services","D3311   ","00:00:00","60020036_1","1437.67","Revenue","20002254","GRAFTON MERCHANTING GB LTD"
"Oxford City Council","Direct Services","Direct Services Supplies & Services","D3311   ","00:00:00","60020037_1","656.38","Revenue","20002254","GRAFTON MERCHANTING GB LTD"
"Oxford City Council","Direct Services","Direct Services Supplies & Services","D3311   ","00:00:00","60020038_1","656.38","Revenue","20002254","GRAFTON MERCHANTING GB LTD"
"Oxford City Council","Direct Services","Direct Services Supplies & Services","D3311   ","00:00:00","60020039_1","656.38","Revenue","20002254","GRAFTON MERCHANTING GB LTD"
"Oxford City Council","Direct Services","Direct Services Supplies & Services","D3311   ","00:00:00","60020040_1","756.51","Revenue","20002254","GRAFTON MERCHANTING GB LTD"
"Oxford City Council","Direct Services","Direct Services Supplies & Services","D3311   ","00:00:00","60020041_1","656.38","Revenue","20002254","GRAFTON MERCHANTING GB LTD"
"Oxford City Council","Direct Services","Direct Services Supplies & Services","D3311   ","00:00:00","60020042_1","816.94","Revenue","20002254","GRAFTON MERCHANTING GB LTD"
"Oxford City Council","Direct Services","Direct Services Supplies & Services","D3311   ","00:00:00","60020050_1","756.51","Revenue","20002254","GRAFTON MERCHANTING GB LTD"
"Oxford City Council","Direct Services","Materials","D3021   ","00:00:00","60020052_1","1687.88","Revenue","20002254","GRAFTON MERCHANTING GB LTD"
"Oxford City Council","Direct Services","Direct Services Supplies & Services","D3311   ","00:00:00","60020063_1","636","Revenue","20002254","GRAFTON MERCHANTING GB LTD"
"Oxford City Council","Direct Services","Direct Services Supplies & Services","D3311   ","00:00:00","60020066_1","833.72","Revenue","20002254","GRAFTON MERCHANTING GB LTD"
"Oxford City Council","Direct Services","Direct Services Supplies & Services","D3311   ","00:00:00","60020067_1","656.38","Revenue","20002254","GRAFTON MERCHANTING GB LTD"
"Oxford City Council","Direct Services","Direct Services Supplies & Services","D3311   ","00:00:00","60020068_1","656.38","Revenue","20002254","GRAFTON MERCHANTING GB LTD"
"Oxford City Council","Direct Services","Direct Services Supplies & Services","D3311   ","00:00:00","60020092_1","631.63","Revenue","20002254","GRAFTON MERCHANTING GB LTD"
"Oxford City Council","Direct Services","Direct Services Supplies & Services","D3311   ","00:00:00","60020112_1","1263.08","Revenue","20002254","GRAFTON MERCHANTING GB LTD"
"Oxford City Council","Direct Services","Direct Services Supplies & Services","D3311   ","00:00:00","60020116_1","656.38","Revenue","20002254","GRAFTON MERCHANTING GB LTD"
"Oxford City Council","Direct Services","Direct Services Supplies & Services","D3311   ","00:00:00","60020117_1","656.38","Revenue","20002254","GRAFTON MERCHANTING GB LTD"
"Oxford City Council","Direct Services","Direct Services Supplies & Services","D3311   ","00:00:00","60020118_1","656.38","Revenue","20002254","GRAFTON MERCHANTING GB LTD"
"Oxford City Council","Direct Services","Materials","D3021   ","00:00:00","60020119_1","1741.62","Revenue","20002254","GRAFTON MERCHANTING GB LTD"
"Oxford City Council","Direct Services","Direct Services Supplies & Services","D3311   ","00:00:00","60020120_1","1368.81","Revenue","20002254","GRAFTON MERCHANTING GB LTD"
"Oxford City Council","Direct Services","Materials","D3021   ","00:00:00","60020124_1","1331.66","Revenue","20002254","GRAFTON MERCHANTING GB LTD"
"Oxford City Council","Direct Services","Direct Services Supplies & Services","D3311   ","00:00:00","60020125_1","763.69","Revenue","20002254","GRAFTON MERCHANTING GB LTD"
"Oxford City Council","Direct Services","Direct Services Supplies & Services","D3311   ","00:00:00","60020126_1","656.38","Revenue","20002254","GRAFTON MERCHANTING GB LTD"
"Oxford City Council","Direct Services","Direct Services Supplies & Services","D3311   ","00:00:00","60020127_1","816.94","Revenue","20002254","GRAFTON MERCHANTING GB LTD"
"Oxford City Council","Direct Services","Direct Services Supplies & Services","D3311   ","00:00:00","60020128_1","544.22","Revenue","20002254","GRAFTON MERCHANTING GB LTD"
"Oxford City Council","Direct Services","Materials","D3021   ","00:00:00","60020129_1","1180.45","Revenue","20002254","GRAFTON MERCHANTING GB LTD"
"Oxford City Council","Direct Services","Direct Services Supplies & Services","D3311   ","00:00:00","60020130_1","507.75","Revenue","20002254","GRAFTON MERCHANTING GB LTD"
"Oxford City Council","Direct Services","Direct Services Supplies & Services","D3311   ","00:00:00","60020132_1","619.87","Revenue","20002254","GRAFTON MERCHANTING GB LTD"
"Oxford City Council","Direct Services","Direct Services Supplies & Services","D3311   ","00:00:00","60020136_1","643.25","Revenue","20002254","GRAFTON MERCHANTING GB LTD"
"Oxford City Council","Direct Services","Direct Services Supplies & Services","D3311   ","00:00:00","60020137_1","639.79","Revenue","20002254","GRAFTON MERCHANTING GB LTD"
"Oxford City Council","Direct Services","Materials","D3021   ","00:00:00","60020138_1","2028.62","Revenue","20002254","GRAFTON MERCHANTING GB LTD"
"Oxford City Council","Direct Services","Direct Services Supplies & Services","D3311   ","00:00:00","60020139_1","618.36","Revenue","20002254","GRAFTON MERCHANTING GB LTD"
"Oxford City Council","Direct Services","Direct Services Supplies & Services","D3311   ","00:00:00","60020256_2","1314.54","Revenue","20002254","GRAFTON MERCHANTING GB LTD"
"Oxford City Council","Direct Services","Materials","D3021   ","00:00:00","60020257_0","3534.48","Revenue","20002254","GRAFTON MERCHANTING GB LTD"
"Oxford City Council","Direct Services","Materials","D3021   ","00:00:00","60020259_0","4655.27","Revenue","20002254","GRAFTON MERCHANTING GB LTD"
"Oxford City Council","Direct Services","Direct Services Supplies & Services","D3311   ","00:00:00","60020264_2","701.54","Revenue","20002254","GRAFTON MERCHANTING GB LTD"
"Oxford City Council","Direct Services","Direct Services Supplies & Services","D3311   ","00:00:00","60020274_2","979.3","Revenue","20002254","GRAFTON MERCHANTING GB LTD"
"Oxford City Council","Direct Services","Direct Services Supplies & Services","D3311   ","00:00:00","60020275_0","985.79","Revenue","20002254","GRAFTON MERCHANTING GB LTD"
"Oxford City Council","Direct Services","Materials","D3021   ","00:00:00","60020279_0","5639.25","Revenue","20002254","GRAFTON MERCHANTING GB LTD"
"Oxford City Council","Direct Services","Materials","D3021   ","00:00:00","60020281_0","3015.2","Revenue","20002254","GRAFTON MERCHANTING GB LTD"
"Oxford City Council","Direct Services","Materials","D3021   ","00:00:00","60020393_0","1359.78","Revenue","20002254","GRAFTON MERCHANTING GB LTD"
"Oxford City Council","Direct Services","Direct Services Supplies & Services","D3311   ","00:00:00","60020398_2","656.38","Revenue","20002254","GRAFTON MERCHANTING GB LTD"
"Oxford City Council","Direct Services","Direct Services Supplies & Services","D3311   ","00:00:00","60020399_0","656.38","Revenue","20002254","GRAFTON MERCHANTING GB LTD"
"Oxford City Council","Direct Services","Direct Services Supplies & Services","D3311   ","00:00:00","60020400_2","656.38","Revenue","20002254","GRAFTON MERCHANTING GB LTD"
"Oxford City Council","Direct Services","Direct Services Supplies & Services","D3311   ","00:00:00","60020401_0","697.49","Revenue","20002254","GRAFTON MERCHANTING GB LTD"
"Oxford City Council","Direct Services","Direct Services Supplies & Services","D3311   ","00:00:00","60020402_2","701.37","Revenue","20002254","GRAFTON MERCHANTING GB LTD"
"Oxford City Council","Direct Services","Direct Services Supplies & Services","D3311   ","00:00:00","60020403_0","656.38","Revenue","20002254","GRAFTON MERCHANTING GB LTD"
"Oxford City Council","Direct Services","Direct Services Supplies & Services","D3311   ","00:00:00","60020404_2","656.38","Revenue","20002254","GRAFTON MERCHANTING GB LTD"
"Oxford City Council","Direct Services","Direct Services Supplies & Services","D3311   ","00:00:00","60020406_2","775.15","Revenue","20002254","GRAFTON MERCHANTING GB LTD"
"Oxford City Council","Direct Services","Direct Services Supplies & Services","D3311   ","00:00:00","60020407_0","775.15","Revenue","20002254","GRAFTON MERCHANTING GB LTD"
"Oxford City Council","Direct Services","Direct Services Supplies & Services","D3311   ","00:00:00","60020410_2","777.72","Revenue","20002254","GRAFTON MERCHANTING GB LTD"
"Oxford City Council","Direct Services","Direct Services Supplies & Services","D3311   ","00:00:00","60020411_0","967.8","Revenue","20002254","GRAFTON MERCHANTING GB LTD"
"Oxford City Council","Direct Services","Direct Services Supplies & Services","D3311   ","00:00:00","60020412_2","786.25","Revenue","20002254","GRAFTON MERCHANTING GB LTD"
"Oxford City Council","Direct Services","Direct Services Supplies & Services","D3311   ","00:00:00","60020413_0","656.38","Revenue","20002254","GRAFTON MERCHANTING GB LTD"
"Oxford City Council","Direct Services","Direct Services Supplies & Services","D3311   ","00:00:00","60020414_2","701.37","Revenue","20002254","GRAFTON MERCHANTING GB LTD"
"Oxford City Council","Direct Services","Direct Services Supplies & Services","D3311   ","00:00:00","60020417_0","609.62","Revenue","20002254","GRAFTON MERCHANTING GB LTD"
"Oxford City Council","Direct Services","Direct Services Supplies & Services","D3311   ","00:00:00","60020419_0","523.81","Revenue","20002254","GRAFTON MERCHANTING GB LTD"
"Oxford City Council","Direct Services","Direct Services Supplies & Services","D3311   ","00:00:00","60020420_2","554.75","Revenue","20002254","GRAFTON MERCHANTING GB LTD"
"Oxford City Council","Direct Services","Materials","D3021   ","00:00:00","60020423_0","1132.33","Revenue","20002254","GRAFTON MERCHANTING GB LTD"
"Oxford City Council","Direct Services","Direct Services Supplies & Services","D3311   ","00:00:00","60020428_2","691.08","Revenue","20002254","GRAFTON MERCHANTING GB LTD"
"Oxford City Council","Direct Services","Direct Services Supplies & Services","D3311   ","00:00:00","60020431_0","656.38","Revenue","20002254","GRAFTON MERCHANTING GB LTD"
"Oxford City Council","Direct Services","Direct Services Supplies & Services","D3311   ","00:00:00","60020432_2","660.96","Revenue","20002254","GRAFTON MERCHANTING GB LTD"
"Oxford City Council","Direct Services","Direct Services Supplies & Services","D3311   ","00:00:00","60020433_0","716.81","Revenue","20002254","GRAFTON MERCHANTING GB LTD"
"Oxford City Council","Direct Services","Direct Services Supplies & Services","D3311   ","00:00:00","60020434_2","656.38","Revenue","20002254","GRAFTON MERCHANTING GB LTD"
"Oxford City Council","Direct Services","Direct Services Supplies & Services","D3311   ","00:00:00","60020435_0","656.38","Revenue","20002254","GRAFTON MERCHANTING GB LTD"
"Oxford City Council","Direct Services","Direct Services Supplies & Services","D3311   ","00:00:00","60020436_2","656.38","Revenue","20002254","GRAFTON MERCHANTING GB LTD"
"Oxford City Council","Direct Services","Materials","D3021   ","00:00:00","60020437_0","979.92","Revenue","20002254","GRAFTON MERCHANTING GB LTD"
"Oxford City Council","Direct Services","Materials","D3021   ","00:00:00","60020442_1","1638.07","Revenue","20002254","GRAFTON MERCHANTING GB LTD"
"Oxford City Council","Direct Services","Direct Services Supplies & Services","D3311   ","00:00:00","60020464_1","528.67","Revenue","20002254","GRAFTON MERCHANTING GB LTD"
"Oxford City Council","Direct Services","Direct Services Supplies & Services","D3311   ","00:00:00","60020469_1","694.49","Revenue","20002254","GRAFTON MERCHANTING GB LTD"
"Oxford City Council","Direct Services","Materials","D3021   ","00:00:00","60020505_0","6217.42","Revenue","20002254","GRAFTON MERCHANTING GB LTD"
"Oxford City Council","Direct Services","Materials","D3021   ","00:00:00","60020521_1","953.8","Revenue","20002254","GRAFTON MERCHANTING GB LTD"
"Oxford City Council","Direct Services","Materials","D3021   ","00:00:00","60020621_0","10392.8","Revenue","20002254","GRAFTON MERCHANTING GB LTD"
"Oxford City Council","Direct Services","Materials","D3021   ","00:00:00","60020623_0","12957.55","Revenue","20002254","GRAFTON MERCHANTING GB LTD"
"Oxford City Council","Direct Services","Direct Services Supplies & Services","D3311   ","00:00:00","60020776_1","731.51","Revenue","20002254","GRAFTON MERCHANTING GB LTD"
"Oxford City Council","Direct Services","Direct Services Supplies & Services","D3311   ","00:00:00","60020777_1","752.44","Revenue","20002254","GRAFTON MERCHANTING GB LTD"
"Oxford City Council","Direct Services","Direct Services Supplies & Services","D3311   ","00:00:00","60020778_1","545.98","Revenue","20002254","GRAFTON MERCHANTING GB LTD"
"Oxford City Council","Direct Services","Direct Services Supplies & Services","D3311   ","00:00:00","60020779_1","684.35","Revenue","20002254","GRAFTON MERCHANTING GB LTD"
"Oxford City Council","Direct Services","Direct Services Supplies & Services","D3311   ","00:00:00","60020781_1","782.99","Revenue","20002254","GRAFTON MERCHANTING GB LTD"
"Oxford City Council","Direct Services","Direct Services Supplies & Services","D3311   ","00:00:00","60020782_1","595.1","Revenue","20002254","GRAFTON MERCHANTING GB LTD"
"Oxford City Council","Direct Services","Materials","D3021   ","00:00:00","60020784_1","520.53","Revenue","20002254","GRAFTON MERCHANTING GB LTD"
"Oxford City Council","Direct Services","Direct Services Supplies & Services","D3311   ","00:00:00","60020787_1","656.38","Revenue","20002254","GRAFTON MERCHANTING GB LTD"
"Oxford City Council","Direct Services","Direct Services Supplies & Services","D3311   ","00:00:00","60020789_1","701.37","Revenue","20002254","GRAFTON MERCHANTING GB LTD"
"Oxford City Council","Direct Services","Materials","D3021   ","00:00:00","60020790_1","4001.38","Revenue","20002254","GRAFTON MERCHANTING GB LTD"
"Oxford City Council","Direct Services","Materials","D3021   ","00:00:00","60020792_1","2719.19","Revenue","20002254","GRAFTON MERCHANTING GB LTD"
"Oxford City Council","Direct Services","Direct Services Supplies & Services","D3311   ","00:00:00","60020794_1","656.38","Revenue","20002254","GRAFTON MERCHANTING GB LTD"
"Oxford City Council","Direct Services","Direct Services Supplies & Services","D3311   ","00:00:00","60020795_1","656.38","Revenue","20002254","GRAFTON MERCHANTING GB LTD"
"Oxford City Council","Direct Services","Materials","D3021   ","00:00:00","60020798_1","2830.2","Revenue","20002254","GRAFTON MERCHANTING GB LTD"
"Oxford City Council","Direct Services","Direct Services Supplies & Services","D3311   ","00:00:00","60020799_1","701.37","Revenue","20002254","GRAFTON MERCHANTING GB LTD"
"Oxford City Council","Direct Services","Direct Services Supplies & Services","D3311   ","00:00:00","60020800_1","671.9","Revenue","20002254","GRAFTON MERCHANTING GB LTD"
"Oxford City Council","Direct Services","Direct Services Supplies & Services","D3311   ","00:00:00","60020802_1","504.34","Revenue","20002254","GRAFTON MERCHANTING GB LTD"
"Oxford City Council","Direct Services","Direct Services Supplies & Services","D3311   ","00:00:00","60020803_1","500.58","Revenue","20002254","GRAFTON MERCHANTING GB LTD"
"Oxford City Council","Direct Services","Direct Services Supplies & Services","D3311   ","00:00:00","60020804_1","604.68","Revenue","20002254","GRAFTON MERCHANTING GB LTD"
"Oxford City Council","Direct Services","Materials","D3021   ","00:00:00","60020805_1","1453.31","Revenue","20002254","GRAFTON MERCHANTING GB LTD"
"Oxford City Council","Direct Services","Materials","D3021   ","00:00:00","60020806_1","1091.18","Revenue","20002254","GRAFTON MERCHANTING GB LTD"
"Oxford City Council","Direct Services","Materials","D3021   ","00:00:00","60020807_1","3527","Revenue","20002254","GRAFTON MERCHANTING GB LTD"
"Oxford City Council","Direct Services","Materials","D3021   ","00:00:00","60020819_1","2630.29","Revenue","20002254","GRAFTON MERCHANTING GB LTD"
"Oxford City Council","Direct Services","Materials","D3021   ","00:00:00","60020821_1","620.11","Revenue","20002254","GRAFTON MERCHANTING GB LTD"
"Oxford City Council","Direct Services","Direct Services Supplies & Services","D3311   ","00:00:00","60020822_1","756.51","Revenue","20002254","GRAFTON MERCHANTING GB LTD"
"Oxford City Council","Direct Services","Direct Services Supplies & Services","D3311   ","00:00:00","60020823_1","756.51","Revenue","20002254","GRAFTON MERCHANTING GB LTD"
"Oxford City Council","Direct Services","Direct Services Supplies & Services","D3311   ","00:00:00","60020824_1","705.87","Revenue","20002254","GRAFTON MERCHANTING GB LTD"
"Oxford City Council","Direct Services","Direct Services Supplies & Services","D3311   ","00:00:00","60020840_1","656.38","Revenue","20002254","GRAFTON MERCHANTING GB LTD"
"Oxford City Council","Direct Services","Direct Services Supplies & Services","D3311   ","00:00:00","60020841_1","816.94","Revenue","20002254","GRAFTON MERCHANTING GB LTD"
"Oxford City Council","Direct Services","Direct Services Supplies & Services","D3311   ","00:00:00","60020842_1","763.69","Revenue","20002254","GRAFTON MERCHANTING GB LTD"
"Oxford City Council","Direct Services","Direct Services Supplies & Services","D3311   ","00:00:00","60020843_1","1412.5","Revenue","20002254","GRAFTON MERCHANTING GB LTD"
"Oxford City Council","Direct Services","Direct Services Supplies & Services","D3311   ","00:00:00","60020844_1","742.48","Revenue","20002254","GRAFTON MERCHANTING GB LTD"
"Oxford City Council","Direct Services","Direct Services Supplies & Services","D3311   ","00:00:00","60020845_1","656.38","Revenue","20002254","GRAFTON MERCHANTING GB LTD"
"Oxford City Council","Direct Services","Direct Services Supplies & Services","D3311   ","00:00:00","60020846_1","656.38","Revenue","20002254","GRAFTON MERCHANTING GB LTD"
"Oxford City Council","Direct Services","Direct Services Supplies & Services","D3311   ","00:00:00","60020847_1","656.38","Revenue","20002254","GRAFTON MERCHANTING GB LTD"
"Oxford City Council","Direct Services","Direct Services Supplies & Services","D3311   ","00:00:00","60020848_1","656.38","Revenue","20002254","GRAFTON MERCHANTING GB LTD"
"Oxford City Council","Direct Services","Materials","D3021   ","00:00:00","60020856_1","3691.62","Revenue","20002254","GRAFTON MERCHANTING GB LTD"
"Oxford City Council","Direct Services","Direct Services Supplies & Services","D3311   ","00:00:00","60020857_1","1637.88","Revenue","20002254","GRAFTON MERCHANTING GB LTD"
"Oxford City Council","Direct Services","Direct Services Supplies & Services","D3311   ","00:00:00","60020858_1","1229.29","Revenue","20002254","GRAFTON MERCHANTING GB LTD"
"Oxford City Council","Direct Services","Direct Services Supplies & Services","D3311   ","00:00:00","60020859_1","681.73","Revenue","20002254","GRAFTON MERCHANTING GB LTD"
"Oxford City Council","Direct Services","Direct Services Supplies & Services","D3311   ","00:00:00","60020860_1","656.38","Revenue","20002254","GRAFTON MERCHANTING GB LTD"
"Oxford City Council","Direct Services","Direct Services Supplies & Services","D3311   ","00:00:00","60020861_1","656.38","Revenue","20002254","GRAFTON MERCHANTING GB LTD"
"Oxford City Council","Direct Services","Direct Services Supplies & Services","D3311   ","00:00:00","60020862_1","656.38","Revenue","20002254","GRAFTON MERCHANTING GB LTD"
"Oxford City Council","Direct Services","Direct Services Supplies & Services","D3311   ","00:00:00","60020863_1","708.44","Revenue","20002254","GRAFTON MERCHANTING GB LTD"
"Oxford City Council","Direct Services","Direct Services Supplies & Services","D3311   ","00:00:00","60020864_1","705.87","Revenue","20002254","GRAFTON MERCHANTING GB LTD"
"Oxford City Council","Direct Services","Materials","D3021   ","00:00:00","60020901_0","3301.93","Revenue","20002254","GRAFTON MERCHANTING GB LTD"
"Oxford City Council","Direct Services","Materials","D3021   ","00:00:00","60020913_0","2229.42","Revenue","20002254","GRAFTON MERCHANTING GB LTD"
"Oxford City Council","Direct Services","Materials","D3021   ","00:00:00","60020979_1","528.48","Revenue","20002254","GRAFTON MERCHANTING GB LTD"
"Oxford City Council","Direct Services","Materials","D3021   ","00:00:00","60020980_2","5940.64","Revenue","20002254","GRAFTON MERCHANTING GB LTD"
"Oxford City Council","Direct Services","Direct Services Supplies & Services","D3311   ","00:00:00","60020982_2","542.3","Revenue","20002254","GRAFTON MERCHANTING GB LTD"
"Oxford City Council","Direct Services","Direct Services Supplies & Services","D3311   ","00:00:00","60020983_1","577.02","Revenue","20002254","GRAFTON MERCHANTING GB LTD"
"Oxford City Council","Direct Services","Materials","D3021   ","00:00:00","60020984_1","1098.82","Revenue","20002254","GRAFTON MERCHANTING GB LTD"
"Oxford City Council","Direct Services","Direct Services Supplies & Services","D3311   ","00:00:00","60021046_0","705.87","Revenue","20002254","GRAFTON MERCHANTING GB LTD"
"Oxford City Council","Direct Services","Materials","D3021   ","00:00:00","60021081_2","4328.82","Revenue","20002254","GRAFTON MERCHANTING GB LTD"
"Oxford City Council","Direct Services","Materials","D3021   ","00:00:00","60021153_2","1416.99","Revenue","20002254","GRAFTON MERCHANTING GB LTD"
"Oxford City Council","Direct Services","Direct Services Supplies & Services","D3311   ","00:00:00","60021159_2","1175.23","Revenue","20002254","GRAFTON MERCHANTING GB LTD"
"Oxford City Council","Direct Services","Direct Services Supplies & Services","D3311   ","00:00:00","60021160_0","697.49","Revenue","20002254","GRAFTON MERCHANTING GB LTD"
"Oxford City Council","Direct Services","Direct Services Supplies & Services","D3311   ","00:00:00","60021161_2","716.81","Revenue","20002254","GRAFTON MERCHANTING GB LTD"
"Oxford City Council","Direct Services","Direct Services Supplies & Services","D3311   ","00:00:00","60021162_0","764.76","Revenue","20002254","GRAFTON MERCHANTING GB LTD"
"Oxford City Council","Direct Services","Direct Services Supplies & Services","D3311   ","00:00:00","60021163_2","680.16","Revenue","20002254","GRAFTON MERCHANTING GB LTD"
"Oxford City Council","Direct Services","Direct Services Supplies & Services","D3311   ","00:00:00","60021164_0","656.38","Revenue","20002254","GRAFTON MERCHANTING GB LTD"
"Oxford City Council","Direct Services","Direct Services Supplies & Services","D3311   ","00:00:00","60021165_2","656.38","Revenue","20002254","GRAFTON MERCHANTING GB LTD"
"Oxford City Council","Direct Services","Direct Services Supplies & Services","D3311   ","00:00:00","60021166_0","656.38","Revenue","20002254","GRAFTON MERCHANTING GB LTD"
"Oxford City Council","Direct Services","Direct Services Supplies & Services","D3311   ","00:00:00","60021168_0","539.66","Revenue","20002254","GRAFTON MERCHANTING GB LTD"
"Oxford City Council","Direct Services","Direct Services Supplies & Services","D3311   ","00:00:00","60021197_2","1441.23","Revenue","20002254","GRAFTON MERCHANTING GB LTD"
"Oxford City Council","Direct Services","Direct Services Supplies & Services","D3311","00:00:00","60021225_1","1034.29","Revenue","20002254","GRAFTON MERCHANTING GB LTD"
"Oxford City Council","Direct Services","Direct Services Supplies & Services","D3311","00:00:00","60021226_1","813.72","Revenue","20002254","GRAFTON MERCHANTING GB LTD"
"Oxford City Council","Direct Services","Direct Services Supplies & Services","D3311","00:00:00","60021227_1","727.91","Revenue","20002254","GRAFTON MERCHANTING GB LTD"
"Oxford City Council","Direct Services","Direct Services Supplies & Services","D3311","00:00:00","60021228_1","742.48","Revenue","20002254","GRAFTON MERCHANTING GB LTD"
"Oxford City Council","Direct Services","Direct Services Supplies & Services","D3311","00:00:00","60021229_1","775.15","Revenue","20002254","GRAFTON MERCHANTING GB LTD"
"Oxford City Council","Direct Services","Materials","D3021","00:00:00","60021253_1","654.45","Revenue","20002254","GRAFTON MERCHANTING GB LTD"
"Oxford City Council","Direct Services","Materials","D3021","00:00:00","60021254_2","2264.5","Revenue","20002254","GRAFTON MERCHANTING GB LTD"
"Oxford City Council","Direct Services","Materials","D3021","00:00:00","60021256_1","2656.66","Revenue","20002254","GRAFTON MERCHANTING GB LTD"
"Oxford City Council","Direct Services","Materials","D3021","00:00:00","60021257_1","1622.66","Revenue","20002254","GRAFTON MERCHANTING GB LTD"
"Oxford City Council","Direct Services","Direct Services Supplies & Services","D3311","00:00:00","60021258_1","656.38","Revenue","20002254","GRAFTON MERCHANTING GB LTD"
"Oxford City Council","Direct Services","Direct Services Supplies & Services","D3311","00:00:00","60021259_1","3744","Revenue","20002254","GRAFTON MERCHANTING GB LTD"
"Oxford City Council","Direct Services","Direct Services Supplies & Services","D3311","00:00:00","60021260_1","1036.95","Revenue","20002254","GRAFTON MERCHANTING GB LTD"
"Oxford City Council","Direct Services","Direct Services Supplies & Services","D3311","00:00:00","60021261_1","656.38","Revenue","20002254","GRAFTON MERCHANTING GB LTD"
"Oxford City Council","Direct Services","Direct Services Supplies & Services","D3311","00:00:00","60021262_1","684.66","Revenue","20002254","GRAFTON MERCHANTING GB LTD"
"Oxford City Council","Direct Services","Direct Services Supplies & Services","D3311","00:00:00","60021263_1","696.85","Revenue","20002254","GRAFTON MERCHANTING GB LTD"
"Oxford City Council","Direct Services","Direct Services Supplies & Services","D3311","00:00:00","60021264_1","907.04","Revenue","20002254","GRAFTON MERCHANTING GB LTD"
"Oxford City Council","Direct Services","Direct Services Supplies & Services","D3311","00:00:00","60021265_1","750.46","Revenue","20002254","GRAFTON MERCHANTING GB LTD"
"Oxford City Council","Direct Services","Direct Services Supplies & Services","D3311","00:00:00","60021266_1","701.37","Revenue","20002254","GRAFTON MERCHANTING GB LTD"
"Oxford City Council","Direct Services","Direct Services Supplies & Services","D3311","00:00:00","60021267_1","705.87","Revenue","20002254","GRAFTON MERCHANTING GB LTD"
"Oxford City Council","Direct Services","Direct Services Supplies & Services","D3311","00:00:00","60021268_1","656.38","Revenue","20002254","GRAFTON MERCHANTING GB LTD"
"Oxford City Council","Direct Services","Materials","D3021","00:00:00","60021269_1","1561.27","Revenue","20002254","GRAFTON MERCHANTING GB LTD"
"Oxford City Council","Direct Services","Materials","D3021","00:00:00","60021275_1","599.92","Revenue","20002254","GRAFTON MERCHANTING GB LTD"
"Oxford City Council","Direct Services","Materials","D3021","00:00:00","60021277_1","544.88","Revenue","20002254","GRAFTON MERCHANTING GB LTD"
"Oxford City Council","Direct Services","Materials","D3021","00:00:00","60021278_1","799.7","Revenue","20002254","GRAFTON MERCHANTING GB LTD"
"Oxford City Council","Direct Services","Direct Services Supplies & Services","D3311","00:00:00","60021279_1","515.25","Revenue","20002254","GRAFTON MERCHANTING GB LTD"
"Oxford City Council","Direct Services","Direct Services Supplies & Services","D3311","00:00:00","60021280_1","629.61","Revenue","20002254","GRAFTON MERCHANTING GB LTD"
"Oxford City Council","Direct Services","Direct Services Supplies & Services","D3311","00:00:00","60021283_1","614.29","Revenue","20002254","GRAFTON MERCHANTING GB LTD"
"Oxford City Council","Direct Services","Materials","D3021","00:00:00","60021285_1","528.48","Revenue","20002254","GRAFTON MERCHANTING GB LTD"
"Oxford City Council","Direct Services","Direct Services Supplies & Services","D3311","00:00:00","60021294_1","1072.14","Revenue","20002254","GRAFTON MERCHANTING GB LTD"
"Oxford City Council","Direct Services","Direct Services Supplies & Services","D3311","00:00:00","60021295_1","677.59","Revenue","20002254","GRAFTON MERCHANTING GB LTD"
"Oxford City Council","Direct Services","Direct Services Supplies & Services","D3311","00:00:00","60021296_1","656.38","Revenue","20002254","GRAFTON MERCHANTING GB LTD"
"Oxford City Council","Direct Services","Direct Services Supplies & Services","D3311","00:00:00","60021297_1","656.38","Revenue","20002254","GRAFTON MERCHANTING GB LTD"
"Oxford City Council","Direct Services","Direct Services Supplies & Services","D3311","00:00:00","60021420_2","874.74","Revenue","20002254","GRAFTON MERCHANTING GB LTD"
"Oxford City Council","Direct Services","Direct Services Supplies & Services","D3311","00:00:00","60021421_0","816.94","Revenue","20002254","GRAFTON MERCHANTING GB LTD"
"Oxford City Council","Direct Services","Direct Services Supplies & Services","D3311","00:00:00","60021422_2","656.38","Revenue","20002254","GRAFTON MERCHANTING GB LTD"
"Oxford City Council","Direct Services","Direct Services Supplies & Services","D3311","00:00:00","60021423_0","656.38","Revenue","20002254","GRAFTON MERCHANTING GB LTD"
"Oxford City Council","Direct Services","Direct Services Supplies & Services","D3311","00:00:00","60021424_2","656.38","Revenue","20002254","GRAFTON MERCHANTING GB LTD"
"Oxford City Council","Direct Services","Direct Services Supplies & Services","D3311","00:00:00","60021425_0","775.15","Revenue","20002254","GRAFTON MERCHANTING GB LTD"
"Oxford City Council","Direct Services","Direct Services Supplies & Services","D3311","00:00:00","60021426_2","656.38","Revenue","20002254","GRAFTON MERCHANTING GB LTD"
"Oxford City Council","Direct Services","Materials","D3021","00:00:00","60021435_1","2430.4","Revenue","20002254","GRAFTON MERCHANTING GB LTD"
"Oxford City Council","Direct Services","Materials","D3021","00:00:00","60021471_1","765.35","Revenue","20002254","GRAFTON MERCHANTING GB LTD"
"Oxford City Council","Direct Services","Direct Services Supplies & Services","D3311","00:00:00","60021503_1","680.16","Revenue","20002254","GRAFTON MERCHANTING GB LTD"
"Oxford City Council","Direct Services","Direct Services Supplies & Services","D3311","00:00:00","60021523_1","668.88","Revenue","20002254","GRAFTON MERCHANTING GB LTD"
"Oxford City Council","Direct Services","Materials","D3021","00:00:00","60021542_1","3821.31","Revenue","20002254","GRAFTON MERCHANTING GB LTD"
"Oxford City Council","Direct Services","Materials","D3021","00:00:00","60021676_0","586.72","Revenue","20002254","GRAFTON MERCHANTING GB LTD"
"Oxford City Council","Direct Services","Direct Services Supplies & Services","D3311","00:00:00","60021677_2","688.11","Revenue","20002254","GRAFTON MERCHANTING GB LTD"
"Oxford City Council","Direct Services","Direct Services Supplies & Services","D3311","00:00:00","60021678_0","591.76","Revenue","20002254","GRAFTON MERCHANTING GB LTD"
"Oxford City Council","Direct Services","Direct Services Supplies & Services","D3311","00:00:00","60021687_1","1104.21","Revenue","20002254","GRAFTON MERCHANTING GB LTD"
"Oxford City Council","Direct Services","Direct Services Supplies & Services","D3311","00:00:00","60021688_1","744.29","Revenue","20002254","GRAFTON MERCHANTING GB LTD"
"Oxford City Council","Direct Services","Direct Services Supplies & Services","D3311","00:00:00","60021689_1","1444.4","Revenue","20002254","GRAFTON MERCHANTING GB LTD"
"Oxford City Council","Direct Services","Direct Services Supplies & Services","D3311","00:00:00","60021690_1","835.38","Revenue","20002254","GRAFTON MERCHANTING GB LTD"
"Oxford City Council","Direct Services","Direct Services Supplies & Services","D3311","00:00:00","60021691_1","714.86","Revenue","20002254","GRAFTON MERCHANTING GB LTD"
"Oxford City Council","Direct Services","Direct Services Supplies & Services","D3311","00:00:00","60021692_1","830.43","Revenue","20002254","GRAFTON MERCHANTING GB LTD"
"Oxford City Council","Direct Services","Direct Services Supplies & Services","D3311","00:00:00","60021693_1","697.49","Revenue","20002254","GRAFTON MERCHANTING GB LTD"
"Oxford City Council","Direct Services","Direct Services Supplies & Services","D3311","00:00:00","60021694_1","656.38","Revenue","20002254","GRAFTON MERCHANTING GB LTD"
"Oxford City Council","Direct Services","Direct Services Supplies & Services","D3311","00:00:00","60021695_1","720.33","Revenue","20002254","GRAFTON MERCHANTING GB LTD"
"Oxford City Council","Direct Services","Direct Services Supplies & Services","D3311","00:00:00","60021696_1","656.38","Revenue","20002254","GRAFTON MERCHANTING GB LTD"
"Oxford City Council","Direct Services","Materials","D3021","00:00:00","60021702_1","1313.57","Revenue","20002254","GRAFTON MERCHANTING GB LTD"
"Oxford City Council","Direct Services","Direct Services Supplies & Services","D3311","00:00:00","60021708_1","509.94","Revenue","20002254","GRAFTON MERCHANTING GB LTD"
"Oxford City Council","Direct Services","Direct Services Supplies & Services","D3311","00:00:00","60021709_1","589","Revenue","20002254","GRAFTON MERCHANTING GB LTD"
"Oxford City Council","Direct Services","Materials","D3021","00:00:00","60021710_1","3688.54","Revenue","20002254","GRAFTON MERCHANTING GB LTD"
"Oxford City Council","Direct Services","Materials","D3021","00:00:00","60021711_1","1049.29","Revenue","20002254","GRAFTON MERCHANTING GB LTD"
"Oxford City Council","Direct Services","Materials","D3021","00:00:00","60021713_1","1739.78","Revenue","20002254","GRAFTON MERCHANTING GB LTD"
"Oxford City Council","Direct Services","Materials","D3021","00:00:00","60021714_1","5201.61","Revenue","20002254","GRAFTON MERCHANTING GB LTD"
"Oxford City Council","Direct Services","Materials","D3021","00:00:00","60021716_1","937.21","Revenue","20002254","GRAFTON MERCHANTING GB LTD"
"Oxford City Council","Direct Services","Materials","D3021","00:00:00","60021886_2","1262.63","Revenue","20002254","GRAFTON MERCHANTING GB LTD"
"Oxford City Council","Direct Services","Materials","D3021","00:00:00","60021896_1","1305.33","Revenue","20002254","GRAFTON MERCHANTING GB LTD"
"Oxford City Council","Direct Services","Direct Services Supplies & Services","D3311","00:00:00","60021951_1","667.08","Revenue","20002254","GRAFTON MERCHANTING GB LTD"
"Oxford City Council","Direct Services","Direct Services Supplies & Services","D3311","00:00:00","60021952_1","793.15","Revenue","20002254","GRAFTON MERCHANTING GB LTD"
"Oxford City Council","Direct Services","Direct Services Supplies & Services","D3311","00:00:00","60021953_1","654.58","Revenue","20002254","GRAFTON MERCHANTING GB LTD"
"Oxford City Council","Direct Services","Direct Services Supplies & Services","D3311","00:00:00","60021954_1","513.9","Revenue","20002254","GRAFTON MERCHANTING GB LTD"
"Oxford City Council","Direct Services","Materials","D3021","00:00:00","60021956_1","1068.6","Revenue","20002254","GRAFTON MERCHANTING GB LTD"
"Oxford City Council","Direct Services","Direct Services Supplies & Services","D3311","00:00:00","60021961_1","656.38","Revenue","20002254","GRAFTON MERCHANTING GB LTD"
"Oxford City Council","Direct Services","Direct Services Supplies & Services","D3311","00:00:00","60021962_1","1431.71","Revenue","20002254","GRAFTON MERCHANTING GB LTD"
"Oxford City Council","Direct Services","Direct Services Supplies & Services","D3311","00:00:00","60021963_1","695.69","Revenue","20002254","GRAFTON MERCHANTING GB LTD"
"Oxford City Council","Direct Services","Direct Services Supplies & Services","D3311   ","00:00:00","60022095_2","773.35","Revenue","20002254","GRAFTON MERCHANTING GB LTD"
"Oxford City Council","Direct Services","Materials","D3021   ","00:00:00","60022098_0","1141.74","Revenue","20002254","GRAFTON MERCHANTING GB LTD"
"Oxford City Council","Direct Services","Direct Services Supplies & Services","D3311   ","00:00:00","60022099_2","706.66","Revenue","20002254","GRAFTON MERCHANTING GB LTD"
"Oxford City Council","Direct Services","Direct Services Supplies & Services","D3311   ","00:00:00","60022100_0","569.68","Revenue","20002254","GRAFTON MERCHANTING GB LTD"
"Oxford City Council","Direct Services","Direct Services Supplies & Services","D3311   ","00:00:00","60022101_2","629.42","Revenue","20002254","GRAFTON MERCHANTING GB LTD"
"Oxford City Council","Direct Services","Direct Services Supplies & Services","D3311   ","00:00:00","60022102_0","714.16","Revenue","20002254","GRAFTON MERCHANTING GB LTD"
"Oxford City Council","Direct Services","Direct Services Supplies & Services","D3311   ","00:00:00","60022103_2","576.9","Revenue","20002254","GRAFTON MERCHANTING GB LTD"
"Oxford City Council","Direct Services","Materials","D3021   ","00:00:00","60022140_1","3104.82","Revenue","20002254","GRAFTON MERCHANTING GB LTD"
"Oxford City Council","Direct Services","Materials","D3021   ","00:00:00","60022143_1","590.73","Revenue","20002254","GRAFTON MERCHANTING GB LTD"
"Oxford City Council","Direct Services","Direct Services Supplies & Services","D3311   ","00:00:00","60022146_2","1303.74","Revenue","20002254","GRAFTON MERCHANTING GB LTD"
"Oxford City Council","Direct Services","Materials","D3021   ","00:00:00","60022150_2","6885.88","Revenue","20002254","GRAFTON MERCHANTING GB LTD"
"Oxford City Council","Direct Services","Materials","D3021   ","00:00:00","60022168_2","1874.41","Revenue","20002254","GRAFTON MERCHANTING GB LTD"
"Oxford City Council","Direct Services","Materials","D3021   ","00:00:00","60022169_1","4792.59","Revenue","20002254","GRAFTON MERCHANTING GB LTD"
"Oxford City Council","Direct Services","Direct Services Supplies & Services","D3311   ","00:00:00","60022172_1","747.32","Revenue","20002254","GRAFTON MERCHANTING GB LTD"
"Oxford City Council","Direct Services","Direct Services Supplies & Services","D3311   ","00:00:00","60022173_1","654.58","Revenue","20002254","GRAFTON MERCHANTING GB LTD"
"Oxford City Council","Direct Services","Direct Services Supplies & Services","D3311   ","00:00:00","60022174_1","654.58","Revenue","20002254","GRAFTON MERCHANTING GB LTD"
"Oxford City Council","Direct Services","Direct Services Supplies & Services","D3311   ","00:00:00","60022175_1","667.08","Revenue","20002254","GRAFTON MERCHANTING GB LTD"
"Oxford City Council","Direct Services","Direct Services Supplies & Services","D3311   ","00:00:00","60022176_1","654.58","Revenue","20002254","GRAFTON MERCHANTING GB LTD"
"Oxford City Council","Direct Services","Materials","D3021   ","00:00:00","60022180_1","3261.52","Revenue","20002254","GRAFTON MERCHANTING GB LTD"
"Oxford City Council","Direct Services","Direct Services Supplies & Services","D3311   ","00:00:00","60022193_1","631.63","Revenue","20002254","GRAFTON MERCHANTING GB LTD"
"Oxford City Council","Direct Services","Direct Services Supplies & Services","D3311   ","00:00:00","60022194_1","739.55","Revenue","20002254","GRAFTON MERCHANTING GB LTD"
"Oxford City Council","Direct Services","Direct Services Supplies & Services","D3311   ","00:00:00","60022195_1","691.9","Revenue","20002254","GRAFTON MERCHANTING GB LTD"
"Oxford City Council","Direct Services","Direct Services Supplies & Services","D3311   ","00:00:00","60022196_1","1193.69","Revenue","20002254","GRAFTON MERCHANTING GB LTD"
"Oxford City Council","Direct Services","Materials","D3021   ","00:00:00","60022232_2","943.68","Revenue","20002254","GRAFTON MERCHANTING GB LTD"
"Oxford City Council","Direct Services","Direct Services Supplies & Services","D3311   ","00:00:00","60022233_0","592.03","Revenue","20002254","GRAFTON MERCHANTING GB LTD"
"Oxford City Council","Direct Services","Direct Services Supplies & Services","D3311   ","00:00:00","60022234_2","652.09","Revenue","20002254","GRAFTON MERCHANTING GB LTD"
"Oxford City Council","Direct Services","Direct Services Supplies & Services","D3311   ","00:00:00","60022235_0","591.85","Revenue","20002254","GRAFTON MERCHANTING GB LTD"
"Oxford City Council","Direct Services","Direct Services Supplies & Services","D3311   ","00:00:00","60022241_0","576.11","Revenue","20002254","GRAFTON MERCHANTING GB LTD"
"Oxford City Council","Direct Services","Direct Services Supplies & Services","D3311   ","00:00:00","60022244_1","524.12","Revenue","20002254","GRAFTON MERCHANTING GB LTD"
"Oxford City Council","Direct Services","Materials","D3021   ","00:00:00","60022248_1","1317.44","Revenue","20002254","GRAFTON MERCHANTING GB LTD"
"Oxford City Council","Direct Services","Materials","D3021   ","00:00:00","60022259_1","3096","Revenue","20002254","GRAFTON MERCHANTING GB LTD"
"Oxford City Council","Direct Services","Contract Plant Hire","C2402","00:00:00","60022050_1","600","Revenue","20002282","M&J ENGINEERS LTD"
"Oxford City Council","Direct Services","Contract Plant Hire","C2402","00:00:00","60022051_1","510","Revenue","20002282","M&J ENGINEERS LTD"
"Oxford City Council","Direct Services","Main Contractor","Y021","00:00:00","1004657_1","12786","Capital","20002296","METRIC GROUP LIMITED"
"Oxford City Council","Direct Services","Main Contractor","Y021","00:00:00","1006533_1","14160","Capital","20002296","METRIC GROUP LIMITED"
"Oxford City Council","Direct Services","Materials","D3021","00:00:00","60018404_1","527.4","Revenue","20002299","C BREWER & SONS LTD"
"Oxford City Council","Direct Services","Materials","D3021","00:00:00","60018726_1","596.16","Revenue","20002299","C BREWER & SONS LTD"
"Oxford City Council","Direct Services","Materials","D3021","00:00:00","60018737_1","2378.95","Revenue","20002299","C BREWER & SONS LTD"
"Oxford City Council","Direct Services","Materials","D3021   ","00:00:00","60019162_1","848.1","Revenue","20002299","C BREWER & SONS LTD"
"Oxford City Council","Direct Services","Materials","D3021   ","00:00:00","60020263_0","584.13","Revenue","20002299","C BREWER & SONS LTD"
"Oxford City Council","Direct Services","Materials","D3021   ","00:00:00","60021184_0","803.71","Revenue","20002299","C BREWER & SONS LTD"
"Oxford City Council","Direct Services","Materials","D3021","00:00:00","60021658_0","967.43","Revenue","20002299","C BREWER & SONS LTD"
"Oxford City Council","Direct Services","Materials","D3021","00:00:00","60021856_0","1104.19","Revenue","20002299","C BREWER & SONS LTD"
"Oxford City Council","Direct Services","Materials","D3021","00:00:00","60021861_1","1248.61","Revenue","20002299","C BREWER & SONS LTD"
"Oxford City Council","Direct Services","Materials","D3021   ","00:00:00","60022129_1","567.14","Revenue","20002299","C BREWER & SONS LTD"
"Oxford City Council","Direct Services","Materials","D3021","00:00:00","60018276_0","572.35","Revenue","20002335","OXFORD FENCING SUPPLIES"
"Oxford City Council","Direct Services","Materials","D3021","00:00:00","60018906_2","613.11","Revenue","20002347","REXEL UK LIMITED"
"Oxford City Council","Suspense","Materials","D3021","00:00:00","60019017_1","760","Revenue","20002347","REXEL UK LIMITED"
"Oxford City Council","Direct Services","Protective Clothing","D3201   ","00:00:00","60019277_1","922.48","Revenue","20002347","REXEL UK LIMITED"
"Oxford City Council","Direct Services","Materials","D3021   ","00:00:00","60019278_1","1298.64","Revenue","20002347","REXEL UK LIMITED"
"Oxford City Council","Direct Services","Materials","D3021   ","00:00:00","60019279_1","1059.25","Revenue","20002347","REXEL UK LIMITED"
"Oxford City Council","Direct Services","Tools","D3023","00:00:00","60021378_0","690.99","Revenue","20002347","REXEL UK LIMITED"
"Oxford City Council","Direct Services","Protective Clothing","D3201","00:00:00","60021389_2","568.8","Revenue","20002347","REXEL UK LIMITED"
"Oxford City Council","Direct Services","Services Maintenance (Planned)","B1103   ","00:00:00","60019731_1","1306.36","Revenue","20002351","PHS GROUP PLC"
"Oxford City Council","Direct Services","Services Maintenance (Planned)","B1103","00:00:00","60021442_1","7654.22","Revenue","20002351","PHS GROUP PLC"
"Oxford City Council","Leisure, Parks & Communities","Fertiliser & Weedkillers","D3026","00:00:00","1004796_1","1459.5","Revenue","20002370","RIGBY TAYLOR LTD"
"Oxford City Council","Leisure, Parks & Communities","Materials","D3021","00:00:00","1006399_1","835.21","Revenue","20002370","RIGBY TAYLOR LTD"
"Oxford City Council","Direct Services","Veh.maint direct purchase","D3031   ","00:00:00","47975289_2","519.52","Revenue","20002387","AEBI SCHMIDT UK LTD"
"Oxford City Council","Direct Services","Veh.maint direct purchase","D3031   ","00:00:00","47975564_2","452.15","Revenue","20002387","AEBI SCHMIDT UK LTD"
"Oxford City Council","Direct Services","Veh.maint direct purchase","D3031   ","00:00:00","47975564_3","70.21","Revenue","20002387","AEBI SCHMIDT UK LTD"
"Oxford City Council","Direct Services","Veh.maint direct purchase","D3031   ","00:00:00","47975616_1","106.16","Revenue","20002387","AEBI SCHMIDT UK LTD"
"Oxford City Council","Direct Services","Veh.maint direct purchase","D3031   ","00:00:00","47975616_2","529.47","Revenue","20002387","AEBI SCHMIDT UK LTD"
"Oxford City Council","Law and Governance","Furniture & Equipment Purchase","D3001","00:00:00","1005602_1","1824","Revenue","20002389","SHAW & SONS LTD"
"Oxford City Council","Direct Services","Sign Shop Materials","D3018   ","00:00:00","60019889_1","1147","Revenue","20002393","SIGNPOST SOLUTIONS LTD T/AS SIGNFIX"
"Oxford City Council","Leisure, Parks & Communities","General Contracted Services","D3401","00:00:00","1004795_1","975","Revenue","20002401","SOUTH OXFORDSHIRE DISTRICT COUNCIL"
"Oxford City Council","Direct Services","Electricity","B1501","00:00:00","1005182_1","1594.43","Revenue","20002402","SOUTHERN ELECTRIC PLC"
"Oxford City Council","Direct Services","Electricity","B1501","00:00:00","1005264_1","1342.69","Revenue","20002402","SOUTHERN ELECTRIC PLC"
"Oxford City Council","Customer Services","Electricity","B1501","00:00:00","1005639_1","1177.96","Revenue","20002402","SOUTHERN ELECTRIC PLC"
"Oxford City Council","Regeneration and Major Projects Team","Electricity","B1501","00:00:00","1005640_1","1051.97","Revenue","20002402","SOUTHERN ELECTRIC PLC"
"Oxford City Council","Customer Services","Electricity","B1501","00:00:00","1005685_1","737.96","Revenue","20002402","SOUTHERN ELECTRIC PLC"
"Oxford City Council","HRA","Electricity","B1501","00:00:00","1005700_1","3958.34","Revenue","20002402","SOUTHERN ELECTRIC PLC"
"Oxford City Council","Direct Services","Electricity","B1501","00:00:00","1005940_1","1651.81","Revenue","20002402","SOUTHERN ELECTRIC PLC"
"Oxford City Council","Leisure, Parks & Communities","Electricity","B1501","00:00:00","1005961_1","1732.55","Revenue","20002402","SOUTHERN ELECTRIC PLC"
"Oxford City Council","Leisure, Parks & Communities","Electricity","B1501","00:00:00","1005997_1","1105.79","Revenue","20002402","SOUTHERN ELECTRIC PLC"
"Oxford City Council","Leisure, Parks & Communities","Electricity","B1501","00:00:00","1005998_1","1162.52","Revenue","20002402","SOUTHERN ELECTRIC PLC"
"Oxford City Council","Leisure, Parks & Communities","Electricity","B1501","00:00:00","1006000_1","1166.15","Revenue","20002402","SOUTHERN ELECTRIC PLC"
"Oxford City Council","Leisure, Parks & Communities","Electricity","B1501","00:00:00","1006005_1","708.64","Revenue","20002402","SOUTHERN ELECTRIC PLC"
"Oxford City Council","Leisure, Parks & Communities","Electricity","B1501","00:00:00","1006006_1","632.25","Revenue","20002402","SOUTHERN ELECTRIC PLC"
"Oxford City Council","Direct Services","Electricity","B1501","00:00:00","1006160_1","3030.49","Revenue","20002402","SOUTHERN ELECTRIC PLC"
"Oxford City Council","Direct Services","Electricity","B1501","00:00:00","1006161_1","2262.28","Revenue","20002402","SOUTHERN ELECTRIC PLC"
"Oxford City Council","Regeneration and Major Projects Team","Electricity","B1501","00:00:00","1006167_1","1002.94","Revenue","20002402","SOUTHERN ELECTRIC PLC"
"Oxford City Council","Regeneration and Major Projects Team","Electricity","B1501","00:00:00","1006171_1","692.07","Revenue","20002402","SOUTHERN ELECTRIC PLC"
"Oxford City Council","Regeneration and Major Projects Team","Electricity","B1501","00:00:00","1006231_1","780.79","Revenue","20002402","SOUTHERN ELECTRIC PLC"
"Oxford City Council","Regeneration and Major Projects Team","Electricity","B1501","00:00:00","1006234_1","500.16","Revenue","20002402","SOUTHERN ELECTRIC PLC"
"Oxford City Council","Direct Services","Electricity","B1501","00:00:00","1006632_1","1755.08","Revenue","20002402","SOUTHERN ELECTRIC PLC"
"Oxford City Council","Direct Services","Electricity","B1501","00:00:00","1006692_1","1272.14","Revenue","20002402","SOUTHERN ELECTRIC PLC"
"Oxford City Council","Leisure, Parks & Communities","Electricity","B1501","00:00:00","1006695_1","1442.13","Revenue","20002402","SOUTHERN ELECTRIC PLC"
"Oxford City Council","Leisure, Parks & Communities","Electricity","B1501","00:00:00","1006795_1","535.41","Revenue","20002402","SOUTHERN ELECTRIC PLC"
"Oxford City Council","HRA","Electricity","B1501","00:00:00","46281165_1","645.57","Revenue","20002402","SOUTHERN ELECTRIC PLC"
"Oxford City Council","HRA","Electricity","B1501","00:00:00","46281165_2","-394.41","Revenue","20002402","SOUTHERN ELECTRIC PLC"
"Oxford City Council","HRA","Electricity","B1501","00:00:00","46281165_3","355.64","Revenue","20002402","SOUTHERN ELECTRIC PLC"
"Oxford City Council","HRA","Electricity","B1501","00:00:00","46281720_1","1368.29","Revenue","20002402","SOUTHERN ELECTRIC PLC"
"Oxford City Council","HRA","Electricity","B1501","00:00:00","46281720_10","13.84","Revenue","20002402","SOUTHERN ELECTRIC PLC"
"Oxford City Council","HRA","Electricity","B1501","00:00:00","46281720_11","1582.51","Revenue","20002402","SOUTHERN ELECTRIC PLC"
"Oxford City Council","HRA","Electricity","B1501","00:00:00","46281720_12","4551.4","Revenue","20002402","SOUTHERN ELECTRIC PLC"
"Oxford City Council","HRA","Electricity","B1501","00:00:00","46281720_13","1899.56","Revenue","20002402","SOUTHERN ELECTRIC PLC"
"Oxford City Council","HRA","Electricity","B1501","00:00:00","46281720_14","2409.57","Revenue","20002402","SOUTHERN ELECTRIC PLC"
"Oxford City Council","HRA","Electricity","B1501","00:00:00","46281720_15","86.7","Revenue","20002402","SOUTHERN ELECTRIC PLC"
"Oxford City Council","HRA","Electricity","B1501","00:00:00","46281720_16","223.6","Revenue","20002402","SOUTHERN ELECTRIC PLC"
"Oxford City Council","HRA","Electricity","B1501","00:00:00","46281720_17","105.26","Revenue","20002402","SOUTHERN ELECTRIC PLC"
"Oxford City Council","HRA","Electricity","B1501","00:00:00","46281720_18","126.88","Revenue","20002402","SOUTHERN ELECTRIC PLC"
"Oxford City Council","HRA","Electricity","B1501","00:00:00","46281720_2","1258.52","Revenue","20002402","SOUTHERN ELECTRIC PLC"
"Oxford City Council","HRA","Electricity","B1501","00:00:00","46281720_3","215.51","Revenue","20002402","SOUTHERN ELECTRIC PLC"
"Oxford City Council","HRA","Electricity","B1501","00:00:00","46281720_4","10.71","Revenue","20002402","SOUTHERN ELECTRIC PLC"
"Oxford City Council","HRA","Electricity","B1501","00:00:00","46281720_5","353.06","Revenue","20002402","SOUTHERN ELECTRIC PLC"
"Oxford City Council","HRA","Electricity","B1501","00:00:00","46281720_6","2200.96","Revenue","20002402","SOUTHERN ELECTRIC PLC"
"Oxford City Council","HRA","Electricity","B1501","00:00:00","46281720_7","1651.83","Revenue","20002402","SOUTHERN ELECTRIC PLC"
"Oxford City Council","HRA","Electricity","B1501","00:00:00","46281720_8","20311.83","Revenue","20002402","SOUTHERN ELECTRIC PLC"
"Oxford City Council","HRA","Electricity","B1501","00:00:00","46281720_9","17.53","Revenue","20002402","SOUTHERN ELECTRIC PLC"
"Oxford City Council","Housing and Property","Electricity","B1501","00:00:00","46281891_1","4841.7","Revenue","20002402","SOUTHERN ELECTRIC PLC"
"Oxford City Council","Housing and Property","Electricity","B1501","00:00:00","46281891_2","-65.49","Revenue","20002402","SOUTHERN ELECTRIC PLC"
"Oxford City Council","HRA","Electricity","B1501","00:00:00","46281908_1","-35.27","Revenue","20002402","SOUTHERN ELECTRIC PLC"
"Oxford City Council","HRA","Electricity","B1501","00:00:00","46281908_2","3681.38","Revenue","20002402","SOUTHERN ELECTRIC PLC"
"Oxford City Council","HRA","Electricity","B1501","00:00:00","46281908_3","1067.26","Revenue","20002402","SOUTHERN ELECTRIC PLC"
"Oxford City Council","HRA","Electricity","B1501","00:00:00","46281908_4","-96.48","Revenue","20002402","SOUTHERN ELECTRIC PLC"
"Oxford City Council","HRA","Electricity","B1501","00:00:00","46281908_5","1426.88","Revenue","20002402","SOUTHERN ELECTRIC PLC"
"Oxford City Council","Direct Services","Protective Clothing","D3201   ","00:00:00","47975409_1","5837.6","Revenue","20002409","BERENDSEN UK LTD"
"Oxford City Council","HRA","Water & Sewerage Charges","B1830","00:00:00","1004436_1","849.91","Revenue","20002423","THAMES WATER UTILITIES LTD"
"Oxford City Council","Regeneration and Major Projects Team","Water & Sewerage Charges","B1830","00:00:00","1004637_1","747.29","Revenue","20002423","THAMES WATER UTILITIES LTD"
"Oxford City Council","Regeneration and Major Projects Team","Water & Sewerage Charges","B1830","00:00:00","1004781_1","544.53","Revenue","20002423","THAMES WATER UTILITIES LTD"
"Oxford City Council","Regeneration and Major Projects Team","Water & Sewerage Charges","B1830","00:00:00","1004782_1","1747.19","Revenue","20002423","THAMES WATER UTILITIES LTD"
"Oxford City Council","Direct Services","Water & Sewerage Charges","B1830","00:00:00","1005013_1","1011.95","Revenue","20002423","THAMES WATER UTILITIES LTD"
"Oxford City Council","Regeneration and Major Projects Team","Water & Sewerage Charges","B1830","00:00:00","1005172_1","1336.9","Revenue","20002423","THAMES WATER UTILITIES LTD"
"Oxford City Council","Direct Services","Water & Sewerage Charges","B1830","00:00:00","1005181_1","699.86","Revenue","20002423","THAMES WATER UTILITIES LTD"
"Oxford City Council","HRA","Water & Sewerage Charges","B1830","00:00:00","1005296_1","1269.11","Revenue","20002423","THAMES WATER UTILITIES LTD"
"Oxford City Council","HRA","Water & Sewerage Charges","B1830","00:00:00","1005310_1","990.95","Revenue","20002423","THAMES WATER UTILITIES LTD"
"Oxford City Council","Regeneration and Major Projects Team","Water & Sewerage Charges","B1830","00:00:00","1005338_1","1074.02","Revenue","20002423","THAMES WATER UTILITIES LTD"
"Oxford City Council","HRA","Water & Sewerage Charges","B1830","00:00:00","1005537_1","597.94","Revenue","20002423","THAMES WATER UTILITIES LTD"
"Oxford City Council","HRA","Water & Sewerage Charges","B1830","00:00:00","1005578_1","748.97","Revenue","20002423","THAMES WATER UTILITIES LTD"
"Oxford City Council","Direct Services","Water & Sewerage Charges","B1830","00:00:00","1005822_1","1016.86","Revenue","20002423","THAMES WATER UTILITIES LTD"
"Oxford City Council","Direct Services","Water & Sewerage Charges","B1830","00:00:00","1005823_1","602.92","Revenue","20002423","THAMES WATER UTILITIES LTD"
"Oxford City Council","HRA","Water & Sewerage Charges","B1830","00:00:00","1006027_1","733.51","Revenue","20002423","THAMES WATER UTILITIES LTD"
"Oxford City Council","Leisure, Parks & Communities","Water & Sewerage Charges","B1830","00:00:00","1006237_1","998.93","Revenue","20002423","THAMES WATER UTILITIES LTD"
"Oxford City Council","HRA","Uninsured Losses / Claims","B1803","00:00:00","1006300_1","1020.06","Revenue","20002423","THAMES WATER UTILITIES LTD"
"Oxford City Council","Regeneration and Major Projects Team","Water & Sewerage Charges","B1830","00:00:00","1006357_1","589.41","Revenue","20002423","THAMES WATER UTILITIES LTD"
"Oxford City Council","Leisure, Parks & Communities","Water & Sewerage Charges","B1830","00:00:00","1006621_1","526.28","Revenue","20002423","THAMES WATER UTILITIES LTD"
"Oxford City Council","Leisure, Parks & Communities","Water & Sewerage Charges","B1830","00:00:00","46281181_1","6050.72","Revenue","20002423","THAMES WATER UTILITIES LTD"
"Oxford City Council","Direct Services","Water & Sewerage Charges","B1830","00:00:00","46281306_1","682.27","Revenue","20002423","THAMES WATER UTILITIES LTD"
"Oxford City Council","Leisure, Parks & Communities","Materials","D3021","00:00:00","1005282_1","579.39","Revenue","20002434","TOOLMASTER (OXFORD) LTD"
"Oxford City Council","Direct Services","Tools","D3023","00:00:00","60018911_0","917.45","Revenue","20002434","TOOLMASTER (OXFORD) LTD"
"Oxford City Council","Direct Services","Materials","D3021   ","00:00:00","60019082_2","615.7","Revenue","20002434","TOOLMASTER (OXFORD) LTD"
"Oxford City Council","Direct Services","Materials","D3021   ","00:00:00","60019524_2","612.41","Revenue","20002434","TOOLMASTER (OXFORD) LTD"
"Oxford City Council","Direct Services","Tools","D3023   ","00:00:00","60019532_2","979","Revenue","20002434","TOOLMASTER (OXFORD) LTD"
"Oxford City Council","Direct Services","Materials","D3021   ","00:00:00","60019533_0","1140.25","Revenue","20002434","TOOLMASTER (OXFORD) LTD"
"Oxford City Council","Direct Services","Materials","D3021   ","00:00:00","60019534_2","531.27","Revenue","20002434","TOOLMASTER (OXFORD) LTD"
"Oxford City Council","Direct Services","Materials","D3021   ","00:00:00","60020237_0","544.02","Revenue","20002434","TOOLMASTER (OXFORD) LTD"
"Oxford City Council","Direct Services","Materials","D3021   ","00:00:00","60020340_1","730.13","Revenue","20002434","TOOLMASTER (OXFORD) LTD"
"Oxford City Council","Direct Services","Materials","D3021   ","00:00:00","60020347_1","774.48","Revenue","20002434","TOOLMASTER (OXFORD) LTD"
"Oxford City Council","Direct Services","Materials","D3021   ","00:00:00","60020351_2","1007.19","Revenue","20002434","TOOLMASTER (OXFORD) LTD"
"Oxford City Council","Direct Services","Materials","D3021","00:00:00","60021840_0","659.71","Revenue","20002434","TOOLMASTER (OXFORD) LTD"
"Oxford City Council","Direct Services","Materials","D3021","00:00:00","60021978_0","928.86","Revenue","20002434","TOOLMASTER (OXFORD) LTD"
"Oxford City Council","Leisure, Parks & Communities","Tools","D3023","00:00:00","1006619_1","217.82","Revenue","20002435","P A TURNEY LTD"
"Oxford City Council","Leisure, Parks & Communities","Tools","D3023","00:00:00","1006619_2","383.46","Revenue","20002435","P A TURNEY LTD"
"Oxford City Council","Direct Services","Plant Purchase","C2002   ","00:00:00","47974904_0","960","Revenue","20002435","P A TURNEY LTD"
"Oxford City Council","Direct Services","Plant Purchase","C2002   ","00:00:00","47974904_1","309","Revenue","20002435","P A TURNEY LTD"
"Oxford City Council","Direct Services","Plant Purchase","C2002   ","00:00:00","47974904_2","762","Revenue","20002435","P A TURNEY LTD"
"Oxford City Council","Direct Services","Plant Purchase","C2002   ","00:00:00","47974904_3","768","Revenue","20002435","P A TURNEY LTD"
"Oxford City Council","Direct Services","Plant Purchase","C2002   ","00:00:00","47974904_4","472","Revenue","20002435","P A TURNEY LTD"
"Oxford City Council","Direct Services","Plant Purchase","C2002   ","00:00:00","47974904_5","587","Revenue","20002435","P A TURNEY LTD"
"Oxford City Council","Direct Services","Plant Purchase","C2002   ","00:00:00","47974904_6","2610","Revenue","20002435","P A TURNEY LTD"
"Oxford City Council","Direct Services","Plant Purchase","C2002   ","00:00:00","47974904_7","1360","Revenue","20002435","P A TURNEY LTD"
"Oxford City Council","Direct Services","Plant Purchase","C2002   ","00:00:00","47974904_8","325","Revenue","20002435","P A TURNEY LTD"
"Oxford City Council","Direct Services","Main Contractor","Y021","00:00:00","47975332_2","17930","Capital","20002435","P A TURNEY LTD"
"Oxford City Council","Direct Services","Furniture & Equipment Purchase","D3001","00:00:00","60018244_2","1856","Revenue","20002443","UNIVERSAL ACCESS & POWER PLAN"
"Oxford City Council","Direct Services","Materials","D3021","00:00:00","60018653_1","656","Revenue","20002443","UNIVERSAL ACCESS & POWER PLAN"
"Oxford City Council","Direct Services","Furniture & Equipment Purchase","D3001   ","00:00:00","60019552_1","630","Revenue","20002443","UNIVERSAL ACCESS & POWER PLAN"
"Oxford City Council","Direct Services","Tools","D3023   ","00:00:00","60020631_0","1210.4","Revenue","20002443","UNIVERSAL ACCESS & POWER PLAN"
"Oxford City Council","Direct Services","Furniture & Equipment Maintenance & Repairs","D3002   ","00:00:00","60020634_1","1174.8","Revenue","20002443","UNIVERSAL ACCESS & POWER PLAN"
"Oxford City Council","Direct Services","Materials","D3021   ","00:00:00","60020636_1","4259.85","Revenue","20002443","UNIVERSAL ACCESS & POWER PLAN"
"Oxford City Council","Direct Services","Tools","D3023   ","00:00:00","60020755_1","642.63","Revenue","20002443","UNIVERSAL ACCESS & POWER PLAN"
"Oxford City Council","Direct Services","Tools","D3023   ","00:00:00","60020763_1","842.8","Revenue","20002443","UNIVERSAL ACCESS & POWER PLAN"
"Oxford City Council","Direct Services","Tools","D3023","00:00:00","60021447_1","1328.8","Revenue","20002443","UNIVERSAL ACCESS & POWER PLAN"
"Oxford City Council","Direct Services","Materials","D3021   ","00:00:00","60022275_1","531.4","Revenue","20002443","UNIVERSAL ACCESS & POWER PLAN"
"Oxford City Council","Direct Services","Materials","D3021","00:00:00","60018153_1","2244.89","Revenue","20002464","WOLSELEY UK LIMITED"
"Oxford City Council","Direct Services","Materials","D3021","00:00:00","60018155_1","970.08","Revenue","20002464","WOLSELEY UK LIMITED"
"Oxford City Council","Direct Services","Direct Services Supplies & Services","D3311","00:00:00","60018984_1","628.78","Revenue","20002464","WOLSELEY UK LIMITED"
"Oxford City Council","Direct Services","Materials","D3021","00:00:00","60018986_1","1433.49","Revenue","20002464","WOLSELEY UK LIMITED"
"Oxford City Council","Direct Services","Materials","D3021","00:00:00","60018988_1","2843.42","Revenue","20002464","WOLSELEY UK LIMITED"
"Oxford City Council","Direct Services","Materials","D3021   ","00:00:00","60019184_1","973.64","Revenue","20002464","WOLSELEY UK LIMITED"
"Oxford City Council","Direct Services","Materials","D3021   ","00:00:00","60019185_1","1122.4","Revenue","20002464","WOLSELEY UK LIMITED"
"Oxford City Council","Direct Services","Materials","D3021   ","00:00:00","60019416_2","2278.63","Revenue","20002464","WOLSELEY UK LIMITED"
"Oxford City Council","Direct Services","Materials","D3021   ","00:00:00","60019417_0","771.38","Revenue","20002464","WOLSELEY UK LIMITED"
"Oxford City Council","Direct Services","Materials","D3021   ","00:00:00","60019418_2","673.77","Revenue","20002464","WOLSELEY UK LIMITED"
"Oxford City Council","Direct Services","Materials","D3021   ","00:00:00","60019430_1","3731.16","Revenue","20002464","WOLSELEY UK LIMITED"
"Oxford City Council","Direct Services","Reactive Maintenance & Minor Repairs","B1101   ","00:00:00","60019963_1","952.81","Revenue","20002464","WOLSELEY UK LIMITED"
"Oxford City Council","Direct Services","Materials","D3021   ","00:00:00","60019997_1","2073.5","Revenue","20002464","WOLSELEY UK LIMITED"
"Oxford City Council","Direct Services","Materials","D3021   ","00:00:00","60020001_1","690.96","Revenue","20002464","WOLSELEY UK LIMITED"
"Oxford City Council","Direct Services","Materials","D3021   ","00:00:00","60020002_1","877.64","Revenue","20002464","WOLSELEY UK LIMITED"
"Oxford City Council","Direct Services","Materials","D3021   ","00:00:00","60020262_2","1134.3","Revenue","20002464","WOLSELEY UK LIMITED"
"Oxford City Council","Direct Services","Materials","D3021   ","00:00:00","60020443_1","1554.65","Revenue","20002464","WOLSELEY UK LIMITED"
"Oxford City Council","Direct Services","Direct Services Supplies & Services","D3311   ","00:00:00","60020853_1","1932.6","Revenue","20002464","WOLSELEY UK LIMITED"
"Oxford City Council","Direct Services","Materials","D3021","00:00:00","60021492_1","1868.38","Revenue","20002464","WOLSELEY UK LIMITED"
"Oxford City Council","Direct Services","Materials","D3021","00:00:00","60021887_0","1385.84","Revenue","20002464","WOLSELEY UK LIMITED"
"Oxford City Council","Direct Services","Materials","D3021","00:00:00","60021889_0","779.1","Revenue","20002464","WOLSELEY UK LIMITED"
"Oxford City Council","Direct Services","Materials","D3021","00:00:00","60021890_2","1894.2","Revenue","20002464","WOLSELEY UK LIMITED"
"Oxford City Council","Direct Services","Materials","D3021","00:00:00","60021892_2","1369.39","Revenue","20002464","WOLSELEY UK LIMITED"
"Oxford City Council","Direct Services","Supply & Collection Of Litter Bins","B1171   ","00:00:00","60019729_0","2378.02","Revenue","20002466","WYBONE LTD"
"Oxford City Council","Direct Services","Supply & Collection Of Litter Bins","B1171   ","00:00:00","60019914_1","2378.02","Revenue","20002466","WYBONE LTD"
"Oxford City Council","Leisure, Parks & Communities","Main Contractor","Y021","00:00:00","1004775_1","93889.45","Capital","20002494","E W BEARD LTD"
"Oxford City Council","Leisure, Parks & Communities","Main Contractor","Y021","00:00:00","1005637_1","67624.26","Capital","20002494","E W BEARD LTD"
"Oxford City Council","Leisure, Parks & Communities","Main Contractor","Y021","00:00:00","1005678_1","167671.57","Capital","20002494","E W BEARD LTD"
"Oxford City Council","Leisure, Parks & Communities","Main Contractor","Y021","00:00:00","1006327_1","113506.44","Capital","20002494","E W BEARD LTD"
"Oxford City Council","HRA","Fire Alarms and Emergency Lighting","B1241","00:00:00","46281611_1","11930.71","Revenue","20002568","PYROTEC SERVICES LTD"
"Oxford City Council","Regeneration and Major Projects Team","Fire Alarms and Emergency Lighting","B1241","00:00:00","46281611_10","137.49","Revenue","20002568","PYROTEC SERVICES LTD"
"Oxford City Council","Regeneration and Major Projects Team","Fire Alarms and Emergency Lighting","B1241","00:00:00","46281611_11","1372.49","Revenue","20002568","PYROTEC SERVICES LTD"
"Oxford City Council","Regeneration and Major Projects Team","Fire Alarms and Emergency Lighting","B1241","00:00:00","46281611_12","2359","Revenue","20002568","PYROTEC SERVICES LTD"
"Oxford City Council","Regeneration and Major Projects Team","Fire Alarms and Emergency Lighting","B1241","00:00:00","46281611_13","47.49","Revenue","20002568","PYROTEC SERVICES LTD"
"Oxford City Council","Housing and Property","Fire Alarms and Emergency Lighting","B1241","00:00:00","46281611_14","4463.29","Revenue","20002568","PYROTEC SERVICES LTD"
"Oxford City Council","HRA","Fire Alarms and Emergency Lighting","B1241","00:00:00","46281611_15","854.95","Revenue","20002568","PYROTEC SERVICES LTD"
"Oxford City Council","Direct Services","Fire Alarms and Emergency Lighting","B1241","00:00:00","46281611_2","276.25","Revenue","20002568","PYROTEC SERVICES LTD"
"Oxford City Council","Direct Services","Fire Alarms and Emergency Lighting","B1241","00:00:00","46281611_3","372.25","Revenue","20002568","PYROTEC SERVICES LTD"
"Oxford City Council","Direct Services","Fire Alarms and Emergency Lighting","B1241","00:00:00","46281611_4","243.75","Revenue","20002568","PYROTEC SERVICES LTD"
"Oxford City Council","Direct Services","Fire Alarms and Emergency Lighting","B1241","00:00:00","46281611_5","389.83","Revenue","20002568","PYROTEC SERVICES LTD"
"Oxford City Council","Direct Services","Fire Alarms and Emergency Lighting","B1241","00:00:00","46281611_6","1214.5","Revenue","20002568","PYROTEC SERVICES LTD"
"Oxford City Council","Direct Services","Fire Alarms and Emergency Lighting","B1241","00:00:00","46281611_7","43.74","Revenue","20002568","PYROTEC SERVICES LTD"
"Oxford City Council","Regeneration and Major Projects Team","Fire Alarms and Emergency Lighting","B1241","00:00:00","46281611_8","389.08","Revenue","20002568","PYROTEC SERVICES LTD"
"Oxford City Council","Regeneration and Major Projects Team","Fire Alarms and Emergency Lighting","B1241","00:00:00","46281611_9","180","Revenue","20002568","PYROTEC SERVICES LTD"
"Oxford City Council","HRA","Fire Alarms and Emergency Lighting","B1241","00:00:00","46281965_1","5491.47","Revenue","20002568","PYROTEC SERVICES LTD"
"Oxford City Council","HRA","Fire Alarms and Emergency Lighting","B1241","00:00:00","46281965_2","330","Revenue","20002568","PYROTEC SERVICES LTD"
"Oxford City Council","Regeneration and Major Projects Team","Fire Alarms and Emergency Lighting","B1241","00:00:00","46281965_3","180","Revenue","20002568","PYROTEC SERVICES LTD"
"Oxford City Council","Housing and Property","Fire Alarms and Emergency Lighting","B1241","00:00:00","46281965_4","722.62","Revenue","20002568","PYROTEC SERVICES LTD"
"Oxford City Council","Regeneration and Major Projects Team","Fire Alarms and Emergency Lighting","B1241","00:00:00","46281965_5","200","Revenue","20002568","PYROTEC SERVICES LTD"
"Oxford City Council","Regeneration and Major Projects Team","Fire Alarms and Emergency Lighting","B1241","00:00:00","46281965_6","950","Revenue","20002568","PYROTEC SERVICES LTD"
"Oxford City Council","Regeneration and Major Projects Team","Fire Alarms and Emergency Lighting","B1241","00:00:00","46281965_7","775","Revenue","20002568","PYROTEC SERVICES LTD"
"Oxford City Council","HRA","Main Contractor","Y021","00:00:00","48020818_1","8910","Capital","20002568","PYROTEC SERVICES LTD"
"Oxford City Council","HRA","Main Contractor","Y021","00:00:00","48020846_1","1965","Capital","20002568","PYROTEC SERVICES LTD"
"Oxford City Council","Regeneration and Major Projects Team","Main Contractor","Y021","00:00:00","48020875_1","9951","Capital","20002568","PYROTEC SERVICES LTD"
"Oxford City Council","Housing and Property","Services Maintenance (Planned)","B1103","00:00:00","46281160_1","2569.96","Revenue","20002633","ADT FIRE & SECURITY"
"Oxford City Council","Direct Services","Direct Services Supplies & Services","D3339","00:00:00","60018275_2","1773.6","Revenue","20002637","SMITH & OSMAN SERVICES"
"Oxford City Council","Direct Services","Materials","D3021","00:00:00","60018133_1","1179.73","Revenue","20002680","OXFORD SAFETY SUPPLIES"
"Oxford City Council","Direct Services","Materials","D3021","00:00:00","60018156_1","1285.1","Revenue","20002680","OXFORD SAFETY SUPPLIES"
"Oxford City Council","Direct Services","Materials","D3021","00:00:00","60018336_1","1741.3","Revenue","20002680","OXFORD SAFETY SUPPLIES"
"Oxford City Council","Direct Services","Materials","D3021","00:00:00","60018346_1","1300.06","Revenue","20002680","OXFORD SAFETY SUPPLIES"
"Oxford City Council","Direct Services","Materials","D3021","00:00:00","60018669_1","1829.25","Revenue","20002680","OXFORD SAFETY SUPPLIES"
